Organisation Name,Organisation Code,Unique Ref No,Effective Date,Directorate where expenditure incurred, Supplier Name ,Payment Date,Net amount,Purpose of Spend,"Procurement Classification
(Higher Level)",Procurement Classification (Lower Level),CAPITAL / REVENUE
Walsall Council,http://opendatacommunities.org/id/metropolitan-district-council/walsall ,WC128-1,31.07.2021,CHILDRENS,247 CARS (WILLENHALL) LIMITED,19/07/2021,"1,900.00",6241-Hire of Vehicle with Driver,TRANSPORT,DIRECT TRANSPORT COSTS,REVENUE
Walsall Council,http://opendatacommunities.org/id/metropolitan-district-council/walsall ,WC128-2,31.07.2021,CHILDRENS,247 CARS (WILLENHALL) LIMITED,19/07/2021,"1,020.00",6241-Hire of Vehicle with Driver,TRANSPORT,DIRECT TRANSPORT COSTS,REVENUE
Walsall Council,http://opendatacommunities.org/id/metropolitan-district-council/walsall ,WC128-3,31.07.2021,CHILDRENS,247 CARS (WILLENHALL) LIMITED,19/07/2021,"1,461.60",6241-Hire of Vehicle with Driver,TRANSPORT,DIRECT TRANSPORT COSTS,REVENUE
Walsall Council,http://opendatacommunities.org/id/metropolitan-district-council/walsall ,WC128-4,31.07.2021,RESOURCES AND TRANSFORMATION,2BM LIMITED,08/07/2021,"1,200.00",6623-Computer Equipment,SUPPLIES & SERVICES,COMMUNICATIONS & COMPUTING,REVENUE
Walsall Council,http://opendatacommunities.org/id/metropolitan-district-council/walsall ,WC128-5,31.07.2021,RESOURCES AND TRANSFORMATION,3 SPIRIT UK TRAINING & CONSULTANCY,22/07/2021,700.00,6625-Consultant Fees,SUPPLIES & SERVICES,SERVICES,REVENUE
Walsall Council,http://opendatacommunities.org/id/metropolitan-district-council/walsall ,WC128-6,31.07.2021,RESOURCES AND TRANSFORMATION,3 SPIRIT UK TRAINING & CONSULTANCY,22/07/2021,700.00,6625-Consultant Fees,SUPPLIES & SERVICES,SERVICES,REVENUE
Walsall Council,http://opendatacommunities.org/id/metropolitan-district-council/walsall ,WC128-7,31.07.2021,ADULT SOCIAL CARE,5 CARE SERVICES LTD,05/07/2021,544.95,6541-Domiciliary Care,THIRD PARTY PAYMENTS,PRIVATE CONTRACTOR,REVENUE
Walsall Council,http://opendatacommunities.org/id/metropolitan-district-council/walsall ,WC128-8,31.07.2021,ADULT SOCIAL CARE,5 CARE SERVICES LTD,05/07/2021,490.49,6541-Domiciliary Care,THIRD PARTY PAYMENTS,PRIVATE CONTRACTOR,REVENUE
Walsall Council,http://opendatacommunities.org/id/metropolitan-district-council/walsall ,WC128-9,31.07.2021,ADULT SOCIAL CARE,5 CARE SERVICES LTD,05/07/2021,591.66,6541-Domiciliary Care,THIRD PARTY PAYMENTS,PRIVATE CONTRACTOR,REVENUE
Walsall Council,http://opendatacommunities.org/id/metropolitan-district-council/walsall ,WC128-10,31.07.2021,ADULT SOCIAL CARE,5 CARE SERVICES LTD,05/07/2021,560.52,6541-Domiciliary Care,THIRD PARTY PAYMENTS,PRIVATE CONTRACTOR,REVENUE
Walsall Council,http://opendatacommunities.org/id/metropolitan-district-council/walsall ,WC128-11,31.07.2021,ADULT SOCIAL CARE,5 CARE SERVICES LTD,05/07/2021,654.01,6541-Domiciliary Care,THIRD PARTY PAYMENTS,PRIVATE CONTRACTOR,REVENUE
Walsall Council,http://opendatacommunities.org/id/metropolitan-district-council/walsall ,WC128-12,31.07.2021,ADULT SOCIAL CARE,5 CARE SERVICES LTD,05/07/2021,599.55,6541-Domiciliary Care,THIRD PARTY PAYMENTS,PRIVATE CONTRACTOR,REVENUE
Walsall Council,http://opendatacommunities.org/id/metropolitan-district-council/walsall ,WC128-13,31.07.2021,ADULT SOCIAL CARE,5 CARE SERVICES LTD,05/07/2021,490.49,6541-Domiciliary Care,THIRD PARTY PAYMENTS,PRIVATE CONTRACTOR,REVENUE
Walsall Council,http://opendatacommunities.org/id/metropolitan-district-council/walsall ,WC128-14,31.07.2021,ADULT SOCIAL CARE,5 CARE SERVICES LTD,05/07/2021,327.04,6541-Domiciliary Care,THIRD PARTY PAYMENTS,PRIVATE CONTRACTOR,REVENUE
Walsall Council,http://opendatacommunities.org/id/metropolitan-district-council/walsall ,WC128-15,31.07.2021,ADULT SOCIAL CARE,5 CARE SERVICES LTD,05/07/2021,"1,198.89",6541-Domiciliary Care,THIRD PARTY PAYMENTS,PRIVATE CONTRACTOR,REVENUE
Walsall Council,http://opendatacommunities.org/id/metropolitan-district-council/walsall ,WC128-16,31.07.2021,ADULT SOCIAL CARE,5 CARE SERVICES LTD,05/07/2021,424.37,6541-Domiciliary Care,THIRD PARTY PAYMENTS,PRIVATE CONTRACTOR,REVENUE
Walsall Council,http://opendatacommunities.org/id/metropolitan-district-council/walsall ,WC128-17,31.07.2021,ADULT SOCIAL CARE,5 CARE SERVICES LTD,05/07/2021,381.54,6541-Domiciliary Care,THIRD PARTY PAYMENTS,PRIVATE CONTRACTOR,REVENUE
Walsall Council,http://opendatacommunities.org/id/metropolitan-district-council/walsall ,WC128-18,31.07.2021,ADULT SOCIAL CARE,5 CARE SERVICES LTD,05/07/2021,257.00,6541-Domiciliary Care,THIRD PARTY PAYMENTS,PRIVATE CONTRACTOR,REVENUE
Walsall Council,http://opendatacommunities.org/id/metropolitan-district-council/walsall ,WC128-19,31.07.2021,ADULT SOCIAL CARE,5 CARE SERVICES LTD,05/07/2021,303.72,6541-Domiciliary Care,THIRD PARTY PAYMENTS,PRIVATE CONTRACTOR,REVENUE
Walsall Council,http://opendatacommunities.org/id/metropolitan-district-council/walsall ,WC128-20,31.07.2021,ADULT SOCIAL CARE,5 CARE SERVICES LTD,05/07/2021,545.02,6541-Domiciliary Care,THIRD PARTY PAYMENTS,PRIVATE CONTRACTOR,REVENUE
Walsall Council,http://opendatacommunities.org/id/metropolitan-district-council/walsall ,WC128-21,31.07.2021,ADULT SOCIAL CARE,5 CARE SERVICES LTD,05/07/2021,311.40,6541-Domiciliary Care,THIRD PARTY PAYMENTS,PRIVATE CONTRACTOR,REVENUE
Walsall Council,http://opendatacommunities.org/id/metropolitan-district-council/walsall ,WC128-22,31.07.2021,ADULT SOCIAL CARE,5 CARE SERVICES LTD,05/07/2021,326.97,6541-Domiciliary Care,THIRD PARTY PAYMENTS,PRIVATE CONTRACTOR,REVENUE
Walsall Council,http://opendatacommunities.org/id/metropolitan-district-council/walsall ,WC128-23,31.07.2021,ADULT SOCIAL CARE,5 CARE SERVICES LTD,05/07/2021,490.49,6541-Domiciliary Care,THIRD PARTY PAYMENTS,PRIVATE CONTRACTOR,REVENUE
Walsall Council,http://opendatacommunities.org/id/metropolitan-district-council/walsall ,WC128-24,31.07.2021,ADULT SOCIAL CARE,5 CARE SERVICES LTD,05/07/2021,"2,242.08",6541-Domiciliary Care,THIRD PARTY PAYMENTS,PRIVATE CONTRACTOR,REVENUE
Walsall Council,http://opendatacommunities.org/id/metropolitan-district-council/walsall ,WC128-25,31.07.2021,ADULT SOCIAL CARE,5 CARE SERVICES LTD,05/07/2021,311.40,6541-Domiciliary Care,THIRD PARTY PAYMENTS,PRIVATE CONTRACTOR,REVENUE
Walsall Council,http://opendatacommunities.org/id/metropolitan-district-council/walsall ,WC128-26,31.07.2021,ADULT SOCIAL CARE,5 CARE SERVICES LTD,05/07/2021,435.96,6541-Domiciliary Care,THIRD PARTY PAYMENTS,PRIVATE CONTRACTOR,REVENUE
Walsall Council,http://opendatacommunities.org/id/metropolitan-district-council/walsall ,WC128-27,31.07.2021,ADULT SOCIAL CARE,5 CARE SERVICES LTD,05/07/2021,654.01,6541-Domiciliary Care,THIRD PARTY PAYMENTS,PRIVATE CONTRACTOR,REVENUE
Walsall Council,http://opendatacommunities.org/id/metropolitan-district-council/walsall ,WC128-28,31.07.2021,ADULT SOCIAL CARE,5 CARE SERVICES LTD,05/07/2021,326.97,6541-Domiciliary Care,THIRD PARTY PAYMENTS,PRIVATE CONTRACTOR,REVENUE
Walsall Council,http://opendatacommunities.org/id/metropolitan-district-council/walsall ,WC128-29,31.07.2021,ADULT SOCIAL CARE,5 CARE SERVICES LTD,05/07/2021,599.48,6541-Domiciliary Care,THIRD PARTY PAYMENTS,PRIVATE CONTRACTOR,REVENUE
Walsall Council,http://opendatacommunities.org/id/metropolitan-district-council/walsall ,WC128-30,31.07.2021,ADULT SOCIAL CARE,5 CARE SERVICES LTD,05/07/2021,705.84,6541-Domiciliary Care,THIRD PARTY PAYMENTS,PRIVATE CONTRACTOR,REVENUE
Walsall Council,http://opendatacommunities.org/id/metropolitan-district-council/walsall ,WC128-31,31.07.2021,ADULT SOCIAL CARE,5 CARE SERVICES LTD,05/07/2021,544.95,6541-Domiciliary Care,THIRD PARTY PAYMENTS,PRIVATE CONTRACTOR,REVENUE
Walsall Council,http://opendatacommunities.org/id/metropolitan-district-council/walsall ,WC128-32,31.07.2021,ADULT SOCIAL CARE,5 CARE SERVICES LTD,05/07/2021,490.49,6541-Domiciliary Care,THIRD PARTY PAYMENTS,PRIVATE CONTRACTOR,REVENUE
Walsall Council,http://opendatacommunities.org/id/metropolitan-district-council/walsall ,WC128-33,31.07.2021,ADULT SOCIAL CARE,5 CARE SERVICES LTD,05/07/2021,257.00,6541-Domiciliary Care,THIRD PARTY PAYMENTS,PRIVATE CONTRACTOR,REVENUE
Walsall Council,http://opendatacommunities.org/id/metropolitan-district-council/walsall ,WC128-34,31.07.2021,ADULT SOCIAL CARE,5 CARE SERVICES LTD,05/07/2021,591.66,6541-Domiciliary Care,THIRD PARTY PAYMENTS,PRIVATE CONTRACTOR,REVENUE
Walsall Council,http://opendatacommunities.org/id/metropolitan-district-council/walsall ,WC128-35,31.07.2021,ADULT SOCIAL CARE,5 CARE SERVICES LTD,05/07/2021,-560.80,6541-Domiciliary Care,THIRD PARTY PAYMENTS,PRIVATE CONTRACTOR,REVENUE
Walsall Council,http://opendatacommunities.org/id/metropolitan-district-council/walsall ,WC128-36,31.07.2021,ADULT SOCIAL CARE,5 CARE SERVICES LTD,05/07/2021,373.68,6541-Domiciliary Care,THIRD PARTY PAYMENTS,PRIVATE CONTRACTOR,REVENUE
Walsall Council,http://opendatacommunities.org/id/metropolitan-district-council/walsall ,WC128-37,31.07.2021,ADULT SOCIAL CARE,5 CARE SERVICES LTD,05/07/2021,311.40,6541-Domiciliary Care,THIRD PARTY PAYMENTS,PRIVATE CONTRACTOR,REVENUE
Walsall Council,http://opendatacommunities.org/id/metropolitan-district-council/walsall ,WC128-38,31.07.2021,ADULT SOCIAL CARE,5 CARE SERVICES LTD,05/07/2021,435.96,6541-Domiciliary Care,THIRD PARTY PAYMENTS,PRIVATE CONTRACTOR,REVENUE
Walsall Council,http://opendatacommunities.org/id/metropolitan-district-council/walsall ,WC128-39,31.07.2021,ADULT SOCIAL CARE,5 CARE SERVICES LTD,05/07/2021,654.01,6541-Domiciliary Care,THIRD PARTY PAYMENTS,PRIVATE CONTRACTOR,REVENUE
Walsall Council,http://opendatacommunities.org/id/metropolitan-district-council/walsall ,WC128-40,31.07.2021,ADULT SOCIAL CARE,5 CARE SERVICES LTD,05/07/2021,326.97,6541-Domiciliary Care,THIRD PARTY PAYMENTS,PRIVATE CONTRACTOR,REVENUE
Walsall Council,http://opendatacommunities.org/id/metropolitan-district-council/walsall ,WC128-41,31.07.2021,ADULT SOCIAL CARE,5 CARE SERVICES LTD,05/07/2021,654.01,6541-Domiciliary Care,THIRD PARTY PAYMENTS,PRIVATE CONTRACTOR,REVENUE
Walsall Council,http://opendatacommunities.org/id/metropolitan-district-council/walsall ,WC128-42,31.07.2021,ADULT SOCIAL CARE,5 CARE SERVICES LTD,05/07/2021,303.72,6541-Domiciliary Care,THIRD PARTY PAYMENTS,PRIVATE CONTRACTOR,REVENUE
Walsall Council,http://opendatacommunities.org/id/metropolitan-district-council/walsall ,WC128-43,31.07.2021,ADULT SOCIAL CARE,5 CARE SERVICES LTD,05/07/2021,599.55,6541-Domiciliary Care,THIRD PARTY PAYMENTS,PRIVATE CONTRACTOR,REVENUE
Walsall Council,http://opendatacommunities.org/id/metropolitan-district-council/walsall ,WC128-44,31.07.2021,ADULT SOCIAL CARE,5 CARE SERVICES LTD,05/07/2021,490.49,6541-Domiciliary Care,THIRD PARTY PAYMENTS,PRIVATE CONTRACTOR,REVENUE
Walsall Council,http://opendatacommunities.org/id/metropolitan-district-council/walsall ,WC128-45,31.07.2021,ADULT SOCIAL CARE,5 CARE SERVICES LTD,05/07/2021,"1,198.89",6541-Domiciliary Care,THIRD PARTY PAYMENTS,PRIVATE CONTRACTOR,REVENUE
Walsall Council,http://opendatacommunities.org/id/metropolitan-district-council/walsall ,WC128-46,31.07.2021,ADULT SOCIAL CARE,5 CARE SERVICES LTD,05/07/2021,599.48,6541-Domiciliary Care,THIRD PARTY PAYMENTS,PRIVATE CONTRACTOR,REVENUE
Walsall Council,http://opendatacommunities.org/id/metropolitan-district-council/walsall ,WC128-47,31.07.2021,ADULT SOCIAL CARE,5 CARE SERVICES LTD,05/07/2021,705.84,6541-Domiciliary Care,THIRD PARTY PAYMENTS,PRIVATE CONTRACTOR,REVENUE
Walsall Council,http://opendatacommunities.org/id/metropolitan-district-council/walsall ,WC128-48,31.07.2021,ADULT SOCIAL CARE,5 CARE SERVICES LTD,05/07/2021,327.04,6541-Domiciliary Care,THIRD PARTY PAYMENTS,PRIVATE CONTRACTOR,REVENUE
Walsall Council,http://opendatacommunities.org/id/metropolitan-district-council/walsall ,WC128-49,31.07.2021,ADULT SOCIAL CARE,5 CARE SERVICES LTD,05/07/2021,591.70,6541-Domiciliary Care,THIRD PARTY PAYMENTS,PRIVATE CONTRACTOR,REVENUE
Walsall Council,http://opendatacommunities.org/id/metropolitan-district-council/walsall ,WC128-50,31.07.2021,ADULT SOCIAL CARE,5 CARE SERVICES LTD,05/07/2021,424.37,6541-Domiciliary Care,THIRD PARTY PAYMENTS,PRIVATE CONTRACTOR,REVENUE
Walsall Council,http://opendatacommunities.org/id/metropolitan-district-council/walsall ,WC128-51,31.07.2021,ADULT SOCIAL CARE,5 CARE SERVICES LTD,05/07/2021,281.61,6541-Domiciliary Care,THIRD PARTY PAYMENTS,PRIVATE CONTRACTOR,REVENUE
Walsall Council,http://opendatacommunities.org/id/metropolitan-district-council/walsall ,WC128-52,31.07.2021,ADULT SOCIAL CARE,5 CARE SERVICES LTD,05/07/2021,311.40,6541-Domiciliary Care,THIRD PARTY PAYMENTS,PRIVATE CONTRACTOR,REVENUE
Walsall Council,http://opendatacommunities.org/id/metropolitan-district-council/walsall ,WC128-53,31.07.2021,ADULT SOCIAL CARE,5 CARE SERVICES LTD,05/07/2021,490.49,6541-Domiciliary Care,THIRD PARTY PAYMENTS,PRIVATE CONTRACTOR,REVENUE
Walsall Council,http://opendatacommunities.org/id/metropolitan-district-council/walsall ,WC128-54,31.07.2021,ADULT SOCIAL CARE,5 CARE SERVICES LTD,05/07/2021,326.97,6541-Domiciliary Care,THIRD PARTY PAYMENTS,PRIVATE CONTRACTOR,REVENUE
Walsall Council,http://opendatacommunities.org/id/metropolitan-district-council/walsall ,WC128-55,31.07.2021,ADULT SOCIAL CARE,5 CARE SERVICES LTD,05/07/2021,490.49,6541-Domiciliary Care,THIRD PARTY PAYMENTS,PRIVATE CONTRACTOR,REVENUE
Walsall Council,http://opendatacommunities.org/id/metropolitan-district-council/walsall ,WC128-56,31.07.2021,ADULT SOCIAL CARE,5 CARE SERVICES LTD,20/07/2021,303.72,6541-Domiciliary Care,THIRD PARTY PAYMENTS,PRIVATE CONTRACTOR,REVENUE
Walsall Council,http://opendatacommunities.org/id/metropolitan-district-council/walsall ,WC128-57,31.07.2021,ADULT SOCIAL CARE,5 CARE SERVICES LTD,20/07/2021,311.40,6541-Domiciliary Care,THIRD PARTY PAYMENTS,PRIVATE CONTRACTOR,REVENUE
Walsall Council,http://opendatacommunities.org/id/metropolitan-district-council/walsall ,WC128-58,31.07.2021,ADULT SOCIAL CARE,5 CARE SERVICES LTD,20/07/2021,-685.08,6541-Domiciliary Care,THIRD PARTY PAYMENTS,PRIVATE CONTRACTOR,REVENUE
Walsall Council,http://opendatacommunities.org/id/metropolitan-district-council/walsall ,WC128-59,31.07.2021,ADULT SOCIAL CARE,5 CARE SERVICES LTD,20/07/2021,654.01,6541-Domiciliary Care,THIRD PARTY PAYMENTS,PRIVATE CONTRACTOR,REVENUE
Walsall Council,http://opendatacommunities.org/id/metropolitan-district-council/walsall ,WC128-60,31.07.2021,ADULT SOCIAL CARE,5 CARE SERVICES LTD,20/07/2021,326.97,6541-Domiciliary Care,THIRD PARTY PAYMENTS,PRIVATE CONTRACTOR,REVENUE
Walsall Council,http://opendatacommunities.org/id/metropolitan-district-council/walsall ,WC128-61,31.07.2021,ADULT SOCIAL CARE,5 CARE SERVICES LTD,20/07/2021,"1,198.89",6541-Domiciliary Care,THIRD PARTY PAYMENTS,PRIVATE CONTRACTOR,REVENUE
Walsall Council,http://opendatacommunities.org/id/metropolitan-district-council/walsall ,WC128-62,31.07.2021,ADULT SOCIAL CARE,5 CARE SERVICES LTD,20/07/2021,599.48,6541-Domiciliary Care,THIRD PARTY PAYMENTS,PRIVATE CONTRACTOR,REVENUE
Walsall Council,http://opendatacommunities.org/id/metropolitan-district-council/walsall ,WC128-63,31.07.2021,ADULT SOCIAL CARE,5 CARE SERVICES LTD,20/07/2021,705.84,6541-Domiciliary Care,THIRD PARTY PAYMENTS,PRIVATE CONTRACTOR,REVENUE
Walsall Council,http://opendatacommunities.org/id/metropolitan-district-council/walsall ,WC128-64,31.07.2021,ADULT SOCIAL CARE,5 CARE SERVICES LTD,20/07/2021,"1,374.06",6541-Domiciliary Care,THIRD PARTY PAYMENTS,PRIVATE CONTRACTOR,REVENUE
Walsall Council,http://opendatacommunities.org/id/metropolitan-district-council/walsall ,WC128-65,31.07.2021,ADULT SOCIAL CARE,5 CARE SERVICES LTD,20/07/2021,563.22,6541-Domiciliary Care,THIRD PARTY PAYMENTS,PRIVATE CONTRACTOR,REVENUE
Walsall Council,http://opendatacommunities.org/id/metropolitan-district-council/walsall ,WC128-66,31.07.2021,ADULT SOCIAL CARE,5 CARE SERVICES LTD,20/07/2021,404.82,6541-Domiciliary Care,THIRD PARTY PAYMENTS,PRIVATE CONTRACTOR,REVENUE
Walsall Council,http://opendatacommunities.org/id/metropolitan-district-council/walsall ,WC128-67,31.07.2021,ADULT SOCIAL CARE,5 CARE SERVICES LTD,20/07/2021,482.67,6541-Domiciliary Care,THIRD PARTY PAYMENTS,PRIVATE CONTRACTOR,REVENUE
Walsall Council,http://opendatacommunities.org/id/metropolitan-district-council/walsall ,WC128-68,31.07.2021,ADULT SOCIAL CARE,5 CARE SERVICES LTD,20/07/2021,654.01,6541-Domiciliary Care,THIRD PARTY PAYMENTS,PRIVATE CONTRACTOR,REVENUE
Walsall Council,http://opendatacommunities.org/id/metropolitan-district-council/walsall ,WC128-69,31.07.2021,ADULT SOCIAL CARE,5 CARE SERVICES LTD,20/07/2021,560.52,6541-Domiciliary Care,THIRD PARTY PAYMENTS,PRIVATE CONTRACTOR,REVENUE
Walsall Council,http://opendatacommunities.org/id/metropolitan-district-council/walsall ,WC128-70,31.07.2021,ADULT SOCIAL CARE,5 CARE SERVICES LTD,20/07/2021,311.40,6541-Domiciliary Care,THIRD PARTY PAYMENTS,PRIVATE CONTRACTOR,REVENUE
Walsall Council,http://opendatacommunities.org/id/metropolitan-district-council/walsall ,WC128-71,31.07.2021,ADULT SOCIAL CARE,5 CARE SERVICES LTD,20/07/2021,544.95,6541-Domiciliary Care,THIRD PARTY PAYMENTS,PRIVATE CONTRACTOR,REVENUE
Walsall Council,http://opendatacommunities.org/id/metropolitan-district-council/walsall ,WC128-72,31.07.2021,ADULT SOCIAL CARE,5 CARE SERVICES LTD,20/07/2021,490.49,6541-Domiciliary Care,THIRD PARTY PAYMENTS,PRIVATE CONTRACTOR,REVENUE
Walsall Council,http://opendatacommunities.org/id/metropolitan-district-council/walsall ,WC128-73,31.07.2021,ADULT SOCIAL CARE,5 CARE SERVICES LTD,20/07/2021,996.48,6541-Domiciliary Care,THIRD PARTY PAYMENTS,PRIVATE CONTRACTOR,REVENUE
Walsall Council,http://opendatacommunities.org/id/metropolitan-district-council/walsall ,WC128-74,31.07.2021,ADULT SOCIAL CARE,5 CARE SERVICES LTD,20/07/2021,599.55,6541-Domiciliary Care,THIRD PARTY PAYMENTS,PRIVATE CONTRACTOR,REVENUE
Walsall Council,http://opendatacommunities.org/id/metropolitan-district-council/walsall ,WC128-75,31.07.2021,ADULT SOCIAL CARE,5 CARE SERVICES LTD,20/07/2021,490.49,6541-Domiciliary Care,THIRD PARTY PAYMENTS,PRIVATE CONTRACTOR,REVENUE
Walsall Council,http://opendatacommunities.org/id/metropolitan-district-council/walsall ,WC128-76,31.07.2021,ADULT SOCIAL CARE,5 CARE SERVICES LTD,20/07/2021,327.04,6541-Domiciliary Care,THIRD PARTY PAYMENTS,PRIVATE CONTRACTOR,REVENUE
Walsall Council,http://opendatacommunities.org/id/metropolitan-district-council/walsall ,WC128-77,31.07.2021,ADULT SOCIAL CARE,5 CARE SERVICES LTD,20/07/2021,591.66,6541-Domiciliary Care,THIRD PARTY PAYMENTS,PRIVATE CONTRACTOR,REVENUE
Walsall Council,http://opendatacommunities.org/id/metropolitan-district-council/walsall ,WC128-78,31.07.2021,ADULT SOCIAL CARE,5 CARE SERVICES LTD,20/07/2021,490.70,6541-Domiciliary Care,THIRD PARTY PAYMENTS,PRIVATE CONTRACTOR,REVENUE
Walsall Council,http://opendatacommunities.org/id/metropolitan-district-council/walsall ,WC128-79,31.07.2021,ADULT SOCIAL CARE,5 CARE SERVICES LTD,20/07/2021,326.97,6541-Domiciliary Care,THIRD PARTY PAYMENTS,PRIVATE CONTRACTOR,REVENUE
Walsall Council,http://opendatacommunities.org/id/metropolitan-district-council/walsall ,WC128-80,31.07.2021,ADULT SOCIAL CARE,5 CARE SERVICES LTD,20/07/2021,506.06,6541-Domiciliary Care,THIRD PARTY PAYMENTS,PRIVATE CONTRACTOR,REVENUE
Walsall Council,http://opendatacommunities.org/id/metropolitan-district-council/walsall ,WC128-81,31.07.2021,ADULT SOCIAL CARE,5 CARE SERVICES LTD,20/07/2021,311.40,6541-Domiciliary Care,THIRD PARTY PAYMENTS,PRIVATE CONTRACTOR,REVENUE
Walsall Council,http://opendatacommunities.org/id/metropolitan-district-council/walsall ,WC128-82,31.07.2021,ADULT SOCIAL CARE,5 CARE SERVICES LTD,20/07/2021,"1,121.04",6541-Domiciliary Care,THIRD PARTY PAYMENTS,PRIVATE CONTRACTOR,REVENUE
Walsall Council,http://opendatacommunities.org/id/metropolitan-district-council/walsall ,WC128-83,31.07.2021,ADULT SOCIAL CARE,5 CARE SERVICES LTD,20/07/2021,311.40,6541-Domiciliary Care,THIRD PARTY PAYMENTS,PRIVATE CONTRACTOR,REVENUE
Walsall Council,http://opendatacommunities.org/id/metropolitan-district-council/walsall ,WC128-84,31.07.2021,ADULT SOCIAL CARE,5 CARE SERVICES LTD,20/07/2021,654.01,6541-Domiciliary Care,THIRD PARTY PAYMENTS,PRIVATE CONTRACTOR,REVENUE
Walsall Council,http://opendatacommunities.org/id/metropolitan-district-council/walsall ,WC128-85,31.07.2021,ADULT SOCIAL CARE,5 CARE SERVICES LTD,20/07/2021,326.97,6541-Domiciliary Care,THIRD PARTY PAYMENTS,PRIVATE CONTRACTOR,REVENUE
Walsall Council,http://opendatacommunities.org/id/metropolitan-district-council/walsall ,WC128-86,31.07.2021,ADULT SOCIAL CARE,5 CARE SERVICES LTD,20/07/2021,326.97,6541-Domiciliary Care,THIRD PARTY PAYMENTS,PRIVATE CONTRACTOR,REVENUE
Walsall Council,http://opendatacommunities.org/id/metropolitan-district-council/walsall ,WC128-87,31.07.2021,ADULT SOCIAL CARE,5 CARE SERVICES LTD,20/07/2021,490.49,6541-Domiciliary Care,THIRD PARTY PAYMENTS,PRIVATE CONTRACTOR,REVENUE
Walsall Council,http://opendatacommunities.org/id/metropolitan-district-council/walsall ,WC128-88,31.07.2021,ADULT SOCIAL CARE,5 CARE SERVICES LTD,20/07/2021,544.95,6541-Domiciliary Care,THIRD PARTY PAYMENTS,PRIVATE CONTRACTOR,REVENUE
Walsall Council,http://opendatacommunities.org/id/metropolitan-district-council/walsall ,WC128-89,31.07.2021,ADULT SOCIAL CARE,5 CARE SERVICES LTD,20/07/2021,490.49,6541-Domiciliary Care,THIRD PARTY PAYMENTS,PRIVATE CONTRACTOR,REVENUE
Walsall Council,http://opendatacommunities.org/id/metropolitan-district-council/walsall ,WC128-90,31.07.2021,ADULT SOCIAL CARE,5 CARE SERVICES LTD,20/07/2021,599.55,6541-Domiciliary Care,THIRD PARTY PAYMENTS,PRIVATE CONTRACTOR,REVENUE
Walsall Council,http://opendatacommunities.org/id/metropolitan-district-council/walsall ,WC128-91,31.07.2021,ADULT SOCIAL CARE,5 CARE SERVICES LTD,20/07/2021,490.49,6541-Domiciliary Care,THIRD PARTY PAYMENTS,PRIVATE CONTRACTOR,REVENUE
Walsall Council,http://opendatacommunities.org/id/metropolitan-district-council/walsall ,WC128-92,31.07.2021,ADULT SOCIAL CARE,5 CARE SERVICES LTD,20/07/2021,327.04,6541-Domiciliary Care,THIRD PARTY PAYMENTS,PRIVATE CONTRACTOR,REVENUE
Walsall Council,http://opendatacommunities.org/id/metropolitan-district-council/walsall ,WC128-93,31.07.2021,ADULT SOCIAL CARE,5 CARE SERVICES LTD,20/07/2021,599.48,6541-Domiciliary Care,THIRD PARTY PAYMENTS,PRIVATE CONTRACTOR,REVENUE
Walsall Council,http://opendatacommunities.org/id/metropolitan-district-council/walsall ,WC128-94,31.07.2021,ADULT SOCIAL CARE,5 CARE SERVICES LTD,20/07/2021,705.84,6541-Domiciliary Care,THIRD PARTY PAYMENTS,PRIVATE CONTRACTOR,REVENUE
Walsall Council,http://opendatacommunities.org/id/metropolitan-district-council/walsall ,WC128-95,31.07.2021,ADULT SOCIAL CARE,5 CARE SERVICES LTD,20/07/2021,257.00,6541-Domiciliary Care,THIRD PARTY PAYMENTS,PRIVATE CONTRACTOR,REVENUE
Walsall Council,http://opendatacommunities.org/id/metropolitan-district-council/walsall ,WC128-96,31.07.2021,ADULT SOCIAL CARE,5 CARE SERVICES LTD,20/07/2021,"1,198.89",6541-Domiciliary Care,THIRD PARTY PAYMENTS,PRIVATE CONTRACTOR,REVENUE
Walsall Council,http://opendatacommunities.org/id/metropolitan-district-council/walsall ,WC128-97,31.07.2021,ADULT SOCIAL CARE,5 CARE SERVICES LTD,20/07/2021,654.01,6541-Domiciliary Care,THIRD PARTY PAYMENTS,PRIVATE CONTRACTOR,REVENUE
Walsall Council,http://opendatacommunities.org/id/metropolitan-district-council/walsall ,WC128-98,31.07.2021,ADULT SOCIAL CARE,5 CARE SERVICES LTD,20/07/2021,303.72,6541-Domiciliary Care,THIRD PARTY PAYMENTS,PRIVATE CONTRACTOR,REVENUE
Walsall Council,http://opendatacommunities.org/id/metropolitan-district-council/walsall ,WC128-99,31.07.2021,ADULT SOCIAL CARE,5 CARE SERVICES LTD,20/07/2021,591.66,6541-Domiciliary Care,THIRD PARTY PAYMENTS,PRIVATE CONTRACTOR,REVENUE
Walsall Council,http://opendatacommunities.org/id/metropolitan-district-council/walsall ,WC128-100,31.07.2021,ADULT SOCIAL CARE,5 CARE SERVICES LTD,20/07/2021,657.92,6541-Domiciliary Care,THIRD PARTY PAYMENTS,PRIVATE CONTRACTOR,REVENUE
Walsall Council,http://opendatacommunities.org/id/metropolitan-district-council/walsall ,WC128-101,31.07.2021,ADULT SOCIAL CARE,5 CARE SERVICES LTD,20/07/2021,563.22,6541-Domiciliary Care,THIRD PARTY PAYMENTS,PRIVATE CONTRACTOR,REVENUE
Walsall Council,http://opendatacommunities.org/id/metropolitan-district-council/walsall ,WC128-102,31.07.2021,ADULT SOCIAL CARE,5 CARE SERVICES LTD,20/07/2021,669.51,6541-Domiciliary Care,THIRD PARTY PAYMENTS,PRIVATE CONTRACTOR,REVENUE
Walsall Council,http://opendatacommunities.org/id/metropolitan-district-council/walsall ,WC128-103,31.07.2021,ADULT SOCIAL CARE,5 CARE SERVICES LTD,20/07/2021,435.96,6541-Domiciliary Care,THIRD PARTY PAYMENTS,PRIVATE CONTRACTOR,REVENUE
Walsall Council,http://opendatacommunities.org/id/metropolitan-district-council/walsall ,WC128-104,31.07.2021,ADULT SOCIAL CARE,5 CARE SERVICES LTD,01/07/2021,685.08,6541-Domiciliary Care,THIRD PARTY PAYMENTS,PRIVATE CONTRACTOR,REVENUE
Walsall Council,http://opendatacommunities.org/id/metropolitan-district-council/walsall ,WC128-105,31.07.2021,ADULT SOCIAL CARE,5 CARE SERVICES LTD,05/07/2021,"4,149.41",6554-Professional Services-Priv Contractor & Other Agencies,THIRD PARTY PAYMENTS,PRIVATE CONTRACTOR,REVENUE
Walsall Council,http://opendatacommunities.org/id/metropolitan-district-council/walsall ,WC128-106,31.07.2021,ADULT SOCIAL CARE,5 CARE SERVICES LTD,01/07/2021,272.58,6554-Professional Services-Priv Contractor & Other Agencies,THIRD PARTY PAYMENTS,PRIVATE CONTRACTOR,REVENUE
Walsall Council,http://opendatacommunities.org/id/metropolitan-district-council/walsall ,WC128-107,31.07.2021,CHILDRENS,5 CARE SERVICES LTD,29/07/2021,701.80,6222-Professional Services-Priv Contractor & Other Agencies,THIRD PARTY PAYMENTS,PRIVATE CONTRACTOR,REVENUE
Walsall Council,http://opendatacommunities.org/id/metropolitan-district-council/walsall ,WC128-108,31.07.2021,ADULT SOCIAL CARE,5 CARE SERVICES LTD,19/07/2021,405.02,6554-Professional Services-Priv Contractor & Other Agencies,THIRD PARTY PAYMENTS,PRIVATE CONTRACTOR,REVENUE
Walsall Council,http://opendatacommunities.org/id/metropolitan-district-council/walsall ,WC128-109,31.07.2021,ADULT SOCIAL CARE,5 CARE SERVICES LTD,19/07/2021,903.49,6554-Professional Services-Priv Contractor & Other Agencies,THIRD PARTY PAYMENTS,PRIVATE CONTRACTOR,REVENUE
Walsall Council,http://opendatacommunities.org/id/metropolitan-district-council/walsall ,WC128-110,31.07.2021,ADULT SOCIAL CARE,5 CARE SERVICES LTD,19/07/2021,319.39,6554-Professional Services-Priv Contractor & Other Agencies,THIRD PARTY PAYMENTS,PRIVATE CONTRACTOR,REVENUE
Walsall Council,http://opendatacommunities.org/id/metropolitan-district-council/walsall ,WC128-111,31.07.2021,ADULT SOCIAL CARE,5 CARE SERVICES LTD,19/07/2021,373.68,6554-Professional Services-Priv Contractor & Other Agencies,THIRD PARTY PAYMENTS,PRIVATE CONTRACTOR,REVENUE
Walsall Council,http://opendatacommunities.org/id/metropolitan-district-council/walsall ,WC128-112,31.07.2021,ADULT SOCIAL CARE,5 CARE SERVICES LTD,19/07/2021,"3,616.14",6554-Professional Services-Priv Contractor & Other Agencies,THIRD PARTY PAYMENTS,PRIVATE CONTRACTOR,REVENUE
Walsall Council,http://opendatacommunities.org/id/metropolitan-district-council/walsall ,WC128-113,31.07.2021,ADULT SOCIAL CARE,5 CARE SERVICES LTD,19/07/2021,525.81,6554-Professional Services-Priv Contractor & Other Agencies,THIRD PARTY PAYMENTS,PRIVATE CONTRACTOR,REVENUE
Walsall Council,http://opendatacommunities.org/id/metropolitan-district-council/walsall ,WC128-114,31.07.2021,ADULT SOCIAL CARE,5 CARE SERVICES LTD,19/07/2021,599.73,6554-Professional Services-Priv Contractor & Other Agencies,THIRD PARTY PAYMENTS,PRIVATE CONTRACTOR,REVENUE
Walsall Council,http://opendatacommunities.org/id/metropolitan-district-council/walsall ,WC128-115,31.07.2021,ADULT SOCIAL CARE,5 CARE SERVICES LTD,28/07/2021,482.98,6554-Professional Services-Priv Contractor & Other Agencies,THIRD PARTY PAYMENTS,PRIVATE CONTRACTOR,REVENUE
Walsall Council,http://opendatacommunities.org/id/metropolitan-district-council/walsall ,WC128-116,31.07.2021,ADULT SOCIAL CARE,5 CARE SERVICES LTD,28/07/2021,981.40,6554-Professional Services-Priv Contractor & Other Agencies,THIRD PARTY PAYMENTS,PRIVATE CONTRACTOR,REVENUE
Walsall Council,http://opendatacommunities.org/id/metropolitan-district-council/walsall ,WC128-117,31.07.2021,ADULT SOCIAL CARE,5 CARE SERVICES LTD,28/07/2021,"1,014.48",6554-Professional Services-Priv Contractor & Other Agencies,THIRD PARTY PAYMENTS,PRIVATE CONTRACTOR,REVENUE
Walsall Council,http://opendatacommunities.org/id/metropolitan-district-council/walsall ,WC128-118,31.07.2021,ADULT SOCIAL CARE,5 CARE SERVICES LTD,28/07/2021,"1,728.27",6554-Professional Services-Priv Contractor & Other Agencies,THIRD PARTY PAYMENTS,PRIVATE CONTRACTOR,REVENUE
Walsall Council,http://opendatacommunities.org/id/metropolitan-district-council/walsall ,WC128-119,31.07.2021,ADULT SOCIAL CARE,5 CARE SERVICES LTD,28/07/2021,381.64,6554-Professional Services-Priv Contractor & Other Agencies,THIRD PARTY PAYMENTS,PRIVATE CONTRACTOR,REVENUE
Walsall Council,http://opendatacommunities.org/id/metropolitan-district-council/walsall ,WC128-120,31.07.2021,ADULT SOCIAL CARE,5 CARE SERVICES LTD,28/07/2021,288.16,6554-Professional Services-Priv Contractor & Other Agencies,THIRD PARTY PAYMENTS,PRIVATE CONTRACTOR,REVENUE
Walsall Council,http://opendatacommunities.org/id/metropolitan-district-council/walsall ,WC128-121,31.07.2021,ADULT SOCIAL CARE,5 CARE SERVICES LTD,28/07/2021,"1,000.82",6554-Professional Services-Priv Contractor & Other Agencies,THIRD PARTY PAYMENTS,PRIVATE CONTRACTOR,REVENUE
Walsall Council,http://opendatacommunities.org/id/metropolitan-district-council/walsall ,WC128-122,31.07.2021,ECONOMY & ENVIRONMENT,A D T FIRE AND SECURITY PLC,01/07/2021,715.90,6410-Materials,SUPPLIES & SERVICES,EQUIPMENT FURNITURE & MATERIALS,REVENUE
Walsall Council,http://opendatacommunities.org/id/metropolitan-district-council/walsall ,WC128-123,31.07.2021,RESOURCES AND TRANSFORMATION,A D T FIRE AND SECURITY PLC,13/07/2021,"1,276.81",6310-Repair & Maintenance of Furniture & Equipment,SUPPLIES & SERVICES,EQUIPMENT FURNITURE & MATERIALS,REVENUE
Walsall Council,http://opendatacommunities.org/id/metropolitan-district-council/walsall ,WC128-124,31.07.2021,RESOURCES AND TRANSFORMATION,A F BLAKEMORE & SON LTD,26/07/2021,"3,516.00",6413-Food & Drink Supplies,SUPPLIES & SERVICES,CATERING,REVENUE
Walsall Council,http://opendatacommunities.org/id/metropolitan-district-council/walsall ,WC128-125,31.07.2021,ECONOMY & ENVIRONMENT,AAINA COMMUNITY HUB,07/07/2021,"-1,619.40",6430-Grants to Other Orgs,SUPPLIES & SERVICES,GRANTS (EXP) & SUBSCRIPTIONS,REVENUE
Walsall Council,http://opendatacommunities.org/id/metropolitan-district-council/walsall ,WC128-126,31.07.2021,ECONOMY & ENVIRONMENT,AAINA COMMUNITY HUB,07/07/2021,"1,619.40",6430-Grants to Other Orgs,SUPPLIES & SERVICES,GRANTS (EXP) & SUBSCRIPTIONS,REVENUE
Walsall Council,http://opendatacommunities.org/id/metropolitan-district-council/walsall ,WC128-127,31.07.2021,ECONOMY & ENVIRONMENT,AAINA COMMUNITY HUB,08/07/2021,"1,619.40",6430-Grants to Other Orgs,SUPPLIES & SERVICES,GRANTS (EXP) & SUBSCRIPTIONS,REVENUE
Walsall Council,http://opendatacommunities.org/id/metropolitan-district-council/walsall ,WC128-128,31.07.2021,ECONOMY & ENVIRONMENT,AAINA COMMUNITY HUB,01/07/2021,"1,250.00",6430-Grants to Other Orgs,SUPPLIES & SERVICES,GRANTS (EXP) & SUBSCRIPTIONS,REVENUE
Walsall Council,http://opendatacommunities.org/id/metropolitan-district-council/walsall ,WC128-129,31.07.2021,ADULT SOCIAL CARE,ABBEY COURT NURSING & RESIDEN,05/07/2021,"2,331.08",6541-Residential EMI,THIRD PARTY PAYMENTS,PRIVATE CONTRACTOR,REVENUE
Walsall Council,http://opendatacommunities.org/id/metropolitan-district-council/walsall ,WC128-130,31.07.2021,ADULT SOCIAL CARE,ABBEY COURT NURSING & RESIDEN,05/07/2021,"2,571.08",6541-Residential EMI,THIRD PARTY PAYMENTS,PRIVATE CONTRACTOR,REVENUE
Walsall Council,http://opendatacommunities.org/id/metropolitan-district-council/walsall ,WC128-131,31.07.2021,ADULT SOCIAL CARE,ABBEY COURT NURSING & RESIDEN,05/07/2021,"2,064.44",6541-Residential,THIRD PARTY PAYMENTS,PRIVATE CONTRACTOR,REVENUE
Walsall Council,http://opendatacommunities.org/id/metropolitan-district-council/walsall ,WC128-132,31.07.2021,ADULT SOCIAL CARE,ABBEY HEALTHCARE HOMES LTD,05/07/2021,"2,396.36",6541-Residential,THIRD PARTY PAYMENTS,PRIVATE CONTRACTOR,REVENUE
Walsall Council,http://opendatacommunities.org/id/metropolitan-district-council/walsall ,WC128-133,31.07.2021,ADULT SOCIAL CARE,ABBEY HEALTHCARE HOMES LTD,05/07/2021,"3,551.56",6541-Residential,THIRD PARTY PAYMENTS,PRIVATE CONTRACTOR,REVENUE
Walsall Council,http://opendatacommunities.org/id/metropolitan-district-council/walsall ,WC128-134,31.07.2021,ADULT SOCIAL CARE,ABBEY HEALTHCARE HOMES LTD,05/07/2021,"3,133.76",6541-Residential,THIRD PARTY PAYMENTS,PRIVATE CONTRACTOR,REVENUE
Walsall Council,http://opendatacommunities.org/id/metropolitan-district-council/walsall ,WC128-135,31.07.2021,ADULT SOCIAL CARE,ABBEY HEALTHCARE HOMES LTD,05/07/2021,"3,133.76",6541-Residential,THIRD PARTY PAYMENTS,PRIVATE CONTRACTOR,REVENUE
Walsall Council,http://opendatacommunities.org/id/metropolitan-district-council/walsall ,WC128-136,31.07.2021,ADULT SOCIAL CARE,REDACTED,07/07/2021,"2,132.48",6541-Direct Payment,THIRD PARTY PAYMENTS,PRIVATE CONTRACTOR,REVENUE
Walsall Council,http://opendatacommunities.org/id/metropolitan-district-council/walsall ,WC128-137,31.07.2021,ECONOMY & ENVIRONMENT,ABLE INVESTIGATIONS & ENFORCEMENTS LTD,20/07/2021,"3,580.00",6440-Professional Fees & Services,SUPPLIES & SERVICES,SERVICES,REVENUE
Walsall Council,http://opendatacommunities.org/id/metropolitan-district-council/walsall ,WC128-138,31.07.2021,CHILDRENS,ABLEWELL CARS,19/07/2021,"1,664.00",6241-Hire of Vehicle with Driver,TRANSPORT,DIRECT TRANSPORT COSTS,REVENUE
Walsall Council,http://opendatacommunities.org/id/metropolitan-district-council/walsall ,WC128-139,31.07.2021,CHILDRENS,ABLEWELL CARS,19/07/2021,876.00,6241-Hire of Vehicle with Driver,TRANSPORT,DIRECT TRANSPORT COSTS,REVENUE
Walsall Council,http://opendatacommunities.org/id/metropolitan-district-council/walsall ,WC128-140,31.07.2021,CHILDRENS,ABLEWELL CARS,19/07/2021,"1,003.20",6241-Hire of Vehicle with Driver,TRANSPORT,DIRECT TRANSPORT COSTS,REVENUE
Walsall Council,http://opendatacommunities.org/id/metropolitan-district-council/walsall ,WC128-141,31.07.2021,CHILDRENS,ABLEWELL CARS,19/07/2021,"2,190.00",6241-Hire of Vehicle with Driver,TRANSPORT,DIRECT TRANSPORT COSTS,REVENUE
Walsall Council,http://opendatacommunities.org/id/metropolitan-district-council/walsall ,WC128-142,31.07.2021,CHILDRENS,ABLEWELL CARS,19/07/2021,"1,323.60",6241-Hire of Vehicle with Driver,TRANSPORT,DIRECT TRANSPORT COSTS,REVENUE
Walsall Council,http://opendatacommunities.org/id/metropolitan-district-council/walsall ,WC128-143,31.07.2021,CHILDRENS,ABLEWELL CARS,19/07/2021,984.00,6241-Hire of Vehicle with Driver,TRANSPORT,DIRECT TRANSPORT COSTS,REVENUE
Walsall Council,http://opendatacommunities.org/id/metropolitan-district-council/walsall ,WC128-144,31.07.2021,CHILDRENS,ABLEWELL CARS,19/07/2021,"1,882.40",6241-Hire of Vehicle with Driver,TRANSPORT,DIRECT TRANSPORT COSTS,REVENUE
Walsall Council,http://opendatacommunities.org/id/metropolitan-district-council/walsall ,WC128-145,31.07.2021,CHILDRENS,ABLEWELL CARS,19/07/2021,"1,144.80",6241-Hire of Vehicle with Driver,TRANSPORT,DIRECT TRANSPORT COSTS,REVENUE
Walsall Council,http://opendatacommunities.org/id/metropolitan-district-council/walsall ,WC128-146,31.07.2021,CHILDRENS,ABS TAXIS (ALDRIDGE),19/07/2021,"1,200.00",6241-Hire of Vehicle with Driver,TRANSPORT,DIRECT TRANSPORT COSTS,REVENUE
Walsall Council,http://opendatacommunities.org/id/metropolitan-district-council/walsall ,WC128-147,31.07.2021,CHILDRENS,ABS TAXIS (ALDRIDGE),19/07/2021,"1,476.40",6241-Hire of Vehicle with Driver,TRANSPORT,DIRECT TRANSPORT COSTS,REVENUE
Walsall Council,http://opendatacommunities.org/id/metropolitan-district-council/walsall ,WC128-148,31.07.2021,CHILDRENS,ABS TAXIS (ALDRIDGE),19/07/2021,"2,399.40",6241-Hire of Vehicle with Driver,TRANSPORT,DIRECT TRANSPORT COSTS,REVENUE
Walsall Council,http://opendatacommunities.org/id/metropolitan-district-council/walsall ,WC128-149,31.07.2021,CHILDRENS,ABS TAXIS (ALDRIDGE),19/07/2021,"2,105.80",6241-Hire of Vehicle with Driver,TRANSPORT,DIRECT TRANSPORT COSTS,REVENUE
Walsall Council,http://opendatacommunities.org/id/metropolitan-district-council/walsall ,WC128-150,31.07.2021,CHILDRENS,ABU BAKR NURSERY,15/07/2021,320.00,1184-Transfer Payments-Other Schoolchildren/Student Related Items,TRANSFER PAYMENTS,SCHOOLCHILDREN/STUDENTS,REVENUE
Walsall Council,http://opendatacommunities.org/id/metropolitan-district-council/walsall ,WC128-151,31.07.2021,ECONOMY & ENVIRONMENT,AC OPTICS LTD,19/07/2021,996.82,6313-Grants to Other Orgs,SUPPLIES & SERVICES,GRANTS (EXP) & SUBSCRIPTIONS,REVENUE
Walsall Council,http://opendatacommunities.org/id/metropolitan-district-council/walsall ,WC128-152,31.07.2021,ECONOMY & ENVIRONMENT,AC OPTICS LTD,22/07/2021,996.82,6313-Grants to Other Orgs,SUPPLIES & SERVICES,GRANTS (EXP) & SUBSCRIPTIONS,REVENUE
Walsall Council,http://opendatacommunities.org/id/metropolitan-district-council/walsall ,WC128-153,31.07.2021,CHILDRENS,ACCALIA CARE SERVICES LTD,12/07/2021,"19,980.00",6223-External Residential Care-Oth Agency Provision,THIRD PARTY PAYMENTS,PRIVATE CONTRACTOR,REVENUE
Walsall Council,http://opendatacommunities.org/id/metropolitan-district-council/walsall ,WC128-154,31.07.2021,CHILDRENS,ACCOMPANIED CARE,13/07/2021,"3,573.90",6223-Accommodation and Related Costs-Assistance to S/S Clients,TRANSFER PAYMENTS,ADULT SOCIAL SERVICES CLIENT,REVENUE
Walsall Council,http://opendatacommunities.org/id/metropolitan-district-council/walsall ,WC128-155,31.07.2021,ADULT SOCIAL CARE,ACCOMPLISH GROUP LTD,05/07/2021,"7,881.48",6541-Residential,THIRD PARTY PAYMENTS,PRIVATE CONTRACTOR,REVENUE
Walsall Council,http://opendatacommunities.org/id/metropolitan-district-council/walsall ,WC128-156,31.07.2021,ADULT SOCIAL CARE,ACCORD HOUSING ASSOCIATION LIMITED - HOBS MEADOW,05/07/2021,"4,706.24",6541-Residential,THIRD PARTY PAYMENTS,PRIVATE CONTRACTOR,REVENUE
Walsall Council,http://opendatacommunities.org/id/metropolitan-district-council/walsall ,WC128-157,31.07.2021,ADULT SOCIAL CARE,ACCORD HOUSING ASSOCIATION LIMITED - HOBS MEADOW,05/07/2021,"4,706.24",6541-Residential,THIRD PARTY PAYMENTS,PRIVATE CONTRACTOR,REVENUE
Walsall Council,http://opendatacommunities.org/id/metropolitan-district-council/walsall ,WC128-158,31.07.2021,ADULT SOCIAL CARE,ACCORD HOUSING ASSOCIATION LIMITED - HOBS MEADOW,05/07/2021,"4,706.24",6541-Residential,THIRD PARTY PAYMENTS,PRIVATE CONTRACTOR,REVENUE
Walsall Council,http://opendatacommunities.org/id/metropolitan-district-council/walsall ,WC128-159,31.07.2021,ADULT SOCIAL CARE,ACCORD HOUSING ASSOCIATION LIMITED - HOBS MEADOW,05/07/2021,"4,706.24",6541-Residential,THIRD PARTY PAYMENTS,PRIVATE CONTRACTOR,REVENUE
Walsall Council,http://opendatacommunities.org/id/metropolitan-district-council/walsall ,WC128-160,31.07.2021,ADULT SOCIAL CARE,ACCORD HOUSING ASSOCIATION LTD#135,05/07/2021,"6,568.44",6541-Residential,THIRD PARTY PAYMENTS,PRIVATE CONTRACTOR,REVENUE
Walsall Council,http://opendatacommunities.org/id/metropolitan-district-council/walsall ,WC128-161,31.07.2021,ADULT SOCIAL CARE,ACCORD HOUSING ASSOCIATION LTD#135,05/07/2021,"6,568.44",6541-Residential,THIRD PARTY PAYMENTS,PRIVATE CONTRACTOR,REVENUE
Walsall Council,http://opendatacommunities.org/id/metropolitan-district-council/walsall ,WC128-162,31.07.2021,ADULT SOCIAL CARE,ACCORD HOUSING ASSOCIATION LTD#135,05/07/2021,"5,865.64",6541-Residential,THIRD PARTY PAYMENTS,PRIVATE CONTRACTOR,REVENUE
Walsall Council,http://opendatacommunities.org/id/metropolitan-district-council/walsall ,WC128-163,31.07.2021,CHILDRENS,ACCORD HOUSING ASSOCIATION LTD#135,26/07/2021,405.56,6314-Rents,PREMISES,RENTS,REVENUE
Walsall Council,http://opendatacommunities.org/id/metropolitan-district-council/walsall ,WC128-164,31.07.2021,CHILDRENS,ACCORD HOUSING ASSOCIATION LTD#135,22/07/2021,345.89,6314-Rents,PREMISES,RENTS,REVENUE
Walsall Council,http://opendatacommunities.org/id/metropolitan-district-council/walsall ,WC128-165,31.07.2021,ADULT SOCIAL CARE,ACCORD HOUSING ASSOCIATION LTD#135,20/07/2021,416.34,6541-Domiciliary Care,THIRD PARTY PAYMENTS,PRIVATE CONTRACTOR,REVENUE
Walsall Council,http://opendatacommunities.org/id/metropolitan-district-council/walsall ,WC128-166,31.07.2021,ADULT SOCIAL CARE,ACCORD HOUSING ASSOCIATION LTD#135,20/07/2021,863.52,6541-Domiciliary Care,THIRD PARTY PAYMENTS,PRIVATE CONTRACTOR,REVENUE
Walsall Council,http://opendatacommunities.org/id/metropolitan-district-council/walsall ,WC128-167,31.07.2021,ADULT SOCIAL CARE,ACCORD HOUSING ASSOCIATION LTD#135,20/07/2021,"1,465.04",6541-Domiciliary Care,THIRD PARTY PAYMENTS,PRIVATE CONTRACTOR,REVENUE
Walsall Council,http://opendatacommunities.org/id/metropolitan-district-council/walsall ,WC128-168,31.07.2021,ADULT SOCIAL CARE,ACCORD HOUSING ASSOCIATION LTD#135,20/07/2021,359.80,6541-Domiciliary Care,THIRD PARTY PAYMENTS,PRIVATE CONTRACTOR,REVENUE
Walsall Council,http://opendatacommunities.org/id/metropolitan-district-council/walsall ,WC128-169,31.07.2021,ADULT SOCIAL CARE,ACCORD HOUSING ASSOCIATION LTD#135,20/07/2021,915.04,6541-Domiciliary Care,THIRD PARTY PAYMENTS,PRIVATE CONTRACTOR,REVENUE
Walsall Council,http://opendatacommunities.org/id/metropolitan-district-council/walsall ,WC128-170,31.07.2021,ADULT SOCIAL CARE,ACCORD HOUSING ASSOCIATION LTD#135,20/07/2021,"1,439.20",6541-Domiciliary Care,THIRD PARTY PAYMENTS,PRIVATE CONTRACTOR,REVENUE
Walsall Council,http://opendatacommunities.org/id/metropolitan-district-council/walsall ,WC128-171,31.07.2021,ADULT SOCIAL CARE,ACCORD HOUSING ASSOCIATION LTD#135,20/07/2021,390.72,6541-Domiciliary Care,THIRD PARTY PAYMENTS,PRIVATE CONTRACTOR,REVENUE
Walsall Council,http://opendatacommunities.org/id/metropolitan-district-council/walsall ,WC128-172,31.07.2021,ADULT SOCIAL CARE,ACCORD HOUSING ASSOCIATION LTD#135,20/07/2021,"2,158.80",6541-Domiciliary Care,THIRD PARTY PAYMENTS,PRIVATE CONTRACTOR,REVENUE
Walsall Council,http://opendatacommunities.org/id/metropolitan-district-council/walsall ,WC128-173,31.07.2021,ADULT SOCIAL CARE,ACCORD HOUSING ASSOCIATION LTD#135,20/07/2021,"1,657.65",6541-Domiciliary Care,THIRD PARTY PAYMENTS,PRIVATE CONTRACTOR,REVENUE
Walsall Council,http://opendatacommunities.org/id/metropolitan-district-council/walsall ,WC128-174,31.07.2021,ADULT SOCIAL CARE,ACCORD HOUSING ASSOCIATION LTD#135,20/07/2021,801.98,6541-Domiciliary Care,THIRD PARTY PAYMENTS,PRIVATE CONTRACTOR,REVENUE
Walsall Council,http://opendatacommunities.org/id/metropolitan-district-council/walsall ,WC128-175,31.07.2021,ADULT SOCIAL CARE,ACCORD HOUSING ASSOCIATION LTD#135,20/07/2021,863.52,6541-Domiciliary Care,THIRD PARTY PAYMENTS,PRIVATE CONTRACTOR,REVENUE
Walsall Council,http://opendatacommunities.org/id/metropolitan-district-council/walsall ,WC128-176,31.07.2021,ADULT SOCIAL CARE,ACCORD HOUSING ASSOCIATION LTD#135,20/07/2021,709.32,6541-Domiciliary Care,THIRD PARTY PAYMENTS,PRIVATE CONTRACTOR,REVENUE
Walsall Council,http://opendatacommunities.org/id/metropolitan-district-council/walsall ,WC128-177,31.07.2021,ADULT SOCIAL CARE,ACCORD HOUSING ASSOCIATION LTD#135,20/07/2021,328.96,6541-Domiciliary Care,THIRD PARTY PAYMENTS,PRIVATE CONTRACTOR,REVENUE
Walsall Council,http://opendatacommunities.org/id/metropolitan-district-council/walsall ,WC128-178,31.07.2021,ADULT SOCIAL CARE,ACCORD HOUSING ASSOCIATION LTD#135,20/07/2021,334.12,6541-Domiciliary Care,THIRD PARTY PAYMENTS,PRIVATE CONTRACTOR,REVENUE
Walsall Council,http://opendatacommunities.org/id/metropolitan-district-council/walsall ,WC128-179,31.07.2021,ADULT SOCIAL CARE,ACCORD HOUSING ASSOCIATION LTD#135,20/07/2021,889.36,6541-Domiciliary Care,THIRD PARTY PAYMENTS,PRIVATE CONTRACTOR,REVENUE
Walsall Council,http://opendatacommunities.org/id/metropolitan-district-council/walsall ,WC128-180,31.07.2021,ADULT SOCIAL CARE,ACCORD HOUSING ASSOCIATION LTD#135,20/07/2021,323.84,6541-Domiciliary Care,THIRD PARTY PAYMENTS,PRIVATE CONTRACTOR,REVENUE
Walsall Council,http://opendatacommunities.org/id/metropolitan-district-council/walsall ,WC128-181,31.07.2021,ADULT SOCIAL CARE,ACCORD HOUSING ASSOCIATION LTD#135,20/07/2021,"1,264.48",6541-Domiciliary Care,THIRD PARTY PAYMENTS,PRIVATE CONTRACTOR,REVENUE
Walsall Council,http://opendatacommunities.org/id/metropolitan-district-council/walsall ,WC128-182,31.07.2021,ADULT SOCIAL CARE,ACCORD HOUSING ASSOCIATION LTD#135,20/07/2021,945.76,6541-Domiciliary Care,THIRD PARTY PAYMENTS,PRIVATE CONTRACTOR,REVENUE
Walsall Council,http://opendatacommunities.org/id/metropolitan-district-council/walsall ,WC128-183,31.07.2021,ADULT SOCIAL CARE,ACCORD HOUSING ASSOCIATION LTD#135,20/07/2021,528.14,6541-Domiciliary Care,THIRD PARTY PAYMENTS,PRIVATE CONTRACTOR,REVENUE
Walsall Council,http://opendatacommunities.org/id/metropolitan-district-council/walsall ,WC128-184,31.07.2021,ADULT SOCIAL CARE,ACCORD HOUSING ASSOCIATION LTD#135,20/07/2021,339.24,6541-Domiciliary Care,THIRD PARTY PAYMENTS,PRIVATE CONTRACTOR,REVENUE
Walsall Council,http://opendatacommunities.org/id/metropolitan-district-council/walsall ,WC128-185,31.07.2021,ADULT SOCIAL CARE,ACCORD HOUSING ASSOCIATION LTD#135,20/07/2021,"1,177.20",6541-Domiciliary Care,THIRD PARTY PAYMENTS,PRIVATE CONTRACTOR,REVENUE
Walsall Council,http://opendatacommunities.org/id/metropolitan-district-council/walsall ,WC128-186,31.07.2021,ADULT SOCIAL CARE,ACCORD HOUSING ASSOCIATION LTD#135,20/07/2021,452.32,6541-Domiciliary Care,THIRD PARTY PAYMENTS,PRIVATE CONTRACTOR,REVENUE
Walsall Council,http://opendatacommunities.org/id/metropolitan-district-council/walsall ,WC128-187,31.07.2021,ADULT SOCIAL CARE,ACCORD HOUSING ASSOCIATION LTD#135,20/07/2021,503.72,6541-Domiciliary Care,THIRD PARTY PAYMENTS,PRIVATE CONTRACTOR,REVENUE
Walsall Council,http://opendatacommunities.org/id/metropolitan-district-council/walsall ,WC128-188,31.07.2021,ADULT SOCIAL CARE,ACCORD HOUSING ASSOCIATION LTD#135,20/07/2021,334.10,6541-Domiciliary Care,THIRD PARTY PAYMENTS,PRIVATE CONTRACTOR,REVENUE
Walsall Council,http://opendatacommunities.org/id/metropolitan-district-council/walsall ,WC128-189,31.07.2021,ADULT SOCIAL CARE,ACCORD HOUSING ASSOCIATION LTD#135,20/07/2021,611.80,6541-Domiciliary Care,THIRD PARTY PAYMENTS,PRIVATE CONTRACTOR,REVENUE
Walsall Council,http://opendatacommunities.org/id/metropolitan-district-council/walsall ,WC128-190,31.07.2021,ADULT SOCIAL CARE,ACCORD HOUSING ASSOCIATION LTD#135,20/07/2021,"1,943.20",6541-Domiciliary Care,THIRD PARTY PAYMENTS,PRIVATE CONTRACTOR,REVENUE
Walsall Council,http://opendatacommunities.org/id/metropolitan-district-council/walsall ,WC128-191,31.07.2021,ADULT SOCIAL CARE,ACCORD HOUSING ASSOCIATION LTD#135,20/07/2021,431.76,6541-Domiciliary Care,THIRD PARTY PAYMENTS,PRIVATE CONTRACTOR,REVENUE
Walsall Council,http://opendatacommunities.org/id/metropolitan-district-council/walsall ,WC128-192,31.07.2021,ADULT SOCIAL CARE,ACCORD HOUSING ASSOCIATION LTD#135,20/07/2021,"1,110.24",6541-Domiciliary Care,THIRD PARTY PAYMENTS,PRIVATE CONTRACTOR,REVENUE
Walsall Council,http://opendatacommunities.org/id/metropolitan-district-council/walsall ,WC128-193,31.07.2021,ADULT SOCIAL CARE,ACCORD HOUSING ASSOCIATION LTD#135,20/07/2021,719.60,6541-Domiciliary Care,THIRD PARTY PAYMENTS,PRIVATE CONTRACTOR,REVENUE
Walsall Council,http://opendatacommunities.org/id/metropolitan-district-council/walsall ,WC128-194,31.07.2021,ADULT SOCIAL CARE,ACCORD HOUSING ASSOCIATION LTD#135,20/07/2021,863.52,6541-Domiciliary Care,THIRD PARTY PAYMENTS,PRIVATE CONTRACTOR,REVENUE
Walsall Council,http://opendatacommunities.org/id/metropolitan-district-council/walsall ,WC128-195,31.07.2021,ADULT SOCIAL CARE,ACCORD HOUSING ASSOCIATION LTD#135,20/07/2021,421.48,6541-Domiciliary Care,THIRD PARTY PAYMENTS,PRIVATE CONTRACTOR,REVENUE
Walsall Council,http://opendatacommunities.org/id/metropolitan-district-council/walsall ,WC128-196,31.07.2021,ADULT SOCIAL CARE,ACCORD HOUSING ASSOCIATION LTD#135,20/07/2021,"2,447.20",6541-Domiciliary Care,THIRD PARTY PAYMENTS,PRIVATE CONTRACTOR,REVENUE
Walsall Council,http://opendatacommunities.org/id/metropolitan-district-council/walsall ,WC128-197,31.07.2021,ADULT SOCIAL CARE,ACCORD HOUSING ASSOCIATION LTD#135,20/07/2021,"1,714.47",6541-Domiciliary Care,THIRD PARTY PAYMENTS,PRIVATE CONTRACTOR,REVENUE
Walsall Council,http://opendatacommunities.org/id/metropolitan-district-council/walsall ,WC128-198,31.07.2021,ADULT SOCIAL CARE,ACCORD HOUSING ASSOCIATION LTD#135,20/07/2021,832.68,6541-Domiciliary Care,THIRD PARTY PAYMENTS,PRIVATE CONTRACTOR,REVENUE
Walsall Council,http://opendatacommunities.org/id/metropolitan-district-council/walsall ,WC128-199,31.07.2021,ADULT SOCIAL CARE,ACCORD HOUSING ASSOCIATION LTD#135,20/07/2021,771.00,6541-Domiciliary Care,THIRD PARTY PAYMENTS,PRIVATE CONTRACTOR,REVENUE
Walsall Council,http://opendatacommunities.org/id/metropolitan-district-council/walsall ,WC128-200,31.07.2021,ADULT SOCIAL CARE,ACCORD HOUSING ASSOCIATION LTD#135,20/07/2021,"2,285.92",6541-Domiciliary Care,THIRD PARTY PAYMENTS,PRIVATE CONTRACTOR,REVENUE
Walsall Council,http://opendatacommunities.org/id/metropolitan-district-council/walsall ,WC128-201,31.07.2021,ADULT SOCIAL CARE,ACCORD HOUSING ASSOCIATION LTD#135,20/07/2021,431.76,6541-Domiciliary Care,THIRD PARTY PAYMENTS,PRIVATE CONTRACTOR,REVENUE
Walsall Council,http://opendatacommunities.org/id/metropolitan-district-council/walsall ,WC128-202,31.07.2021,ADULT SOCIAL CARE,ACCORD HOUSING ASSOCIATION LTD#135,20/07/2021,462.68,6541-Domiciliary Care,THIRD PARTY PAYMENTS,PRIVATE CONTRACTOR,REVENUE
Walsall Council,http://opendatacommunities.org/id/metropolitan-district-council/walsall ,WC128-203,31.07.2021,ADULT SOCIAL CARE,ACCORD HOUSING ASSOCIATION LTD#135,20/07/2021,992.16,6541-Domiciliary Care,THIRD PARTY PAYMENTS,PRIVATE CONTRACTOR,REVENUE
Walsall Council,http://opendatacommunities.org/id/metropolitan-district-council/walsall ,WC128-204,31.07.2021,ADULT SOCIAL CARE,ACCORD HOUSING ASSOCIATION LTD#135,20/07/2021,503.72,6541-Domiciliary Care,THIRD PARTY PAYMENTS,PRIVATE CONTRACTOR,REVENUE
Walsall Council,http://opendatacommunities.org/id/metropolitan-district-council/walsall ,WC128-205,31.07.2021,ADULT SOCIAL CARE,ACCORD HOUSING ASSOCIATION LTD#135,20/07/2021,287.84,6541-Domiciliary Care,THIRD PARTY PAYMENTS,PRIVATE CONTRACTOR,REVENUE
Walsall Council,http://opendatacommunities.org/id/metropolitan-district-council/walsall ,WC128-206,31.07.2021,ADULT SOCIAL CARE,ACCORD HOUSING ASSOCIATION LTD#135,20/07/2021,493.44,6541-Domiciliary Care,THIRD PARTY PAYMENTS,PRIVATE CONTRACTOR,REVENUE
Walsall Council,http://opendatacommunities.org/id/metropolitan-district-council/walsall ,WC128-207,31.07.2021,ADULT SOCIAL CARE,ACCORD HOUSING ASSOCIATION LTD#135,20/07/2021,"1,788.80",6541-Domiciliary Care,THIRD PARTY PAYMENTS,PRIVATE CONTRACTOR,REVENUE
Walsall Council,http://opendatacommunities.org/id/metropolitan-district-council/walsall ,WC128-208,31.07.2021,ADULT SOCIAL CARE,ACCORD HOUSING ASSOCIATION LTD#135,20/07/2021,287.84,6541-Domiciliary Care,THIRD PARTY PAYMENTS,PRIVATE CONTRACTOR,REVENUE
Walsall Council,http://opendatacommunities.org/id/metropolitan-district-council/walsall ,WC128-209,31.07.2021,ADULT SOCIAL CARE,ACCORD HOUSING ASSOCIATION LTD#135,20/07/2021,637.36,6541-Domiciliary Care,THIRD PARTY PAYMENTS,PRIVATE CONTRACTOR,REVENUE
Walsall Council,http://opendatacommunities.org/id/metropolitan-district-council/walsall ,WC128-210,31.07.2021,ADULT SOCIAL CARE,ACCORD HOUSING ASSOCIATION LTD#135,20/07/2021,524.28,6541-Domiciliary Care,THIRD PARTY PAYMENTS,PRIVATE CONTRACTOR,REVENUE
Walsall Council,http://opendatacommunities.org/id/metropolitan-district-council/walsall ,WC128-211,31.07.2021,ADULT SOCIAL CARE,ACCORD HOUSING ASSOCIATION LTD#135,20/07/2021,719.60,6541-Domiciliary Care,THIRD PARTY PAYMENTS,PRIVATE CONTRACTOR,REVENUE
Walsall Council,http://opendatacommunities.org/id/metropolitan-district-council/walsall ,WC128-212,31.07.2021,ADULT SOCIAL CARE,ACCORD HOUSING ASSOCIATION LTD#135,20/07/2021,"1,177.20",6541-Domiciliary Care,THIRD PARTY PAYMENTS,PRIVATE CONTRACTOR,REVENUE
Walsall Council,http://opendatacommunities.org/id/metropolitan-district-council/walsall ,WC128-213,31.07.2021,ADULT SOCIAL CARE,ACCORD HOUSING ASSOCIATION LTD#135,20/07/2021,452.32,6541-Domiciliary Care,THIRD PARTY PAYMENTS,PRIVATE CONTRACTOR,REVENUE
Walsall Council,http://opendatacommunities.org/id/metropolitan-district-council/walsall ,WC128-214,31.07.2021,ADULT SOCIAL CARE,ACCORD HOUSING ASSOCIATION LTD#135,20/07/2021,503.72,6541-Domiciliary Care,THIRD PARTY PAYMENTS,PRIVATE CONTRACTOR,REVENUE
Walsall Council,http://opendatacommunities.org/id/metropolitan-district-council/walsall ,WC128-215,31.07.2021,ADULT SOCIAL CARE,ACCORD HOUSING ASSOCIATION LTD#135,20/07/2021,"1,943.20",6541-Domiciliary Care,THIRD PARTY PAYMENTS,PRIVATE CONTRACTOR,REVENUE
Walsall Council,http://opendatacommunities.org/id/metropolitan-district-council/walsall ,WC128-216,31.07.2021,ADULT SOCIAL CARE,ACCORD HOUSING ASSOCIATION LTD#135,20/07/2021,416.34,6541-Domiciliary Care,THIRD PARTY PAYMENTS,PRIVATE CONTRACTOR,REVENUE
Walsall Council,http://opendatacommunities.org/id/metropolitan-district-council/walsall ,WC128-217,31.07.2021,ADULT SOCIAL CARE,ACCORD HOUSING ASSOCIATION LTD#135,20/07/2021,"1,048.56",6541-Domiciliary Care,THIRD PARTY PAYMENTS,PRIVATE CONTRACTOR,REVENUE
Walsall Council,http://opendatacommunities.org/id/metropolitan-district-council/walsall ,WC128-218,31.07.2021,ADULT SOCIAL CARE,ACCORD HOUSING ASSOCIATION LTD#135,20/07/2021,719.60,6541-Domiciliary Care,THIRD PARTY PAYMENTS,PRIVATE CONTRACTOR,REVENUE
Walsall Council,http://opendatacommunities.org/id/metropolitan-district-council/walsall ,WC128-219,31.07.2021,ADULT SOCIAL CARE,ACCORD HOUSING ASSOCIATION LTD#135,20/07/2021,863.52,6541-Domiciliary Care,THIRD PARTY PAYMENTS,PRIVATE CONTRACTOR,REVENUE
Walsall Council,http://opendatacommunities.org/id/metropolitan-district-council/walsall ,WC128-220,31.07.2021,ADULT SOCIAL CARE,ACCORD HOUSING ASSOCIATION LTD#135,20/07/2021,421.48,6541-Domiciliary Care,THIRD PARTY PAYMENTS,PRIVATE CONTRACTOR,REVENUE
Walsall Council,http://opendatacommunities.org/id/metropolitan-district-council/walsall ,WC128-221,31.07.2021,ADULT SOCIAL CARE,ACCORD HOUSING ASSOCIATION LTD#135,20/07/2021,"2,447.20",6541-Domiciliary Care,THIRD PARTY PAYMENTS,PRIVATE CONTRACTOR,REVENUE
Walsall Council,http://opendatacommunities.org/id/metropolitan-district-council/walsall ,WC128-222,31.07.2021,ADULT SOCIAL CARE,ACCORD HOUSING ASSOCIATION LTD#135,20/07/2021,"1,768.44",6541-Domiciliary Care,THIRD PARTY PAYMENTS,PRIVATE CONTRACTOR,REVENUE
Walsall Council,http://opendatacommunities.org/id/metropolitan-district-council/walsall ,WC128-223,31.07.2021,ADULT SOCIAL CARE,ACCORD HOUSING ASSOCIATION LTD#135,20/07/2021,925.20,6541-Domiciliary Care,THIRD PARTY PAYMENTS,PRIVATE CONTRACTOR,REVENUE
Walsall Council,http://opendatacommunities.org/id/metropolitan-district-council/walsall ,WC128-224,31.07.2021,ADULT SOCIAL CARE,ACCORD HOUSING ASSOCIATION LTD#135,20/07/2021,431.76,6541-Domiciliary Care,THIRD PARTY PAYMENTS,PRIVATE CONTRACTOR,REVENUE
Walsall Council,http://opendatacommunities.org/id/metropolitan-district-council/walsall ,WC128-225,31.07.2021,ADULT SOCIAL CARE,ACCORD HOUSING ASSOCIATION LTD#135,20/07/2021,462.68,6541-Domiciliary Care,THIRD PARTY PAYMENTS,PRIVATE CONTRACTOR,REVENUE
Walsall Council,http://opendatacommunities.org/id/metropolitan-district-council/walsall ,WC128-226,31.07.2021,ADULT SOCIAL CARE,ACCORD HOUSING ASSOCIATION LTD#135,20/07/2021,992.16,6541-Domiciliary Care,THIRD PARTY PAYMENTS,PRIVATE CONTRACTOR,REVENUE
Walsall Council,http://opendatacommunities.org/id/metropolitan-district-council/walsall ,WC128-227,31.07.2021,ADULT SOCIAL CARE,ACCORD HOUSING ASSOCIATION LTD#135,20/07/2021,406.06,6541-Domiciliary Care,THIRD PARTY PAYMENTS,PRIVATE CONTRACTOR,REVENUE
Walsall Council,http://opendatacommunities.org/id/metropolitan-district-council/walsall ,WC128-228,31.07.2021,ADULT SOCIAL CARE,ACCORD HOUSING ASSOCIATION LTD#135,20/07/2021,287.84,6541-Domiciliary Care,THIRD PARTY PAYMENTS,PRIVATE CONTRACTOR,REVENUE
Walsall Council,http://opendatacommunities.org/id/metropolitan-district-council/walsall ,WC128-229,31.07.2021,ADULT SOCIAL CARE,ACCORD HOUSING ASSOCIATION LTD#135,20/07/2021,493.44,6541-Domiciliary Care,THIRD PARTY PAYMENTS,PRIVATE CONTRACTOR,REVENUE
Walsall Council,http://opendatacommunities.org/id/metropolitan-district-council/walsall ,WC128-230,31.07.2021,ADULT SOCIAL CARE,ACCORD HOUSING ASSOCIATION LTD#135,20/07/2021,"1,788.80",6541-Domiciliary Care,THIRD PARTY PAYMENTS,PRIVATE CONTRACTOR,REVENUE
Walsall Council,http://opendatacommunities.org/id/metropolitan-district-council/walsall ,WC128-231,31.07.2021,ADULT SOCIAL CARE,ACCORD HOUSING ASSOCIATION LTD#135,20/07/2021,287.84,6541-Domiciliary Care,THIRD PARTY PAYMENTS,PRIVATE CONTRACTOR,REVENUE
Walsall Council,http://opendatacommunities.org/id/metropolitan-district-council/walsall ,WC128-232,31.07.2021,ADULT SOCIAL CARE,ACCORD HOUSING ASSOCIATION LTD#135,20/07/2021,637.36,6541-Domiciliary Care,THIRD PARTY PAYMENTS,PRIVATE CONTRACTOR,REVENUE
Walsall Council,http://opendatacommunities.org/id/metropolitan-district-council/walsall ,WC128-233,31.07.2021,ADULT SOCIAL CARE,ACCORD HOUSING ASSOCIATION LTD#135,20/07/2021,524.28,6541-Domiciliary Care,THIRD PARTY PAYMENTS,PRIVATE CONTRACTOR,REVENUE
Walsall Council,http://opendatacommunities.org/id/metropolitan-district-council/walsall ,WC128-234,31.07.2021,ADULT SOCIAL CARE,ACCORD HOUSING ASSOCIATION LTD#135,20/07/2021,719.60,6541-Domiciliary Care,THIRD PARTY PAYMENTS,PRIVATE CONTRACTOR,REVENUE
Walsall Council,http://opendatacommunities.org/id/metropolitan-district-council/walsall ,WC128-235,31.07.2021,ADULT SOCIAL CARE,ACCORD HOUSING ASSOCIATION LTD#135,20/07/2021,"1,218.32",6541-Domiciliary Care,THIRD PARTY PAYMENTS,PRIVATE CONTRACTOR,REVENUE
Walsall Council,http://opendatacommunities.org/id/metropolitan-district-council/walsall ,WC128-236,31.07.2021,CHILDRENS,ACCORD HOUSING ASSOCIATION LTD#135,13/07/2021,"47,217.50",6314-Professional Services-Priv Contractor & Other Agencies,THIRD PARTY PAYMENTS,PRIVATE CONTRACTOR,REVENUE
Walsall Council,http://opendatacommunities.org/id/metropolitan-district-council/walsall ,WC128-237,31.07.2021,CHILDRENS,ACCORD HOUSING ASSOCIATION LTD#135,30/07/2021,"30,348.50",6314-Professional Fees & Services,SUPPLIES & SERVICES,SERVICES,REVENUE
Walsall Council,http://opendatacommunities.org/id/metropolitan-district-council/walsall ,WC128-238,31.07.2021,CHILDRENS,ACCORD HOUSING ASSOCIATION LTD#135,30/07/2021,"30,348.50",6314-Professional Fees & Services,SUPPLIES & SERVICES,SERVICES,REVENUE
Walsall Council,http://opendatacommunities.org/id/metropolitan-district-council/walsall ,WC128-239,31.07.2021,CHILDRENS,ACCORD HOUSING ASSOCIATION LTD#135,30/07/2021,"30,348.50",6314-Professional Fees & Services,SUPPLIES & SERVICES,SERVICES,REVENUE
Walsall Council,http://opendatacommunities.org/id/metropolitan-district-council/walsall ,WC128-240,31.07.2021,CHILDRENS,ACE CARS & MINIBUSES LTD,19/07/2021,"1,570.00",6241-Hire of Vehicle with Driver,TRANSPORT,DIRECT TRANSPORT COSTS,REVENUE
Walsall Council,http://opendatacommunities.org/id/metropolitan-district-council/walsall ,WC128-241,31.07.2021,CHILDRENS,ACE CARS & MINIBUSES LTD,19/07/2021,"1,560.00",6241-Hire of Vehicle with Driver,TRANSPORT,DIRECT TRANSPORT COSTS,REVENUE
Walsall Council,http://opendatacommunities.org/id/metropolitan-district-council/walsall ,WC128-242,31.07.2021,CHILDRENS,ACE CARS & MINIBUSES LTD,19/07/2021,"2,760.00",6241-Hire of Vehicle with Driver,TRANSPORT,DIRECT TRANSPORT COSTS,REVENUE
Walsall Council,http://opendatacommunities.org/id/metropolitan-district-council/walsall ,WC128-243,31.07.2021,CHILDRENS,ACE CARS & MINIBUSES LTD,19/07/2021,"2,070.00",6241-Hire of Vehicle with Driver,TRANSPORT,DIRECT TRANSPORT COSTS,REVENUE
Walsall Council,http://opendatacommunities.org/id/metropolitan-district-council/walsall ,WC128-244,31.07.2021,CHILDRENS,ACE CARS & MINIBUSES LTD,19/07/2021,"2,530.00",6241-Hire of Vehicle with Driver,TRANSPORT,DIRECT TRANSPORT COSTS,REVENUE
Walsall Council,http://opendatacommunities.org/id/metropolitan-district-council/walsall ,WC128-245,31.07.2021,CHILDRENS,ACE CARS & MINIBUSES LTD,19/07/2021,"2,750.00",6241-Hire of Vehicle with Driver,TRANSPORT,DIRECT TRANSPORT COSTS,REVENUE
Walsall Council,http://opendatacommunities.org/id/metropolitan-district-council/walsall ,WC128-246,31.07.2021,CHILDRENS,ACE CARS & MINIBUSES LTD,19/07/2021,"3,890.00",6241-Hire of Vehicle with Driver,TRANSPORT,DIRECT TRANSPORT COSTS,REVENUE
Walsall Council,http://opendatacommunities.org/id/metropolitan-district-council/walsall ,WC128-247,31.07.2021,CHILDRENS,ACE CARS & MINIBUSES LTD,19/07/2021,"1,000.00",6241-Hire of Vehicle with Driver,TRANSPORT,DIRECT TRANSPORT COSTS,REVENUE
Walsall Council,http://opendatacommunities.org/id/metropolitan-district-council/walsall ,WC128-248,31.07.2021,CHILDRENS,ACE CARS & MINIBUSES LTD,19/07/2021,"3,310.00",6241-Hire of Vehicle with Driver,TRANSPORT,DIRECT TRANSPORT COSTS,REVENUE
Walsall Council,http://opendatacommunities.org/id/metropolitan-district-council/walsall ,WC128-249,31.07.2021,CHILDRENS,ACE CARS & MINIBUSES LTD,19/07/2021,"1,280.00",6241-Hire of Vehicle with Driver,TRANSPORT,DIRECT TRANSPORT COSTS,REVENUE
Walsall Council,http://opendatacommunities.org/id/metropolitan-district-council/walsall ,WC128-250,31.07.2021,CHILDRENS,ACE CARS & MINIBUSES LTD,19/07/2021,"1,400.00",6241-Hire of Vehicle with Driver,TRANSPORT,DIRECT TRANSPORT COSTS,REVENUE
Walsall Council,http://opendatacommunities.org/id/metropolitan-district-council/walsall ,WC128-251,31.07.2021,CHILDRENS,ACE CARS & MINIBUSES LTD,19/07/2021,"2,070.00",6241-Hire of Vehicle with Driver,TRANSPORT,DIRECT TRANSPORT COSTS,REVENUE
Walsall Council,http://opendatacommunities.org/id/metropolitan-district-council/walsall ,WC128-252,31.07.2021,CHILDRENS,ACE CARS & MINIBUSES LTD,19/07/2021,"3,088.00",6241-Hire of Vehicle with Driver,TRANSPORT,DIRECT TRANSPORT COSTS,REVENUE
Walsall Council,http://opendatacommunities.org/id/metropolitan-district-council/walsall ,WC128-253,31.07.2021,CHILDRENS,ACE CARS & MINIBUSES LTD,19/07/2021,"1,300.00",6241-Hire of Vehicle with Driver,TRANSPORT,DIRECT TRANSPORT COSTS,REVENUE
Walsall Council,http://opendatacommunities.org/id/metropolitan-district-council/walsall ,WC128-254,31.07.2021,CHILDRENS,ACE CARS & MINIBUSES LTD,19/07/2021,"3,700.00",6241-Hire of Vehicle with Driver,TRANSPORT,DIRECT TRANSPORT COSTS,REVENUE
Walsall Council,http://opendatacommunities.org/id/metropolitan-district-council/walsall ,WC128-255,31.07.2021,CHILDRENS,ACE CARS & MINIBUSES LTD,19/07/2021,"2,185.00",6241-Hire of Vehicle with Driver,TRANSPORT,DIRECT TRANSPORT COSTS,REVENUE
Walsall Council,http://opendatacommunities.org/id/metropolitan-district-council/walsall ,WC128-256,31.07.2021,CHILDRENS,ACE CARS & MINIBUSES LTD,19/07/2021,"2,185.00",6241-Hire of Vehicle with Driver,TRANSPORT,DIRECT TRANSPORT COSTS,REVENUE
Walsall Council,http://opendatacommunities.org/id/metropolitan-district-council/walsall ,WC128-257,31.07.2021,CHILDRENS,ACE CARS & MINIBUSES LTD,19/07/2021,"2,200.00",6241-Hire of Vehicle with Driver,TRANSPORT,DIRECT TRANSPORT COSTS,REVENUE
Walsall Council,http://opendatacommunities.org/id/metropolitan-district-council/walsall ,WC128-258,31.07.2021,CHILDRENS,ACE CARS & MINIBUSES LTD,19/07/2021,"2,300.00",6241-Hire of Vehicle with Driver,TRANSPORT,DIRECT TRANSPORT COSTS,REVENUE
Walsall Council,http://opendatacommunities.org/id/metropolitan-district-council/walsall ,WC128-259,31.07.2021,CHILDRENS,ACE CARS & MINIBUSES LTD,19/07/2021,"2,530.00",6241-Hire of Vehicle with Driver,TRANSPORT,DIRECT TRANSPORT COSTS,REVENUE
Walsall Council,http://opendatacommunities.org/id/metropolitan-district-council/walsall ,WC128-260,31.07.2021,CHILDRENS,ACE CARS & MINIBUSES LTD,19/07/2021,"1,760.00",6241-Hire of Vehicle with Driver,TRANSPORT,DIRECT TRANSPORT COSTS,REVENUE
Walsall Council,http://opendatacommunities.org/id/metropolitan-district-council/walsall ,WC128-261,31.07.2021,CHILDRENS,ACE CARS & MINIBUSES LTD,19/07/2021,"2,847.00",6241-Hire of Vehicle with Driver,TRANSPORT,DIRECT TRANSPORT COSTS,REVENUE
Walsall Council,http://opendatacommunities.org/id/metropolitan-district-council/walsall ,WC128-262,31.07.2021,CHILDRENS,ACE CARS & MINIBUSES LTD,19/07/2021,"3,750.00",6241-Hire of Vehicle with Driver,TRANSPORT,DIRECT TRANSPORT COSTS,REVENUE
Walsall Council,http://opendatacommunities.org/id/metropolitan-district-council/walsall ,WC128-263,31.07.2021,CHILDRENS,ACE CARS & MINIBUSES LTD,19/07/2021,"2,565.00",6241-Hire of Vehicle with Driver,TRANSPORT,DIRECT TRANSPORT COSTS,REVENUE
Walsall Council,http://opendatacommunities.org/id/metropolitan-district-council/walsall ,WC128-264,31.07.2021,CHILDRENS,ACE CARS & MINIBUSES LTD,19/07/2021,"3,090.00",6241-Hire of Vehicle with Driver,TRANSPORT,DIRECT TRANSPORT COSTS,REVENUE
Walsall Council,http://opendatacommunities.org/id/metropolitan-district-council/walsall ,WC128-265,31.07.2021,CHILDRENS,ACE CARS & MINIBUSES LTD,19/07/2021,"1,310.00",6241-Hire of Vehicle with Driver,TRANSPORT,DIRECT TRANSPORT COSTS,REVENUE
Walsall Council,http://opendatacommunities.org/id/metropolitan-district-council/walsall ,WC128-266,31.07.2021,CHILDRENS,ACE CARS & MINIBUSES LTD,19/07/2021,"2,200.00",6241-Hire of Vehicle with Driver,TRANSPORT,DIRECT TRANSPORT COSTS,REVENUE
Walsall Council,http://opendatacommunities.org/id/metropolitan-district-council/walsall ,WC128-267,31.07.2021,CHILDRENS,ACE CARS & MINIBUSES LTD,19/07/2021,"1,840.00",6241-Hire of Vehicle with Driver,TRANSPORT,DIRECT TRANSPORT COSTS,REVENUE
Walsall Council,http://opendatacommunities.org/id/metropolitan-district-council/walsall ,WC128-268,31.07.2021,CHILDRENS,ACE CARS & MINIBUSES LTD,19/07/2021,"3,090.00",6241-Hire of Vehicle with Driver,TRANSPORT,DIRECT TRANSPORT COSTS,REVENUE
Walsall Council,http://opendatacommunities.org/id/metropolitan-district-council/walsall ,WC128-269,31.07.2021,CHILDRENS,ACE CARS & MINIBUSES LTD,19/07/2021,"2,990.00",6241-Hire of Vehicle with Driver,TRANSPORT,DIRECT TRANSPORT COSTS,REVENUE
Walsall Council,http://opendatacommunities.org/id/metropolitan-district-council/walsall ,WC128-270,31.07.2021,CHILDRENS,ACE CARS & MINIBUSES LTD,19/07/2021,480.00,6241-Hire of Vehicle with Driver,TRANSPORT,DIRECT TRANSPORT COSTS,REVENUE
Walsall Council,http://opendatacommunities.org/id/metropolitan-district-council/walsall ,WC128-271,31.07.2021,CHILDRENS,ACE CARS & MINIBUSES LTD,19/07/2021,880.00,6241-Hire of Vehicle with Driver,TRANSPORT,DIRECT TRANSPORT COSTS,REVENUE
Walsall Council,http://opendatacommunities.org/id/metropolitan-district-council/walsall ,WC128-272,31.07.2021,CHILDRENS,ACE COACHING LIMITED,15/07/2021,"3,768.00",6213-Professional Fees & Services,SUPPLIES & SERVICES,SERVICES,REVENUE
Walsall Council,http://opendatacommunities.org/id/metropolitan-district-council/walsall ,WC128-273,31.07.2021,ADULT SOCIAL CARE,ACEPAY LTD (COTTAGE NUR HOME),05/07/2021,"2,419.96",6541-Nursing,THIRD PARTY PAYMENTS,PRIVATE CONTRACTOR,REVENUE
Walsall Council,http://opendatacommunities.org/id/metropolitan-district-council/walsall ,WC128-274,31.07.2021,ADULT SOCIAL CARE,ACEPAY LTD (COTTAGE NUR HOME),05/07/2021,"2,419.96",6541-Nursing,THIRD PARTY PAYMENTS,PRIVATE CONTRACTOR,REVENUE
Walsall Council,http://opendatacommunities.org/id/metropolitan-district-council/walsall ,WC128-275,31.07.2021,ADULT SOCIAL CARE,ACEPAY LTD (COTTAGE NUR HOME),05/07/2021,259.28,6541-Nursing,THIRD PARTY PAYMENTS,PRIVATE CONTRACTOR,REVENUE
Walsall Council,http://opendatacommunities.org/id/metropolitan-district-council/walsall ,WC128-276,31.07.2021,ADULT SOCIAL CARE,ACEPAY LTD (COTTAGE NUR HOME),05/07/2021,"2,419.96",6541-Nursing,THIRD PARTY PAYMENTS,PRIVATE CONTRACTOR,REVENUE
Walsall Council,http://opendatacommunities.org/id/metropolitan-district-council/walsall ,WC128-277,31.07.2021,ADULT SOCIAL CARE,ACEPAY LTD (COTTAGE NUR HOME),05/07/2021,"2,419.96",6541-Nursing,THIRD PARTY PAYMENTS,PRIVATE CONTRACTOR,REVENUE
Walsall Council,http://opendatacommunities.org/id/metropolitan-district-council/walsall ,WC128-278,31.07.2021,ADULT SOCIAL CARE,ACEPAY LTD (COTTAGE NUR HOME),05/07/2021,"2,419.96",6541-Nursing,THIRD PARTY PAYMENTS,PRIVATE CONTRACTOR,REVENUE
Walsall Council,http://opendatacommunities.org/id/metropolitan-district-council/walsall ,WC128-279,31.07.2021,ADULT SOCIAL CARE,ACEPAY LTD (COTTAGE NUR HOME),05/07/2021,"2,419.96",6541-Nursing,THIRD PARTY PAYMENTS,PRIVATE CONTRACTOR,REVENUE
Walsall Council,http://opendatacommunities.org/id/metropolitan-district-council/walsall ,WC128-280,31.07.2021,ADULT SOCIAL CARE,ACEPAY LTD (COTTAGE NUR HOME),05/07/2021,"2,419.96",6541-Nursing,THIRD PARTY PAYMENTS,PRIVATE CONTRACTOR,REVENUE
Walsall Council,http://opendatacommunities.org/id/metropolitan-district-council/walsall ,WC128-281,31.07.2021,ADULT SOCIAL CARE,ACEPAY LTD (COTTAGE NUR HOME),05/07/2021,"2,722.96",6541-Nursing EMI,THIRD PARTY PAYMENTS,PRIVATE CONTRACTOR,REVENUE
Walsall Council,http://opendatacommunities.org/id/metropolitan-district-council/walsall ,WC128-282,31.07.2021,ADULT SOCIAL CARE,ACEPAY LTD (COTTAGE NUR HOME),05/07/2021,"2,331.08",6541-Residential EMI,THIRD PARTY PAYMENTS,PRIVATE CONTRACTOR,REVENUE
Walsall Council,http://opendatacommunities.org/id/metropolitan-district-council/walsall ,WC128-283,31.07.2021,ADULT SOCIAL CARE,ACEPAY LTD (COTTAGE NUR HOME),05/07/2021,"2,419.96",6541-Nursing,THIRD PARTY PAYMENTS,PRIVATE CONTRACTOR,REVENUE
Walsall Council,http://opendatacommunities.org/id/metropolitan-district-council/walsall ,WC128-284,31.07.2021,ADULT SOCIAL CARE,ACEPAY LTD (COTTAGE NUR HOME),05/07/2021,"2,419.96",6541-Nursing,THIRD PARTY PAYMENTS,PRIVATE CONTRACTOR,REVENUE
Walsall Council,http://opendatacommunities.org/id/metropolitan-district-council/walsall ,WC128-285,31.07.2021,ADULT SOCIAL CARE,ACEPAY LTD (COTTAGE NUR HOME),05/07/2021,"2,419.96",6541-Nursing,THIRD PARTY PAYMENTS,PRIVATE CONTRACTOR,REVENUE
Walsall Council,http://opendatacommunities.org/id/metropolitan-district-council/walsall ,WC128-286,31.07.2021,ADULT SOCIAL CARE,ACEPAY LTD (COTTAGE NUR HOME),05/07/2021,"2,419.96",6541-Nursing,THIRD PARTY PAYMENTS,PRIVATE CONTRACTOR,REVENUE
Walsall Council,http://opendatacommunities.org/id/metropolitan-district-council/walsall ,WC128-287,31.07.2021,ADULT SOCIAL CARE,ACEPAY LTD (COTTAGE NUR HOME),05/07/2021,"2,619.96",6541-Nursing,THIRD PARTY PAYMENTS,PRIVATE CONTRACTOR,REVENUE
Walsall Council,http://opendatacommunities.org/id/metropolitan-district-council/walsall ,WC128-288,31.07.2021,CHILDRENS,ACIRE CARE LTD,27/07/2021,"8,053.71",6223-Accommodation and Related Costs-Assistance to S/S Clients,TRANSFER PAYMENTS,ADULT SOCIAL SERVICES CLIENT,REVENUE
Walsall Council,http://opendatacommunities.org/id/metropolitan-district-council/walsall ,WC128-289,31.07.2021,ECONOMY & ENVIRONMENT,ACKERS ADVENTURE,08/07/2021,291.00,6430-Professional Fees & Services,SUPPLIES & SERVICES,SERVICES,REVENUE
Walsall Council,http://opendatacommunities.org/id/metropolitan-district-council/walsall ,WC128-290,31.07.2021,CHILDRENS,ACORN CARE & EDUCATION LTD (SALES),15/07/2021,"17,235.74",1220-Top Up Funding -Grants to Schools,SUPPLIES & SERVICES,GRANTS (EXP) & SUBSCRIPTIONS,REVENUE
Walsall Council,http://opendatacommunities.org/id/metropolitan-district-council/walsall ,WC128-291,31.07.2021,CHILDRENS,ACORN CARE & EDUCATION LTD (SALES),15/07/2021,"25,960.00",1220-Top Up Funding -Grants to Schools,SUPPLIES & SERVICES,GRANTS (EXP) & SUBSCRIPTIONS,REVENUE
Walsall Council,http://opendatacommunities.org/id/metropolitan-district-council/walsall ,WC128-292,31.07.2021,CHILDRENS,ACORN CARE & EDUCATION LTD (SALES),12/07/2021,"14,000.00",6223-External Residential Care-Oth Agency Provision,THIRD PARTY PAYMENTS,PRIVATE CONTRACTOR,REVENUE
Walsall Council,http://opendatacommunities.org/id/metropolitan-district-council/walsall ,WC128-293,31.07.2021,CHILDRENS,ACORN CARE & EDUCATION LTD (SALES),12/07/2021,"18,800.00",6223-External Residential Care-Oth Agency Provision,THIRD PARTY PAYMENTS,PRIVATE CONTRACTOR,REVENUE
Walsall Council,http://opendatacommunities.org/id/metropolitan-district-council/walsall ,WC128-294,31.07.2021,CHILDRENS,ACORN CARE & EDUCATION LTD (SALES),15/07/2021,"25,960.00",1220-Top Up Funding -Grants to Schools,SUPPLIES & SERVICES,GRANTS (EXP) & SUBSCRIPTIONS,REVENUE
Walsall Council,http://opendatacommunities.org/id/metropolitan-district-council/walsall ,WC128-295,31.07.2021,CHILDRENS,ACORN CARE & EDUCATION LTD (SALES),14/07/2021,"4,937.48",6223-Accommodation and Related Costs-Assistance to S/S Clients,TRANSFER PAYMENTS,ADULT SOCIAL SERVICES CLIENT,REVENUE
Walsall Council,http://opendatacommunities.org/id/metropolitan-district-council/walsall ,WC128-296,31.07.2021,CHILDRENS,ACORN CARE & EDUCATION LTD (SALES),14/07/2021,"-54,324.74",6223-Accommodation and Related Costs-Assistance to S/S Clients,TRANSFER PAYMENTS,ADULT SOCIAL SERVICES CLIENT,REVENUE
Walsall Council,http://opendatacommunities.org/id/metropolitan-district-council/walsall ,WC128-297,31.07.2021,CHILDRENS,ACORN CARE & EDUCATION LTD (SALES),14/07/2021,"53,324.74",6223-Accommodation and Related Costs-Assistance to S/S Clients,TRANSFER PAYMENTS,ADULT SOCIAL SERVICES CLIENT,REVENUE
Walsall Council,http://opendatacommunities.org/id/metropolitan-district-council/walsall ,WC128-298,31.07.2021,CHILDRENS,ACORN CARE & EDUCATION LTD (SALES),14/07/2021,"54,324.74",6223-Accommodation and Related Costs-Assistance to S/S Clients,TRANSFER PAYMENTS,ADULT SOCIAL SERVICES CLIENT,REVENUE
Walsall Council,http://opendatacommunities.org/id/metropolitan-district-council/walsall ,WC128-299,31.07.2021,CHILDRENS,ACORN CARE & EDUCATION LTD (SALES),15/07/2021,"5,649.37",1220-Professional Fees & Services,SUPPLIES & SERVICES,SERVICES,REVENUE
Walsall Council,http://opendatacommunities.org/id/metropolitan-district-council/walsall ,WC128-300,31.07.2021,CHILDRENS,ACORN CARE & EDUCATION LTD (SALES),15/07/2021,"7,666.99",1220-Professional Fees & Services,SUPPLIES & SERVICES,SERVICES,REVENUE
Walsall Council,http://opendatacommunities.org/id/metropolitan-district-council/walsall ,WC128-301,31.07.2021,CHILDRENS,ACORN CARE & EDUCATION LTD (SALES),15/07/2021,"6,052.89",1220-Professional Fees & Services,SUPPLIES & SERVICES,SERVICES,REVENUE
Walsall Council,http://opendatacommunities.org/id/metropolitan-district-council/walsall ,WC128-302,31.07.2021,CHILDRENS,ACORN CARE & EDUCATION LTD (SALES),15/07/2021,"9,281.11",1220-Professional Fees & Services,SUPPLIES & SERVICES,SERVICES,REVENUE
Walsall Council,http://opendatacommunities.org/id/metropolitan-district-council/walsall ,WC128-303,31.07.2021,CHILDRENS,ACORN CARE & EDUCATION LTD (SALES),15/07/2021,"4,438.79",1220-Professional Fees & Services,SUPPLIES & SERVICES,SERVICES,REVENUE
Walsall Council,http://opendatacommunities.org/id/metropolitan-district-council/walsall ,WC128-304,31.07.2021,CHILDRENS,ACORN CARE & EDUCATION LTD (SALES),15/07/2021,"7,667.00",1220-Professional Fees & Services,SUPPLIES & SERVICES,SERVICES,REVENUE
Walsall Council,http://opendatacommunities.org/id/metropolitan-district-council/walsall ,WC128-305,31.07.2021,CHILDRENS,ACORN CARE & EDUCATION LTD (SALES),15/07/2021,"6,859.95",1220-Professional Fees & Services,SUPPLIES & SERVICES,SERVICES,REVENUE
Walsall Council,http://opendatacommunities.org/id/metropolitan-district-council/walsall ,WC128-306,31.07.2021,CHILDRENS,ACORN FOSTERING SERVICES LTD,12/07/2021,"3,380.00",6223-Independent Foster Care-Oth Agency Provision,THIRD PARTY PAYMENTS,PRIVATE CONTRACTOR,REVENUE
Walsall Council,http://opendatacommunities.org/id/metropolitan-district-council/walsall ,WC128-307,31.07.2021,CHILDRENS,ACORNS CHILDRENS HOSPICE TRUST,13/07/2021,"1,700.00",6220-Professional Fees & Services,SUPPLIES & SERVICES,SERVICES,REVENUE
Walsall Council,http://opendatacommunities.org/id/metropolitan-district-council/walsall ,WC128-308,31.07.2021,CHILDRENS,ACTI FIT (MIDLANDS) LIMITED,15/07/2021,"15,564.80",6213-Professional Fees & Services,SUPPLIES & SERVICES,SERVICES,REVENUE
Walsall Council,http://opendatacommunities.org/id/metropolitan-district-council/walsall ,WC128-309,31.07.2021,ECONOMY & ENVIRONMENT,ACTION GRAPHICS & DISPLAY LTD,14/07/2021,488.10,6414-Outwork Print & Design,SUPPLIES & SERVICES,PRINTING STATIONERY & GENERAL OFFICE,REVENUE
Walsall Council,http://opendatacommunities.org/id/metropolitan-district-council/walsall ,WC128-310,31.07.2021,ECONOMY & ENVIRONMENT,ACTION MIDLANDS LTD,15/07/2021,323.33,6313-Other Expenses,SUPPLIES & SERVICES,EXPENSES,REVENUE
Walsall Council,http://opendatacommunities.org/id/metropolitan-district-council/walsall ,WC128-311,31.07.2021,CHILDRENS,ACTIVE CARE SOLUTIONS LTD,12/07/2021,"2,609.36",6223-Independent Foster Care-Oth Agency Provision,THIRD PARTY PAYMENTS,PRIVATE CONTRACTOR,REVENUE
Walsall Council,http://opendatacommunities.org/id/metropolitan-district-council/walsall ,WC128-312,31.07.2021,CHILDRENS,ACTIVE CARE SOLUTIONS LTD,12/07/2021,366.08,6223-Independent Foster Care-Oth Agency Provision,THIRD PARTY PAYMENTS,PRIVATE CONTRACTOR,REVENUE
Walsall Council,http://opendatacommunities.org/id/metropolitan-district-council/walsall ,WC128-313,31.07.2021,CHILDRENS CAPITAL,ACTS GROUP LTD - CHIRMARN,08/07/2021,250.00,7150-Site Works Contractors,CAPITAL,"NEW CONSTRUCTION,CONVERSION & RENOVATION",CAPITAL
Walsall Council,http://opendatacommunities.org/id/metropolitan-district-council/walsall ,WC128-314,31.07.2021,RESOURCES AND TRANSFORMATION,AD HOC UK SECURITY LTD,15/07/2021,474.00,6310-Repair & Maintenance of Furniture & Equipment,SUPPLIES & SERVICES,EQUIPMENT FURNITURE & MATERIALS,REVENUE
Walsall Council,http://opendatacommunities.org/id/metropolitan-district-council/walsall ,WC128-315,31.07.2021,RESOURCES AND TRANSFORMATION,AD HOC UK SECURITY LTD,15/07/2021,474.00,6310-Repair & Maintenance of Furniture & Equipment,SUPPLIES & SERVICES,EQUIPMENT FURNITURE & MATERIALS,REVENUE
Walsall Council,http://opendatacommunities.org/id/metropolitan-district-council/walsall ,WC128-316,31.07.2021,ADULT SOCIAL CARE,REDACTED,07/07/2021,790.88,6541-Direct Payment,THIRD PARTY PAYMENTS,PRIVATE CONTRACTOR,REVENUE
Walsall Council,http://opendatacommunities.org/id/metropolitan-district-council/walsall ,WC128-317,31.07.2021,CHILDRENS,REDACTED,28/07/2021,369.24,6223-Residents Orders,TRANSFER PAYMENTS,CHILDREN SOCIAL SERVICES CLIENT,REVENUE
Walsall Council,http://opendatacommunities.org/id/metropolitan-district-council/walsall ,WC128-318,31.07.2021,CHILDRENS,REDACTED,28/07/2021,341.24,6223-Residents Orders,TRANSFER PAYMENTS,CHILDREN SOCIAL SERVICES CLIENT,REVENUE
Walsall Council,http://opendatacommunities.org/id/metropolitan-district-council/walsall ,WC128-319,31.07.2021,ADULT SOCIAL CARE,REDACTED,07/07/2021,"2,083.20",6541-Direct Payment,THIRD PARTY PAYMENTS,PRIVATE CONTRACTOR,REVENUE
Walsall Council,http://opendatacommunities.org/id/metropolitan-district-council/walsall ,WC128-320,31.07.2021,ADULT SOCIAL CARE,ADVANCE HEALTH CARE (UK) LTD,20/07/2021,451.76,6554-Professional Services-Priv Contractor & Other Agencies,THIRD PARTY PAYMENTS,PRIVATE CONTRACTOR,REVENUE
Walsall Council,http://opendatacommunities.org/id/metropolitan-district-council/walsall ,WC128-321,31.07.2021,ADULT SOCIAL CARE,ADVANCE HEALTH CARE (UK) LTD,20/07/2021,872.36,6554-Professional Services-Priv Contractor & Other Agencies,THIRD PARTY PAYMENTS,PRIVATE CONTRACTOR,REVENUE
Walsall Council,http://opendatacommunities.org/id/metropolitan-district-council/walsall ,WC128-322,31.07.2021,ADULT SOCIAL CARE,ADVANCE HEALTH CARE (UK) LTD,20/07/2021,490.77,6554-Professional Services-Priv Contractor & Other Agencies,THIRD PARTY PAYMENTS,PRIVATE CONTRACTOR,REVENUE
Walsall Council,http://opendatacommunities.org/id/metropolitan-district-council/walsall ,WC128-323,31.07.2021,ADULT SOCIAL CARE,ADVANCE HEALTH CARE (UK) LTD,20/07/2021,"1,472.10",6554-Professional Services-Priv Contractor & Other Agencies,THIRD PARTY PAYMENTS,PRIVATE CONTRACTOR,REVENUE
Walsall Council,http://opendatacommunities.org/id/metropolitan-district-council/walsall ,WC128-324,31.07.2021,ADULT SOCIAL CARE,ADVANCE HEALTH CARE (UK) LTD,21/07/2021,537.37,6554-Professional Services-Priv Contractor & Other Agencies,THIRD PARTY PAYMENTS,PRIVATE CONTRACTOR,REVENUE
Walsall Council,http://opendatacommunities.org/id/metropolitan-district-council/walsall ,WC128-325,31.07.2021,ADULT SOCIAL CARE,ADVANCE HEALTH CARE (UK) LTD,21/07/2021,981.12,6554-Professional Services-Priv Contractor & Other Agencies,THIRD PARTY PAYMENTS,PRIVATE CONTRACTOR,REVENUE
Walsall Council,http://opendatacommunities.org/id/metropolitan-district-council/walsall ,WC128-326,31.07.2021,ADULT SOCIAL CARE,ADVANCE HEALTH CARE (UK) LTD,21/07/2021,284.29,6554-Professional Services-Priv Contractor & Other Agencies,THIRD PARTY PAYMENTS,PRIVATE CONTRACTOR,REVENUE
Walsall Council,http://opendatacommunities.org/id/metropolitan-district-council/walsall ,WC128-327,31.07.2021,ADULT SOCIAL CARE,ADVANCE HEALTH CARE (UK) LTD,21/07/2021,658.11,6554-Professional Services-Priv Contractor & Other Agencies,THIRD PARTY PAYMENTS,PRIVATE CONTRACTOR,REVENUE
Walsall Council,http://opendatacommunities.org/id/metropolitan-district-council/walsall ,WC128-328,31.07.2021,ADULT SOCIAL CARE,ADVANCE HEALTH CARE (UK) LTD,21/07/2021,802.25,6554-Professional Services-Priv Contractor & Other Agencies,THIRD PARTY PAYMENTS,PRIVATE CONTRACTOR,REVENUE
Walsall Council,http://opendatacommunities.org/id/metropolitan-district-council/walsall ,WC128-329,31.07.2021,ADULT SOCIAL CARE,ADVANCE HEALTH CARE (UK) LTD,21/07/2021,253.13,6554-Professional Services-Priv Contractor & Other Agencies,THIRD PARTY PAYMENTS,PRIVATE CONTRACTOR,REVENUE
Walsall Council,http://opendatacommunities.org/id/metropolitan-district-council/walsall ,WC128-330,31.07.2021,ADULT SOCIAL CARE,ADVANCE HEALTH CARE (UK) LTD,21/07/2021,572.09,6554-Professional Services-Priv Contractor & Other Agencies,THIRD PARTY PAYMENTS,PRIVATE CONTRACTOR,REVENUE
Walsall Council,http://opendatacommunities.org/id/metropolitan-district-council/walsall ,WC128-331,31.07.2021,ADULT SOCIAL CARE,ADVANCE HEALTH CARE (UK) LTD,21/07/2021,"1,090.48",6554-Professional Services-Priv Contractor & Other Agencies,THIRD PARTY PAYMENTS,PRIVATE CONTRACTOR,REVENUE
Walsall Council,http://opendatacommunities.org/id/metropolitan-district-council/walsall ,WC128-332,31.07.2021,ADULT SOCIAL CARE,ADVANCE HEALTH CARE (UK) LTD,21/07/2021,"2,507.40",6554-Professional Services-Priv Contractor & Other Agencies,THIRD PARTY PAYMENTS,PRIVATE CONTRACTOR,REVENUE
Walsall Council,http://opendatacommunities.org/id/metropolitan-district-council/walsall ,WC128-333,31.07.2021,ADULT SOCIAL CARE,ADVANCE HEALTH CARE (UK) LTD,21/07/2021,424.49,6554-Professional Services-Priv Contractor & Other Agencies,THIRD PARTY PAYMENTS,PRIVATE CONTRACTOR,REVENUE
Walsall Council,http://opendatacommunities.org/id/metropolitan-district-council/walsall ,WC128-334,31.07.2021,ADULT SOCIAL CARE,ADVANCE HEALTH CARE (UK) LTD,22/07/2021,942.46,6554-Professional Services-Priv Contractor & Other Agencies,THIRD PARTY PAYMENTS,PRIVATE CONTRACTOR,REVENUE
Walsall Council,http://opendatacommunities.org/id/metropolitan-district-council/walsall ,WC128-335,31.07.2021,ADULT SOCIAL CARE,ADVANCE HEALTH CARE (UK) LTD,22/07/2021,303.68,6554-Professional Services-Priv Contractor & Other Agencies,THIRD PARTY PAYMENTS,PRIVATE CONTRACTOR,REVENUE
Walsall Council,http://opendatacommunities.org/id/metropolitan-district-council/walsall ,WC128-336,31.07.2021,ADULT SOCIAL CARE,ADVANCE HEALTH CARE (UK) LTD,22/07/2021,622.42,6554-Professional Services-Priv Contractor & Other Agencies,THIRD PARTY PAYMENTS,PRIVATE CONTRACTOR,REVENUE
Walsall Council,http://opendatacommunities.org/id/metropolitan-district-council/walsall ,WC128-337,31.07.2021,ADULT SOCIAL CARE,ADVANCE HEALTH CARE (UK) LTD,22/07/2021,272.50,6554-Professional Services-Priv Contractor & Other Agencies,THIRD PARTY PAYMENTS,PRIVATE CONTRACTOR,REVENUE
Walsall Council,http://opendatacommunities.org/id/metropolitan-district-council/walsall ,WC128-338,31.07.2021,ADULT SOCIAL CARE,ADVANCE HEALTH CARE (UK) LTD,14/07/2021,"1,176.12",6554-Professional Services-Priv Contractor & Other Agencies,THIRD PARTY PAYMENTS,PRIVATE CONTRACTOR,REVENUE
Walsall Council,http://opendatacommunities.org/id/metropolitan-district-council/walsall ,WC128-339,31.07.2021,ADULT SOCIAL CARE,ADVANCE HEALTH CARE (UK) LTD,14/07/2021,475.19,6554-Professional Services-Priv Contractor & Other Agencies,THIRD PARTY PAYMENTS,PRIVATE CONTRACTOR,REVENUE
Walsall Council,http://opendatacommunities.org/id/metropolitan-district-council/walsall ,WC128-340,31.07.2021,ADULT SOCIAL CARE,ADVANCE HEALTH CARE (UK) LTD,14/07/2021,443.96,6554-Professional Services-Priv Contractor & Other Agencies,THIRD PARTY PAYMENTS,PRIVATE CONTRACTOR,REVENUE
Walsall Council,http://opendatacommunities.org/id/metropolitan-district-council/walsall ,WC128-341,31.07.2021,ADULT SOCIAL CARE,ADVANCE HEALTH CARE (UK) LTD,14/07/2021,381.71,6554-Professional Services-Priv Contractor & Other Agencies,THIRD PARTY PAYMENTS,PRIVATE CONTRACTOR,REVENUE
Walsall Council,http://opendatacommunities.org/id/metropolitan-district-council/walsall ,WC128-342,31.07.2021,ADULT SOCIAL CARE,ADVANCE HEALTH CARE (UK) LTD,13/07/2021,693.17,6554-Professional Services-Priv Contractor & Other Agencies,THIRD PARTY PAYMENTS,PRIVATE CONTRACTOR,REVENUE
Walsall Council,http://opendatacommunities.org/id/metropolitan-district-council/walsall ,WC128-343,31.07.2021,ADULT SOCIAL CARE,ADVANCE HEALTH CARE (UK) LTD,13/07/2021,295.93,6554-Professional Services-Priv Contractor & Other Agencies,THIRD PARTY PAYMENTS,PRIVATE CONTRACTOR,REVENUE
Walsall Council,http://opendatacommunities.org/id/metropolitan-district-council/walsall ,WC128-344,31.07.2021,ADULT SOCIAL CARE,ADVANCE HEALTH CARE (UK) LTD,12/07/2021,404.94,6554-Professional Services-Priv Contractor & Other Agencies,THIRD PARTY PAYMENTS,PRIVATE CONTRACTOR,REVENUE
Walsall Council,http://opendatacommunities.org/id/metropolitan-district-council/walsall ,WC128-345,31.07.2021,ADULT SOCIAL CARE,ADVANCE HEALTH CARE (UK) LTD,13/07/2021,"1,012.56",6554-Professional Services-Priv Contractor & Other Agencies,THIRD PARTY PAYMENTS,PRIVATE CONTRACTOR,REVENUE
Walsall Council,http://opendatacommunities.org/id/metropolitan-district-council/walsall ,WC128-346,31.07.2021,ADULT SOCIAL CARE,ADVANCE HEALTH CARE (UK) LTD,12/07/2021,"1,028.28",6554-Professional Services-Priv Contractor & Other Agencies,THIRD PARTY PAYMENTS,PRIVATE CONTRACTOR,REVENUE
Walsall Council,http://opendatacommunities.org/id/metropolitan-district-council/walsall ,WC128-347,31.07.2021,ADULT SOCIAL CARE,ADVANCE HEALTH CARE (UK) LTD,13/07/2021,389.50,6554-Professional Services-Priv Contractor & Other Agencies,THIRD PARTY PAYMENTS,PRIVATE CONTRACTOR,REVENUE
Walsall Council,http://opendatacommunities.org/id/metropolitan-district-council/walsall ,WC128-348,31.07.2021,ADULT SOCIAL CARE,ADVANCE HEALTH CARE (UK) LTD,13/07/2021,545.22,6554-Professional Services-Priv Contractor & Other Agencies,THIRD PARTY PAYMENTS,PRIVATE CONTRACTOR,REVENUE
Walsall Council,http://opendatacommunities.org/id/metropolitan-district-council/walsall ,WC128-349,31.07.2021,ADULT SOCIAL CARE,ADVANCE HEALTH CARE (UK) LTD,13/07/2021,292.00,6554-Professional Services-Priv Contractor & Other Agencies,THIRD PARTY PAYMENTS,PRIVATE CONTRACTOR,REVENUE
Walsall Council,http://opendatacommunities.org/id/metropolitan-district-council/walsall ,WC128-350,31.07.2021,ADULT SOCIAL CARE,ADVANCE HEALTH CARE (UK) LTD,13/07/2021,739.64,6554-Professional Services-Priv Contractor & Other Agencies,THIRD PARTY PAYMENTS,PRIVATE CONTRACTOR,REVENUE
Walsall Council,http://opendatacommunities.org/id/metropolitan-district-council/walsall ,WC128-351,31.07.2021,ADULT SOCIAL CARE,ADVANCE HEALTH CARE (UK) LTD,05/07/2021,490.49,6541-Domiciliary Care,THIRD PARTY PAYMENTS,PRIVATE CONTRACTOR,REVENUE
Walsall Council,http://opendatacommunities.org/id/metropolitan-district-council/walsall ,WC128-352,31.07.2021,ADULT SOCIAL CARE,ADVANCE HEALTH CARE (UK) LTD,05/07/2021,537.20,6541-Domiciliary Care,THIRD PARTY PAYMENTS,PRIVATE CONTRACTOR,REVENUE
Walsall Council,http://opendatacommunities.org/id/metropolitan-district-council/walsall ,WC128-353,31.07.2021,ADULT SOCIAL CARE,ADVANCE HEALTH CARE (UK) LTD,05/07/2021,311.40,6541-Domiciliary Care,THIRD PARTY PAYMENTS,PRIVATE CONTRACTOR,REVENUE
Walsall Council,http://opendatacommunities.org/id/metropolitan-district-council/walsall ,WC128-354,31.07.2021,ADULT SOCIAL CARE,ADVANCE HEALTH CARE (UK) LTD,05/07/2021,708.47,6541-Domiciliary Care,THIRD PARTY PAYMENTS,PRIVATE CONTRACTOR,REVENUE
Walsall Council,http://opendatacommunities.org/id/metropolitan-district-council/walsall ,WC128-355,31.07.2021,ADULT SOCIAL CARE,ADVANCE HEALTH CARE (UK) LTD,05/07/2021,435.96,6541-Domiciliary Care,THIRD PARTY PAYMENTS,PRIVATE CONTRACTOR,REVENUE
Walsall Council,http://opendatacommunities.org/id/metropolitan-district-council/walsall ,WC128-356,31.07.2021,ADULT SOCIAL CARE,ADVANCE HEALTH CARE (UK) LTD,05/07/2021,763.00,6541-Domiciliary Care,THIRD PARTY PAYMENTS,PRIVATE CONTRACTOR,REVENUE
Walsall Council,http://opendatacommunities.org/id/metropolitan-district-council/walsall ,WC128-357,31.07.2021,ADULT SOCIAL CARE,ADVANCE HEALTH CARE (UK) LTD,05/07/2021,397.09,6541-Domiciliary Care,THIRD PARTY PAYMENTS,PRIVATE CONTRACTOR,REVENUE
Walsall Council,http://opendatacommunities.org/id/metropolitan-district-council/walsall ,WC128-358,31.07.2021,ADULT SOCIAL CARE,ADVANCE HEALTH CARE (UK) LTD,05/07/2021,490.49,6541-Domiciliary Care,THIRD PARTY PAYMENTS,PRIVATE CONTRACTOR,REVENUE
Walsall Council,http://opendatacommunities.org/id/metropolitan-district-council/walsall ,WC128-359,31.07.2021,ADULT SOCIAL CARE,ADVANCE HEALTH CARE (UK) LTD,05/07/2021,871.92,6541-Domiciliary Care,THIRD PARTY PAYMENTS,PRIVATE CONTRACTOR,REVENUE
Walsall Council,http://opendatacommunities.org/id/metropolitan-district-council/walsall ,WC128-360,31.07.2021,ADULT SOCIAL CARE,ADVANCE HEALTH CARE (UK) LTD,05/07/2021,326.97,6541-Domiciliary Care,THIRD PARTY PAYMENTS,PRIVATE CONTRACTOR,REVENUE
Walsall Council,http://opendatacommunities.org/id/metropolitan-district-council/walsall ,WC128-361,31.07.2021,ADULT SOCIAL CARE,ADVANCE HEALTH CARE (UK) LTD,05/07/2021,381.50,6541-Domiciliary Care,THIRD PARTY PAYMENTS,PRIVATE CONTRACTOR,REVENUE
Walsall Council,http://opendatacommunities.org/id/metropolitan-district-council/walsall ,WC128-362,31.07.2021,ADULT SOCIAL CARE,ADVANCE HEALTH CARE (UK) LTD,05/07/2021,506.06,6541-Domiciliary Care,THIRD PARTY PAYMENTS,PRIVATE CONTRACTOR,REVENUE
Walsall Council,http://opendatacommunities.org/id/metropolitan-district-council/walsall ,WC128-363,31.07.2021,ADULT SOCIAL CARE,ADVANCE HEALTH CARE (UK) LTD,05/07/2021,435.96,6541-Domiciliary Care,THIRD PARTY PAYMENTS,PRIVATE CONTRACTOR,REVENUE
Walsall Council,http://opendatacommunities.org/id/metropolitan-district-council/walsall ,WC128-364,31.07.2021,ADULT SOCIAL CARE,ADVANCE HEALTH CARE (UK) LTD,05/07/2021,490.49,6541-Domiciliary Care,THIRD PARTY PAYMENTS,PRIVATE CONTRACTOR,REVENUE
Walsall Council,http://opendatacommunities.org/id/metropolitan-district-council/walsall ,WC128-365,31.07.2021,ADULT SOCIAL CARE,ADVANCE HEALTH CARE (UK) LTD,05/07/2021,363.30,6541-Domiciliary Care,THIRD PARTY PAYMENTS,PRIVATE CONTRACTOR,REVENUE
Walsall Council,http://opendatacommunities.org/id/metropolitan-district-council/walsall ,WC128-366,31.07.2021,ADULT SOCIAL CARE,ADVANCE HEALTH CARE (UK) LTD,05/07/2021,490.49,6541-Domiciliary Care,THIRD PARTY PAYMENTS,PRIVATE CONTRACTOR,REVENUE
Walsall Council,http://opendatacommunities.org/id/metropolitan-district-council/walsall ,WC128-367,31.07.2021,ADULT SOCIAL CARE,ADVANCE HEALTH CARE (UK) LTD,05/07/2021,490.49,6541-Domiciliary Care,THIRD PARTY PAYMENTS,PRIVATE CONTRACTOR,REVENUE
Walsall Council,http://opendatacommunities.org/id/metropolitan-district-council/walsall ,WC128-368,31.07.2021,ADULT SOCIAL CARE,ADVANCE HEALTH CARE (UK) LTD,05/07/2021,490.49,6541-Domiciliary Care,THIRD PARTY PAYMENTS,PRIVATE CONTRACTOR,REVENUE
Walsall Council,http://opendatacommunities.org/id/metropolitan-district-council/walsall ,WC128-369,31.07.2021,ADULT SOCIAL CARE,ADVANCE HEALTH CARE (UK) LTD,05/07/2021,490.49,6541-Domiciliary Care,THIRD PARTY PAYMENTS,PRIVATE CONTRACTOR,REVENUE
Walsall Council,http://opendatacommunities.org/id/metropolitan-district-council/walsall ,WC128-370,31.07.2021,ADULT SOCIAL CARE,ADVANCE HEALTH CARE (UK) LTD,05/07/2021,435.96,6541-Domiciliary Care,THIRD PARTY PAYMENTS,PRIVATE CONTRACTOR,REVENUE
Walsall Council,http://opendatacommunities.org/id/metropolitan-district-council/walsall ,WC128-371,31.07.2021,ADULT SOCIAL CARE,ADVANCE HEALTH CARE (UK) LTD,05/07/2021,544.95,6541-Domiciliary Care,THIRD PARTY PAYMENTS,PRIVATE CONTRACTOR,REVENUE
Walsall Council,http://opendatacommunities.org/id/metropolitan-district-council/walsall ,WC128-372,31.07.2021,ADULT SOCIAL CARE,ADVANCE HEALTH CARE (UK) LTD,05/07/2021,435.96,6541-Domiciliary Care,THIRD PARTY PAYMENTS,PRIVATE CONTRACTOR,REVENUE
Walsall Council,http://opendatacommunities.org/id/metropolitan-district-council/walsall ,WC128-373,31.07.2021,ADULT SOCIAL CARE,ADVANCE HEALTH CARE (UK) LTD,05/07/2021,363.30,6541-Domiciliary Care,THIRD PARTY PAYMENTS,PRIVATE CONTRACTOR,REVENUE
Walsall Council,http://opendatacommunities.org/id/metropolitan-district-council/walsall ,WC128-374,31.07.2021,ADULT SOCIAL CARE,ADVANCE HEALTH CARE (UK) LTD,05/07/2021,490.49,6541-Domiciliary Care,THIRD PARTY PAYMENTS,PRIVATE CONTRACTOR,REVENUE
Walsall Council,http://opendatacommunities.org/id/metropolitan-district-council/walsall ,WC128-375,31.07.2021,ADULT SOCIAL CARE,ADVANCE HEALTH CARE (UK) LTD,05/07/2021,833.03,6541-Domiciliary Care,THIRD PARTY PAYMENTS,PRIVATE CONTRACTOR,REVENUE
Walsall Council,http://opendatacommunities.org/id/metropolitan-district-council/walsall ,WC128-376,31.07.2021,ADULT SOCIAL CARE,ADVANCE HEALTH CARE (UK) LTD,05/07/2021,490.49,6541-Domiciliary Care,THIRD PARTY PAYMENTS,PRIVATE CONTRACTOR,REVENUE
Walsall Council,http://opendatacommunities.org/id/metropolitan-district-council/walsall ,WC128-377,31.07.2021,ADULT SOCIAL CARE,ADVANCE HEALTH CARE (UK) LTD,05/07/2021,490.49,6541-Domiciliary Care,THIRD PARTY PAYMENTS,PRIVATE CONTRACTOR,REVENUE
Walsall Council,http://opendatacommunities.org/id/metropolitan-district-council/walsall ,WC128-378,31.07.2021,ADULT SOCIAL CARE,ADVANCE HEALTH CARE (UK) LTD,05/07/2021,490.49,6541-Domiciliary Care,THIRD PARTY PAYMENTS,PRIVATE CONTRACTOR,REVENUE
Walsall Council,http://opendatacommunities.org/id/metropolitan-district-council/walsall ,WC128-379,31.07.2021,ADULT SOCIAL CARE,ADVANCE HEALTH CARE (UK) LTD,05/07/2021,435.96,6541-Domiciliary Care,THIRD PARTY PAYMENTS,PRIVATE CONTRACTOR,REVENUE
Walsall Council,http://opendatacommunities.org/id/metropolitan-district-council/walsall ,WC128-380,31.07.2021,ADULT SOCIAL CARE,ADVANCE HEALTH CARE (UK) LTD,05/07/2021,544.95,6541-Domiciliary Care,THIRD PARTY PAYMENTS,PRIVATE CONTRACTOR,REVENUE
Walsall Council,http://opendatacommunities.org/id/metropolitan-district-council/walsall ,WC128-381,31.07.2021,ADULT SOCIAL CARE,ADVANCE HEALTH CARE (UK) LTD,05/07/2021,435.96,6541-Domiciliary Care,THIRD PARTY PAYMENTS,PRIVATE CONTRACTOR,REVENUE
Walsall Council,http://opendatacommunities.org/id/metropolitan-district-council/walsall ,WC128-382,31.07.2021,ADULT SOCIAL CARE,ADVANCE HEALTH CARE (UK) LTD,05/07/2021,435.96,6541-Domiciliary Care,THIRD PARTY PAYMENTS,PRIVATE CONTRACTOR,REVENUE
Walsall Council,http://opendatacommunities.org/id/metropolitan-district-council/walsall ,WC128-383,31.07.2021,ADULT SOCIAL CARE,ADVANCE HEALTH CARE (UK) LTD,05/07/2021,490.49,6541-Domiciliary Care,THIRD PARTY PAYMENTS,PRIVATE CONTRACTOR,REVENUE
Walsall Council,http://opendatacommunities.org/id/metropolitan-district-council/walsall ,WC128-384,31.07.2021,ADULT SOCIAL CARE,ADVANCE HEALTH CARE (UK) LTD,05/07/2021,454.16,6541-Domiciliary Care,THIRD PARTY PAYMENTS,PRIVATE CONTRACTOR,REVENUE
Walsall Council,http://opendatacommunities.org/id/metropolitan-district-council/walsall ,WC128-385,31.07.2021,ADULT SOCIAL CARE,ADVANCE HEALTH CARE (UK) LTD,05/07/2021,490.49,6541-Domiciliary Care,THIRD PARTY PAYMENTS,PRIVATE CONTRACTOR,REVENUE
Walsall Council,http://opendatacommunities.org/id/metropolitan-district-council/walsall ,WC128-386,31.07.2021,ADULT SOCIAL CARE,ADVANCE HEALTH CARE (UK) LTD,05/07/2021,490.49,6541-Domiciliary Care,THIRD PARTY PAYMENTS,PRIVATE CONTRACTOR,REVENUE
Walsall Council,http://opendatacommunities.org/id/metropolitan-district-council/walsall ,WC128-387,31.07.2021,ADULT SOCIAL CARE,ADVANCE HEALTH CARE (UK) LTD,05/07/2021,435.96,6541-Domiciliary Care,THIRD PARTY PAYMENTS,PRIVATE CONTRACTOR,REVENUE
Walsall Council,http://opendatacommunities.org/id/metropolitan-district-council/walsall ,WC128-388,31.07.2021,ADULT SOCIAL CARE,ADVANCE HEALTH CARE (UK) LTD,05/07/2021,490.49,6541-Domiciliary Care,THIRD PARTY PAYMENTS,PRIVATE CONTRACTOR,REVENUE
Walsall Council,http://opendatacommunities.org/id/metropolitan-district-council/walsall ,WC128-389,31.07.2021,ADULT SOCIAL CARE,ADVANCE HEALTH CARE (UK) LTD,05/07/2021,490.49,6541-Domiciliary Care,THIRD PARTY PAYMENTS,PRIVATE CONTRACTOR,REVENUE
Walsall Council,http://opendatacommunities.org/id/metropolitan-district-council/walsall ,WC128-390,31.07.2021,ADULT SOCIAL CARE,ADVANCE HEALTH CARE (UK) LTD,05/07/2021,435.96,6541-Domiciliary Care,THIRD PARTY PAYMENTS,PRIVATE CONTRACTOR,REVENUE
Walsall Council,http://opendatacommunities.org/id/metropolitan-district-council/walsall ,WC128-391,31.07.2021,ADULT SOCIAL CARE,ADVANCE HEALTH CARE (UK) LTD,05/07/2021,435.96,6541-Domiciliary Care,THIRD PARTY PAYMENTS,PRIVATE CONTRACTOR,REVENUE
Walsall Council,http://opendatacommunities.org/id/metropolitan-district-council/walsall ,WC128-392,31.07.2021,ADULT SOCIAL CARE,ADVANCE HEALTH CARE (UK) LTD,05/07/2021,635.81,6541-Domiciliary Care,THIRD PARTY PAYMENTS,PRIVATE CONTRACTOR,REVENUE
Walsall Council,http://opendatacommunities.org/id/metropolitan-district-council/walsall ,WC128-393,31.07.2021,ADULT SOCIAL CARE,ADVANCE HEALTH CARE (UK) LTD,05/07/2021,490.49,6541-Domiciliary Care,THIRD PARTY PAYMENTS,PRIVATE CONTRACTOR,REVENUE
Walsall Council,http://opendatacommunities.org/id/metropolitan-district-council/walsall ,WC128-394,31.07.2021,ADULT SOCIAL CARE,ADVANCE HEALTH CARE (UK) LTD,05/07/2021,490.49,6541-Domiciliary Care,THIRD PARTY PAYMENTS,PRIVATE CONTRACTOR,REVENUE
Walsall Council,http://opendatacommunities.org/id/metropolitan-district-council/walsall ,WC128-395,31.07.2021,ADULT SOCIAL CARE,ADVANCE HEALTH CARE (UK) LTD,05/07/2021,654.01,6541-Domiciliary Care,THIRD PARTY PAYMENTS,PRIVATE CONTRACTOR,REVENUE
Walsall Council,http://opendatacommunities.org/id/metropolitan-district-council/walsall ,WC128-396,31.07.2021,ADULT SOCIAL CARE,ADVANCE HEALTH CARE (UK) LTD,05/07/2021,363.30,6541-Domiciliary Care,THIRD PARTY PAYMENTS,PRIVATE CONTRACTOR,REVENUE
Walsall Council,http://opendatacommunities.org/id/metropolitan-district-council/walsall ,WC128-397,31.07.2021,ADULT SOCIAL CARE,ADVANCE HEALTH CARE (UK) LTD,05/07/2021,490.49,6541-Domiciliary Care,THIRD PARTY PAYMENTS,PRIVATE CONTRACTOR,REVENUE
Walsall Council,http://opendatacommunities.org/id/metropolitan-district-council/walsall ,WC128-398,31.07.2021,ADULT SOCIAL CARE,ADVANCE HEALTH CARE (UK) LTD,05/07/2021,435.96,6541-Domiciliary Care,THIRD PARTY PAYMENTS,PRIVATE CONTRACTOR,REVENUE
Walsall Council,http://opendatacommunities.org/id/metropolitan-district-council/walsall ,WC128-399,31.07.2021,ADULT SOCIAL CARE,ADVANCE HEALTH CARE (UK) LTD,05/07/2021,490.49,6541-Domiciliary Care,THIRD PARTY PAYMENTS,PRIVATE CONTRACTOR,REVENUE
Walsall Council,http://opendatacommunities.org/id/metropolitan-district-council/walsall ,WC128-400,31.07.2021,ADULT SOCIAL CARE,ADVANCE HEALTH CARE (UK) LTD,05/07/2021,454.16,6541-Domiciliary Care,THIRD PARTY PAYMENTS,PRIVATE CONTRACTOR,REVENUE
Walsall Council,http://opendatacommunities.org/id/metropolitan-district-council/walsall ,WC128-401,31.07.2021,ADULT SOCIAL CARE,ADVANCE HEALTH CARE (UK) LTD,05/07/2021,490.49,6541-Domiciliary Care,THIRD PARTY PAYMENTS,PRIVATE CONTRACTOR,REVENUE
Walsall Council,http://opendatacommunities.org/id/metropolitan-district-council/walsall ,WC128-402,31.07.2021,ADULT SOCIAL CARE,ADVANCE HEALTH CARE (UK) LTD,05/07/2021,435.96,6541-Domiciliary Care,THIRD PARTY PAYMENTS,PRIVATE CONTRACTOR,REVENUE
Walsall Council,http://opendatacommunities.org/id/metropolitan-district-council/walsall ,WC128-403,31.07.2021,ADULT SOCIAL CARE,ADVANCE HEALTH CARE (UK) LTD,05/07/2021,327.18,6541-Domiciliary Care,THIRD PARTY PAYMENTS,PRIVATE CONTRACTOR,REVENUE
Walsall Council,http://opendatacommunities.org/id/metropolitan-district-council/walsall ,WC128-404,31.07.2021,ADULT SOCIAL CARE,ADVANCE HEALTH CARE (UK) LTD,05/07/2021,253.11,6541-Domiciliary Care,THIRD PARTY PAYMENTS,PRIVATE CONTRACTOR,REVENUE
Walsall Council,http://opendatacommunities.org/id/metropolitan-district-council/walsall ,WC128-405,31.07.2021,ADULT SOCIAL CARE,ADVANCE HEALTH CARE (UK) LTD,05/07/2021,537.20,6541-Domiciliary Care,THIRD PARTY PAYMENTS,PRIVATE CONTRACTOR,REVENUE
Walsall Council,http://opendatacommunities.org/id/metropolitan-district-council/walsall ,WC128-406,31.07.2021,ADULT SOCIAL CARE,ADVANCE HEALTH CARE (UK) LTD,05/07/2021,412.80,6541-Domiciliary Care,THIRD PARTY PAYMENTS,PRIVATE CONTRACTOR,REVENUE
Walsall Council,http://opendatacommunities.org/id/metropolitan-district-council/walsall ,WC128-407,31.07.2021,ADULT SOCIAL CARE,ADVANCE HEALTH CARE (UK) LTD,05/07/2021,653.94,6541-Domiciliary Care,THIRD PARTY PAYMENTS,PRIVATE CONTRACTOR,REVENUE
Walsall Council,http://opendatacommunities.org/id/metropolitan-district-council/walsall ,WC128-408,31.07.2021,ADULT SOCIAL CARE,ADVANCE HEALTH CARE (UK) LTD,05/07/2021,334.97,6541-Domiciliary Care,THIRD PARTY PAYMENTS,PRIVATE CONTRACTOR,REVENUE
Walsall Council,http://opendatacommunities.org/id/metropolitan-district-council/walsall ,WC128-409,31.07.2021,ADULT SOCIAL CARE,ADVANCE HEALTH CARE (UK) LTD,05/07/2021,362.18,6541-Domiciliary Care,THIRD PARTY PAYMENTS,PRIVATE CONTRACTOR,REVENUE
Walsall Council,http://opendatacommunities.org/id/metropolitan-district-council/walsall ,WC128-410,31.07.2021,ADULT SOCIAL CARE,ADVANCE HEALTH CARE (UK) LTD,05/07/2021,389.26,6541-Domiciliary Care,THIRD PARTY PAYMENTS,PRIVATE CONTRACTOR,REVENUE
Walsall Council,http://opendatacommunities.org/id/metropolitan-district-council/walsall ,WC128-411,31.07.2021,ADULT SOCIAL CARE,ADVANCE HEALTH CARE (UK) LTD,05/07/2021,477.52,6541-Domiciliary Care,THIRD PARTY PAYMENTS,PRIVATE CONTRACTOR,REVENUE
Walsall Council,http://opendatacommunities.org/id/metropolitan-district-council/walsall ,WC128-412,31.07.2021,ADULT SOCIAL CARE,ADVANCE HEALTH CARE (UK) LTD,05/07/2021,280.26,6541-Domiciliary Care,THIRD PARTY PAYMENTS,PRIVATE CONTRACTOR,REVENUE
Walsall Council,http://opendatacommunities.org/id/metropolitan-district-council/walsall ,WC128-413,31.07.2021,ADULT SOCIAL CARE,ADVANCE HEALTH CARE (UK) LTD,05/07/2021,295.83,6541-Domiciliary Care,THIRD PARTY PAYMENTS,PRIVATE CONTRACTOR,REVENUE
Walsall Council,http://opendatacommunities.org/id/metropolitan-district-council/walsall ,WC128-414,31.07.2021,ADULT SOCIAL CARE,ADVANCE HEALTH CARE (UK) LTD,05/07/2021,708.47,6541-Domiciliary Care,THIRD PARTY PAYMENTS,PRIVATE CONTRACTOR,REVENUE
Walsall Council,http://opendatacommunities.org/id/metropolitan-district-council/walsall ,WC128-415,31.07.2021,ADULT SOCIAL CARE,ADVANCE HEALTH CARE (UK) LTD,05/07/2021,435.96,6541-Domiciliary Care,THIRD PARTY PAYMENTS,PRIVATE CONTRACTOR,REVENUE
Walsall Council,http://opendatacommunities.org/id/metropolitan-district-council/walsall ,WC128-416,31.07.2021,ADULT SOCIAL CARE,ADVANCE HEALTH CARE (UK) LTD,05/07/2021,763.00,6541-Domiciliary Care,THIRD PARTY PAYMENTS,PRIVATE CONTRACTOR,REVENUE
Walsall Council,http://opendatacommunities.org/id/metropolitan-district-council/walsall ,WC128-417,31.07.2021,ADULT SOCIAL CARE,ADVANCE HEALTH CARE (UK) LTD,05/07/2021,490.49,6541-Domiciliary Care,THIRD PARTY PAYMENTS,PRIVATE CONTRACTOR,REVENUE
Walsall Council,http://opendatacommunities.org/id/metropolitan-district-council/walsall ,WC128-418,31.07.2021,ADULT SOCIAL CARE,ADVANCE HEALTH CARE (UK) LTD,05/07/2021,833.03,6541-Domiciliary Care,THIRD PARTY PAYMENTS,PRIVATE CONTRACTOR,REVENUE
Walsall Council,http://opendatacommunities.org/id/metropolitan-district-council/walsall ,WC128-419,31.07.2021,ADULT SOCIAL CARE,ADVANCE HEALTH CARE (UK) LTD,05/07/2021,490.49,6541-Domiciliary Care,THIRD PARTY PAYMENTS,PRIVATE CONTRACTOR,REVENUE
Walsall Council,http://opendatacommunities.org/id/metropolitan-district-council/walsall ,WC128-420,31.07.2021,ADULT SOCIAL CARE,ADVANCE HEALTH CARE (UK) LTD,05/07/2021,490.49,6541-Domiciliary Care,THIRD PARTY PAYMENTS,PRIVATE CONTRACTOR,REVENUE
Walsall Council,http://opendatacommunities.org/id/metropolitan-district-council/walsall ,WC128-421,31.07.2021,ADULT SOCIAL CARE,ADVANCE HEALTH CARE (UK) LTD,05/07/2021,490.49,6541-Domiciliary Care,THIRD PARTY PAYMENTS,PRIVATE CONTRACTOR,REVENUE
Walsall Council,http://opendatacommunities.org/id/metropolitan-district-council/walsall ,WC128-422,31.07.2021,ADULT SOCIAL CARE,ADVANCE HEALTH CARE (UK) LTD,05/07/2021,435.96,6541-Domiciliary Care,THIRD PARTY PAYMENTS,PRIVATE CONTRACTOR,REVENUE
Walsall Council,http://opendatacommunities.org/id/metropolitan-district-council/walsall ,WC128-423,31.07.2021,ADULT SOCIAL CARE,ADVANCE HEALTH CARE (UK) LTD,05/07/2021,544.95,6541-Domiciliary Care,THIRD PARTY PAYMENTS,PRIVATE CONTRACTOR,REVENUE
Walsall Council,http://opendatacommunities.org/id/metropolitan-district-council/walsall ,WC128-424,31.07.2021,ADULT SOCIAL CARE,ADVANCE HEALTH CARE (UK) LTD,05/07/2021,435.96,6541-Domiciliary Care,THIRD PARTY PAYMENTS,PRIVATE CONTRACTOR,REVENUE
Walsall Council,http://opendatacommunities.org/id/metropolitan-district-council/walsall ,WC128-425,31.07.2021,ADULT SOCIAL CARE,ADVANCE HEALTH CARE (UK) LTD,05/07/2021,"1,331.43",6541-Domiciliary Care,THIRD PARTY PAYMENTS,PRIVATE CONTRACTOR,REVENUE
Walsall Council,http://opendatacommunities.org/id/metropolitan-district-council/walsall ,WC128-426,31.07.2021,ADULT SOCIAL CARE,ADVANCE HEALTH CARE (UK) LTD,05/07/2021,490.49,6541-Domiciliary Care,THIRD PARTY PAYMENTS,PRIVATE CONTRACTOR,REVENUE
Walsall Council,http://opendatacommunities.org/id/metropolitan-district-council/walsall ,WC128-427,31.07.2021,ADULT SOCIAL CARE,ADVANCE HEALTH CARE (UK) LTD,05/07/2021,871.92,6541-Domiciliary Care,THIRD PARTY PAYMENTS,PRIVATE CONTRACTOR,REVENUE
Walsall Council,http://opendatacommunities.org/id/metropolitan-district-council/walsall ,WC128-428,31.07.2021,ADULT SOCIAL CARE,ADVANCE HEALTH CARE (UK) LTD,05/07/2021,326.97,6541-Domiciliary Care,THIRD PARTY PAYMENTS,PRIVATE CONTRACTOR,REVENUE
Walsall Council,http://opendatacommunities.org/id/metropolitan-district-council/walsall ,WC128-429,31.07.2021,ADULT SOCIAL CARE,ADVANCE HEALTH CARE (UK) LTD,05/07/2021,381.50,6541-Domiciliary Care,THIRD PARTY PAYMENTS,PRIVATE CONTRACTOR,REVENUE
Walsall Council,http://opendatacommunities.org/id/metropolitan-district-council/walsall ,WC128-430,31.07.2021,ADULT SOCIAL CARE,ADVANCE HEALTH CARE (UK) LTD,05/07/2021,506.06,6541-Domiciliary Care,THIRD PARTY PAYMENTS,PRIVATE CONTRACTOR,REVENUE
Walsall Council,http://opendatacommunities.org/id/metropolitan-district-council/walsall ,WC128-431,31.07.2021,ADULT SOCIAL CARE,ADVANCE HEALTH CARE (UK) LTD,05/07/2021,435.96,6541-Domiciliary Care,THIRD PARTY PAYMENTS,PRIVATE CONTRACTOR,REVENUE
Walsall Council,http://opendatacommunities.org/id/metropolitan-district-council/walsall ,WC128-432,31.07.2021,ADULT SOCIAL CARE,ADVANCE HEALTH CARE (UK) LTD,05/07/2021,490.49,6541-Domiciliary Care,THIRD PARTY PAYMENTS,PRIVATE CONTRACTOR,REVENUE
Walsall Council,http://opendatacommunities.org/id/metropolitan-district-council/walsall ,WC128-433,31.07.2021,ADULT SOCIAL CARE,ADVANCE HEALTH CARE (UK) LTD,05/07/2021,363.30,6541-Domiciliary Care,THIRD PARTY PAYMENTS,PRIVATE CONTRACTOR,REVENUE
Walsall Council,http://opendatacommunities.org/id/metropolitan-district-council/walsall ,WC128-434,31.07.2021,ADULT SOCIAL CARE,ADVANCE HEALTH CARE (UK) LTD,05/07/2021,490.49,6541-Domiciliary Care,THIRD PARTY PAYMENTS,PRIVATE CONTRACTOR,REVENUE
Walsall Council,http://opendatacommunities.org/id/metropolitan-district-council/walsall ,WC128-435,31.07.2021,ADULT SOCIAL CARE,ADVANCE HEALTH CARE (UK) LTD,05/07/2021,490.49,6541-Domiciliary Care,THIRD PARTY PAYMENTS,PRIVATE CONTRACTOR,REVENUE
Walsall Council,http://opendatacommunities.org/id/metropolitan-district-council/walsall ,WC128-436,31.07.2021,ADULT SOCIAL CARE,ADVANCE HEALTH CARE (UK) LTD,05/07/2021,"1,471.47",6541-Domiciliary Care,THIRD PARTY PAYMENTS,PRIVATE CONTRACTOR,REVENUE
Walsall Council,http://opendatacommunities.org/id/metropolitan-district-council/walsall ,WC128-437,31.07.2021,ADULT SOCIAL CARE,ADVANCE HEALTH CARE (UK) LTD,05/07/2021,"1,089.90",6541-Domiciliary Care,THIRD PARTY PAYMENTS,PRIVATE CONTRACTOR,REVENUE
Walsall Council,http://opendatacommunities.org/id/metropolitan-district-council/walsall ,WC128-438,31.07.2021,ADULT SOCIAL CARE,ADVANCE HEALTH CARE (UK) LTD,05/07/2021,435.96,6541-Domiciliary Care,THIRD PARTY PAYMENTS,PRIVATE CONTRACTOR,REVENUE
Walsall Council,http://opendatacommunities.org/id/metropolitan-district-council/walsall ,WC128-439,31.07.2021,ADULT SOCIAL CARE,ADVANCE HEALTH CARE (UK) LTD,05/07/2021,544.95,6541-Domiciliary Care,THIRD PARTY PAYMENTS,PRIVATE CONTRACTOR,REVENUE
Walsall Council,http://opendatacommunities.org/id/metropolitan-district-council/walsall ,WC128-440,31.07.2021,ADULT SOCIAL CARE,ADVANCE HEALTH CARE (UK) LTD,05/07/2021,435.96,6541-Domiciliary Care,THIRD PARTY PAYMENTS,PRIVATE CONTRACTOR,REVENUE
Walsall Council,http://opendatacommunities.org/id/metropolitan-district-council/walsall ,WC128-441,31.07.2021,ADULT SOCIAL CARE,ADVANCE HEALTH CARE (UK) LTD,05/07/2021,"1,307.88",6541-Domiciliary Care,THIRD PARTY PAYMENTS,PRIVATE CONTRACTOR,REVENUE
Walsall Council,http://opendatacommunities.org/id/metropolitan-district-council/walsall ,WC128-442,31.07.2021,ADULT SOCIAL CARE,ADVANCE HEALTH CARE (UK) LTD,05/07/2021,490.49,6541-Domiciliary Care,THIRD PARTY PAYMENTS,PRIVATE CONTRACTOR,REVENUE
Walsall Council,http://opendatacommunities.org/id/metropolitan-district-council/walsall ,WC128-443,31.07.2021,ADULT SOCIAL CARE,ADVANCE HEALTH CARE (UK) LTD,05/07/2021,435.96,6541-Domiciliary Care,THIRD PARTY PAYMENTS,PRIVATE CONTRACTOR,REVENUE
Walsall Council,http://opendatacommunities.org/id/metropolitan-district-council/walsall ,WC128-444,31.07.2021,ADULT SOCIAL CARE,ADVANCE HEALTH CARE (UK) LTD,05/07/2021,490.49,6541-Domiciliary Care,THIRD PARTY PAYMENTS,PRIVATE CONTRACTOR,REVENUE
Walsall Council,http://opendatacommunities.org/id/metropolitan-district-council/walsall ,WC128-445,31.07.2021,ADULT SOCIAL CARE,ADVANCE HEALTH CARE (UK) LTD,05/07/2021,980.98,6541-Domiciliary Care,THIRD PARTY PAYMENTS,PRIVATE CONTRACTOR,REVENUE
Walsall Council,http://opendatacommunities.org/id/metropolitan-district-council/walsall ,WC128-446,31.07.2021,ADULT SOCIAL CARE,ADVANCE HEALTH CARE (UK) LTD,05/07/2021,435.96,6541-Domiciliary Care,THIRD PARTY PAYMENTS,PRIVATE CONTRACTOR,REVENUE
Walsall Council,http://opendatacommunities.org/id/metropolitan-district-council/walsall ,WC128-447,31.07.2021,ADULT SOCIAL CARE,ADVANCE HEALTH CARE (UK) LTD,05/07/2021,980.98,6541-Domiciliary Care,THIRD PARTY PAYMENTS,PRIVATE CONTRACTOR,REVENUE
Walsall Council,http://opendatacommunities.org/id/metropolitan-district-council/walsall ,WC128-448,31.07.2021,ADULT SOCIAL CARE,ADVANCE HEALTH CARE (UK) LTD,05/07/2021,490.49,6541-Domiciliary Care,THIRD PARTY PAYMENTS,PRIVATE CONTRACTOR,REVENUE
Walsall Council,http://opendatacommunities.org/id/metropolitan-district-council/walsall ,WC128-449,31.07.2021,ADULT SOCIAL CARE,ADVANCE HEALTH CARE (UK) LTD,05/07/2021,716.22,6541-Domiciliary Care,THIRD PARTY PAYMENTS,PRIVATE CONTRACTOR,REVENUE
Walsall Council,http://opendatacommunities.org/id/metropolitan-district-council/walsall ,WC128-450,31.07.2021,ADULT SOCIAL CARE,ADVANCE HEALTH CARE (UK) LTD,05/07/2021,306.34,6541-Domiciliary Care,THIRD PARTY PAYMENTS,PRIVATE CONTRACTOR,REVENUE
Walsall Council,http://opendatacommunities.org/id/metropolitan-district-council/walsall ,WC128-451,31.07.2021,ADULT SOCIAL CARE,ADVANCE HEALTH CARE (UK) LTD,05/07/2021,319.31,6541-Domiciliary Care,THIRD PARTY PAYMENTS,PRIVATE CONTRACTOR,REVENUE
Walsall Council,http://opendatacommunities.org/id/metropolitan-district-council/walsall ,WC128-452,31.07.2021,ADULT SOCIAL CARE,ADVANCE HEALTH CARE (UK) LTD,05/07/2021,490.49,6541-Domiciliary Care,THIRD PARTY PAYMENTS,PRIVATE CONTRACTOR,REVENUE
Walsall Council,http://opendatacommunities.org/id/metropolitan-district-council/walsall ,WC128-453,31.07.2021,ADULT SOCIAL CARE,ADVANCE HEALTH CARE (UK) LTD,05/07/2021,490.49,6541-Domiciliary Care,THIRD PARTY PAYMENTS,PRIVATE CONTRACTOR,REVENUE
Walsall Council,http://opendatacommunities.org/id/metropolitan-district-council/walsall ,WC128-454,31.07.2021,ADULT SOCIAL CARE,ADVANCE HEALTH CARE (UK) LTD,05/07/2021,490.49,6541-Domiciliary Care,THIRD PARTY PAYMENTS,PRIVATE CONTRACTOR,REVENUE
Walsall Council,http://opendatacommunities.org/id/metropolitan-district-council/walsall ,WC128-455,31.07.2021,ADULT SOCIAL CARE,ADVANCE HEALTH CARE (UK) LTD,05/07/2021,654.01,6541-Domiciliary Care,THIRD PARTY PAYMENTS,PRIVATE CONTRACTOR,REVENUE
Walsall Council,http://opendatacommunities.org/id/metropolitan-district-council/walsall ,WC128-456,31.07.2021,ADULT SOCIAL CARE,ADVANCE HEALTH CARE (UK) LTD,05/07/2021,290.64,6541-Domiciliary Care,THIRD PARTY PAYMENTS,PRIVATE CONTRACTOR,REVENUE
Walsall Council,http://opendatacommunities.org/id/metropolitan-district-council/walsall ,WC128-457,31.07.2021,ADULT SOCIAL CARE,ADVANCE HEALTH CARE (UK) LTD,05/07/2021,435.96,6541-Domiciliary Care,THIRD PARTY PAYMENTS,PRIVATE CONTRACTOR,REVENUE
Walsall Council,http://opendatacommunities.org/id/metropolitan-district-council/walsall ,WC128-458,31.07.2021,ADULT SOCIAL CARE,ADVANCE HEALTH CARE (UK) LTD,05/07/2021,435.96,6541-Domiciliary Care,THIRD PARTY PAYMENTS,PRIVATE CONTRACTOR,REVENUE
Walsall Council,http://opendatacommunities.org/id/metropolitan-district-council/walsall ,WC128-459,31.07.2021,ADULT SOCIAL CARE,ADVANCE HEALTH CARE (UK) LTD,05/07/2021,326.97,6541-Domiciliary Care,THIRD PARTY PAYMENTS,PRIVATE CONTRACTOR,REVENUE
Walsall Council,http://opendatacommunities.org/id/metropolitan-district-council/walsall ,WC128-460,31.07.2021,ADULT SOCIAL CARE,ADVANCE HEALTH CARE (UK) LTD,05/07/2021,635.81,6541-Domiciliary Care,THIRD PARTY PAYMENTS,PRIVATE CONTRACTOR,REVENUE
Walsall Council,http://opendatacommunities.org/id/metropolitan-district-council/walsall ,WC128-461,31.07.2021,ADULT SOCIAL CARE,ADVANCE HEALTH CARE (UK) LTD,05/07/2021,763.00,6541-Domiciliary Care,THIRD PARTY PAYMENTS,PRIVATE CONTRACTOR,REVENUE
Walsall Council,http://opendatacommunities.org/id/metropolitan-district-council/walsall ,WC128-462,31.07.2021,ADULT SOCIAL CARE,ADVANCE HEALTH CARE (UK) LTD,05/07/2021,564.45,6541-Domiciliary Care,THIRD PARTY PAYMENTS,PRIVATE CONTRACTOR,REVENUE
Walsall Council,http://opendatacommunities.org/id/metropolitan-district-council/walsall ,WC128-463,31.07.2021,ADULT SOCIAL CARE,ADVANCE HEALTH CARE (UK) LTD,05/07/2021,514.14,6541-Domiciliary Care,THIRD PARTY PAYMENTS,PRIVATE CONTRACTOR,REVENUE
Walsall Council,http://opendatacommunities.org/id/metropolitan-district-council/walsall ,WC128-464,31.07.2021,ADULT SOCIAL CARE,ADVANCE HEALTH CARE (UK) LTD,05/07/2021,517.96,6541-Domiciliary Care,THIRD PARTY PAYMENTS,PRIVATE CONTRACTOR,REVENUE
Walsall Council,http://opendatacommunities.org/id/metropolitan-district-council/walsall ,WC128-465,31.07.2021,ADULT SOCIAL CARE,ADVANCE HEALTH CARE (UK) LTD,20/07/2021,363.30,6541-Domiciliary Care,THIRD PARTY PAYMENTS,PRIVATE CONTRACTOR,REVENUE
Walsall Council,http://opendatacommunities.org/id/metropolitan-district-council/walsall ,WC128-466,31.07.2021,ADULT SOCIAL CARE,ADVANCE HEALTH CARE (UK) LTD,20/07/2021,490.49,6541-Domiciliary Care,THIRD PARTY PAYMENTS,PRIVATE CONTRACTOR,REVENUE
Walsall Council,http://opendatacommunities.org/id/metropolitan-district-council/walsall ,WC128-467,31.07.2021,ADULT SOCIAL CARE,ADVANCE HEALTH CARE (UK) LTD,20/07/2021,833.03,6541-Domiciliary Care,THIRD PARTY PAYMENTS,PRIVATE CONTRACTOR,REVENUE
Walsall Council,http://opendatacommunities.org/id/metropolitan-district-council/walsall ,WC128-468,31.07.2021,ADULT SOCIAL CARE,ADVANCE HEALTH CARE (UK) LTD,20/07/2021,490.49,6541-Domiciliary Care,THIRD PARTY PAYMENTS,PRIVATE CONTRACTOR,REVENUE
Walsall Council,http://opendatacommunities.org/id/metropolitan-district-council/walsall ,WC128-469,31.07.2021,ADULT SOCIAL CARE,ADVANCE HEALTH CARE (UK) LTD,20/07/2021,490.49,6541-Domiciliary Care,THIRD PARTY PAYMENTS,PRIVATE CONTRACTOR,REVENUE
Walsall Council,http://opendatacommunities.org/id/metropolitan-district-council/walsall ,WC128-470,31.07.2021,ADULT SOCIAL CARE,ADVANCE HEALTH CARE (UK) LTD,20/07/2021,490.49,6541-Domiciliary Care,THIRD PARTY PAYMENTS,PRIVATE CONTRACTOR,REVENUE
Walsall Council,http://opendatacommunities.org/id/metropolitan-district-council/walsall ,WC128-471,31.07.2021,ADULT SOCIAL CARE,ADVANCE HEALTH CARE (UK) LTD,20/07/2021,435.96,6541-Domiciliary Care,THIRD PARTY PAYMENTS,PRIVATE CONTRACTOR,REVENUE
Walsall Council,http://opendatacommunities.org/id/metropolitan-district-council/walsall ,WC128-472,31.07.2021,ADULT SOCIAL CARE,ADVANCE HEALTH CARE (UK) LTD,20/07/2021,544.95,6541-Domiciliary Care,THIRD PARTY PAYMENTS,PRIVATE CONTRACTOR,REVENUE
Walsall Council,http://opendatacommunities.org/id/metropolitan-district-council/walsall ,WC128-473,31.07.2021,ADULT SOCIAL CARE,ADVANCE HEALTH CARE (UK) LTD,20/07/2021,435.96,6541-Domiciliary Care,THIRD PARTY PAYMENTS,PRIVATE CONTRACTOR,REVENUE
Walsall Council,http://opendatacommunities.org/id/metropolitan-district-council/walsall ,WC128-474,31.07.2021,ADULT SOCIAL CARE,ADVANCE HEALTH CARE (UK) LTD,20/07/2021,435.96,6541-Domiciliary Care,THIRD PARTY PAYMENTS,PRIVATE CONTRACTOR,REVENUE
Walsall Council,http://opendatacommunities.org/id/metropolitan-district-council/walsall ,WC128-475,31.07.2021,ADULT SOCIAL CARE,ADVANCE HEALTH CARE (UK) LTD,20/07/2021,490.49,6541-Domiciliary Care,THIRD PARTY PAYMENTS,PRIVATE CONTRACTOR,REVENUE
Walsall Council,http://opendatacommunities.org/id/metropolitan-district-council/walsall ,WC128-476,31.07.2021,ADULT SOCIAL CARE,ADVANCE HEALTH CARE (UK) LTD,20/07/2021,454.16,6541-Domiciliary Care,THIRD PARTY PAYMENTS,PRIVATE CONTRACTOR,REVENUE
Walsall Council,http://opendatacommunities.org/id/metropolitan-district-council/walsall ,WC128-477,31.07.2021,ADULT SOCIAL CARE,ADVANCE HEALTH CARE (UK) LTD,20/07/2021,490.49,6541-Domiciliary Care,THIRD PARTY PAYMENTS,PRIVATE CONTRACTOR,REVENUE
Walsall Council,http://opendatacommunities.org/id/metropolitan-district-council/walsall ,WC128-478,31.07.2021,ADULT SOCIAL CARE,ADVANCE HEALTH CARE (UK) LTD,20/07/2021,506.06,6541-Domiciliary Care,THIRD PARTY PAYMENTS,PRIVATE CONTRACTOR,REVENUE
Walsall Council,http://opendatacommunities.org/id/metropolitan-district-council/walsall ,WC128-479,31.07.2021,ADULT SOCIAL CARE,ADVANCE HEALTH CARE (UK) LTD,20/07/2021,435.96,6541-Domiciliary Care,THIRD PARTY PAYMENTS,PRIVATE CONTRACTOR,REVENUE
Walsall Council,http://opendatacommunities.org/id/metropolitan-district-council/walsall ,WC128-480,31.07.2021,ADULT SOCIAL CARE,ADVANCE HEALTH CARE (UK) LTD,20/07/2021,363.30,6541-Domiciliary Care,THIRD PARTY PAYMENTS,PRIVATE CONTRACTOR,REVENUE
Walsall Council,http://opendatacommunities.org/id/metropolitan-district-council/walsall ,WC128-481,31.07.2021,ADULT SOCIAL CARE,ADVANCE HEALTH CARE (UK) LTD,20/07/2021,490.49,6541-Domiciliary Care,THIRD PARTY PAYMENTS,PRIVATE CONTRACTOR,REVENUE
Walsall Council,http://opendatacommunities.org/id/metropolitan-district-council/walsall ,WC128-482,31.07.2021,ADULT SOCIAL CARE,ADVANCE HEALTH CARE (UK) LTD,20/07/2021,490.49,6541-Domiciliary Care,THIRD PARTY PAYMENTS,PRIVATE CONTRACTOR,REVENUE
Walsall Council,http://opendatacommunities.org/id/metropolitan-district-council/walsall ,WC128-483,31.07.2021,ADULT SOCIAL CARE,ADVANCE HEALTH CARE (UK) LTD,20/07/2021,435.96,6541-Domiciliary Care,THIRD PARTY PAYMENTS,PRIVATE CONTRACTOR,REVENUE
Walsall Council,http://opendatacommunities.org/id/metropolitan-district-council/walsall ,WC128-484,31.07.2021,ADULT SOCIAL CARE,ADVANCE HEALTH CARE (UK) LTD,20/07/2021,342.60,6541-Domiciliary Care,THIRD PARTY PAYMENTS,PRIVATE CONTRACTOR,REVENUE
Walsall Council,http://opendatacommunities.org/id/metropolitan-district-council/walsall ,WC128-485,31.07.2021,ADULT SOCIAL CARE,ADVANCE HEALTH CARE (UK) LTD,20/07/2021,420.60,6541-Domiciliary Care,THIRD PARTY PAYMENTS,PRIVATE CONTRACTOR,REVENUE
Walsall Council,http://opendatacommunities.org/id/metropolitan-district-council/walsall ,WC128-486,31.07.2021,ADULT SOCIAL CARE,ADVANCE HEALTH CARE (UK) LTD,20/07/2021,747.36,6541-Domiciliary Care,THIRD PARTY PAYMENTS,PRIVATE CONTRACTOR,REVENUE
Walsall Council,http://opendatacommunities.org/id/metropolitan-district-council/walsall ,WC128-487,31.07.2021,ADULT SOCIAL CARE,ADVANCE HEALTH CARE (UK) LTD,20/07/2021,"1,152.26",6541-Domiciliary Care,THIRD PARTY PAYMENTS,PRIVATE CONTRACTOR,REVENUE
Walsall Council,http://opendatacommunities.org/id/metropolitan-district-council/walsall ,WC128-488,31.07.2021,ADULT SOCIAL CARE,ADVANCE HEALTH CARE (UK) LTD,20/07/2021,342.60,6541-Domiciliary Care,THIRD PARTY PAYMENTS,PRIVATE CONTRACTOR,REVENUE
Walsall Council,http://opendatacommunities.org/id/metropolitan-district-council/walsall ,WC128-489,31.07.2021,ADULT SOCIAL CARE,ADVANCE HEALTH CARE (UK) LTD,20/07/2021,259.61,6541-Domiciliary Care,THIRD PARTY PAYMENTS,PRIVATE CONTRACTOR,REVENUE
Walsall Council,http://opendatacommunities.org/id/metropolitan-district-council/walsall ,WC128-490,31.07.2021,ADULT SOCIAL CARE,ADVANCE HEALTH CARE (UK) LTD,20/07/2021,295.83,6541-Domiciliary Care,THIRD PARTY PAYMENTS,PRIVATE CONTRACTOR,REVENUE
Walsall Council,http://opendatacommunities.org/id/metropolitan-district-council/walsall ,WC128-491,31.07.2021,ADULT SOCIAL CARE,ADVANCE HEALTH CARE (UK) LTD,20/07/2021,708.47,6541-Domiciliary Care,THIRD PARTY PAYMENTS,PRIVATE CONTRACTOR,REVENUE
Walsall Council,http://opendatacommunities.org/id/metropolitan-district-council/walsall ,WC128-492,31.07.2021,ADULT SOCIAL CARE,ADVANCE HEALTH CARE (UK) LTD,20/07/2021,763.00,6541-Domiciliary Care,THIRD PARTY PAYMENTS,PRIVATE CONTRACTOR,REVENUE
Walsall Council,http://opendatacommunities.org/id/metropolitan-district-council/walsall ,WC128-493,31.07.2021,ADULT SOCIAL CARE,ADVANCE HEALTH CARE (UK) LTD,20/07/2021,490.49,6541-Domiciliary Care,THIRD PARTY PAYMENTS,PRIVATE CONTRACTOR,REVENUE
Walsall Council,http://opendatacommunities.org/id/metropolitan-district-council/walsall ,WC128-494,31.07.2021,ADULT SOCIAL CARE,ADVANCE HEALTH CARE (UK) LTD,20/07/2021,654.01,6541-Domiciliary Care,THIRD PARTY PAYMENTS,PRIVATE CONTRACTOR,REVENUE
Walsall Council,http://opendatacommunities.org/id/metropolitan-district-council/walsall ,WC128-495,31.07.2021,ADULT SOCIAL CARE,ADVANCE HEALTH CARE (UK) LTD,20/07/2021,490.49,6541-Domiciliary Care,THIRD PARTY PAYMENTS,PRIVATE CONTRACTOR,REVENUE
Walsall Council,http://opendatacommunities.org/id/metropolitan-district-council/walsall ,WC128-496,31.07.2021,ADULT SOCIAL CARE,ADVANCE HEALTH CARE (UK) LTD,20/07/2021,871.92,6541-Domiciliary Care,THIRD PARTY PAYMENTS,PRIVATE CONTRACTOR,REVENUE
Walsall Council,http://opendatacommunities.org/id/metropolitan-district-council/walsall ,WC128-497,31.07.2021,ADULT SOCIAL CARE,ADVANCE HEALTH CARE (UK) LTD,20/07/2021,326.97,6541-Domiciliary Care,THIRD PARTY PAYMENTS,PRIVATE CONTRACTOR,REVENUE
Walsall Council,http://opendatacommunities.org/id/metropolitan-district-council/walsall ,WC128-498,31.07.2021,ADULT SOCIAL CARE,ADVANCE HEALTH CARE (UK) LTD,20/07/2021,381.50,6541-Domiciliary Care,THIRD PARTY PAYMENTS,PRIVATE CONTRACTOR,REVENUE
Walsall Council,http://opendatacommunities.org/id/metropolitan-district-council/walsall ,WC128-499,31.07.2021,ADULT SOCIAL CARE,ADVANCE HEALTH CARE (UK) LTD,20/07/2021,490.49,6541-Domiciliary Care,THIRD PARTY PAYMENTS,PRIVATE CONTRACTOR,REVENUE
Walsall Council,http://opendatacommunities.org/id/metropolitan-district-council/walsall ,WC128-500,31.07.2021,ADULT SOCIAL CARE,ADVANCE HEALTH CARE (UK) LTD,20/07/2021,490.49,6541-Domiciliary Care,THIRD PARTY PAYMENTS,PRIVATE CONTRACTOR,REVENUE
Walsall Council,http://opendatacommunities.org/id/metropolitan-district-council/walsall ,WC128-501,31.07.2021,ADULT SOCIAL CARE,ADVANCE HEALTH CARE (UK) LTD,20/07/2021,490.49,6541-Domiciliary Care,THIRD PARTY PAYMENTS,PRIVATE CONTRACTOR,REVENUE
Walsall Council,http://opendatacommunities.org/id/metropolitan-district-council/walsall ,WC128-502,31.07.2021,ADULT SOCIAL CARE,ADVANCE HEALTH CARE (UK) LTD,20/07/2021,"1,012.05",6541-Domiciliary Care,THIRD PARTY PAYMENTS,PRIVATE CONTRACTOR,REVENUE
Walsall Council,http://opendatacommunities.org/id/metropolitan-district-council/walsall ,WC128-503,31.07.2021,ADULT SOCIAL CARE,ADVANCE HEALTH CARE (UK) LTD,20/07/2021,435.96,6541-Domiciliary Care,THIRD PARTY PAYMENTS,PRIVATE CONTRACTOR,REVENUE
Walsall Council,http://opendatacommunities.org/id/metropolitan-district-council/walsall ,WC128-504,31.07.2021,ADULT SOCIAL CARE,ADVANCE HEALTH CARE (UK) LTD,20/07/2021,544.95,6541-Domiciliary Care,THIRD PARTY PAYMENTS,PRIVATE CONTRACTOR,REVENUE
Walsall Council,http://opendatacommunities.org/id/metropolitan-district-council/walsall ,WC128-505,31.07.2021,ADULT SOCIAL CARE,ADVANCE HEALTH CARE (UK) LTD,20/07/2021,435.96,6541-Domiciliary Care,THIRD PARTY PAYMENTS,PRIVATE CONTRACTOR,REVENUE
Walsall Council,http://opendatacommunities.org/id/metropolitan-district-council/walsall ,WC128-506,31.07.2021,ADULT SOCIAL CARE,ADVANCE HEALTH CARE (UK) LTD,20/07/2021,560.52,6541-Domiciliary Care,THIRD PARTY PAYMENTS,PRIVATE CONTRACTOR,REVENUE
Walsall Council,http://opendatacommunities.org/id/metropolitan-district-council/walsall ,WC128-507,31.07.2021,ADULT SOCIAL CARE,ADVANCE HEALTH CARE (UK) LTD,20/07/2021,490.49,6541-Domiciliary Care,THIRD PARTY PAYMENTS,PRIVATE CONTRACTOR,REVENUE
Walsall Council,http://opendatacommunities.org/id/metropolitan-district-council/walsall ,WC128-508,31.07.2021,ADULT SOCIAL CARE,ADVANCE HEALTH CARE (UK) LTD,20/07/2021,275.11,6541-Domiciliary Care,THIRD PARTY PAYMENTS,PRIVATE CONTRACTOR,REVENUE
Walsall Council,http://opendatacommunities.org/id/metropolitan-district-council/walsall ,WC128-509,31.07.2021,ADULT SOCIAL CARE,ADVANCE HEALTH CARE (UK) LTD,20/07/2021,490.49,6541-Domiciliary Care,THIRD PARTY PAYMENTS,PRIVATE CONTRACTOR,REVENUE
Walsall Council,http://opendatacommunities.org/id/metropolitan-district-council/walsall ,WC128-510,31.07.2021,ADULT SOCIAL CARE,ADVANCE HEALTH CARE (UK) LTD,20/07/2021,490.49,6541-Domiciliary Care,THIRD PARTY PAYMENTS,PRIVATE CONTRACTOR,REVENUE
Walsall Council,http://opendatacommunities.org/id/metropolitan-district-council/walsall ,WC128-511,31.07.2021,ADULT SOCIAL CARE,ADVANCE HEALTH CARE (UK) LTD,20/07/2021,373.68,6541-Domiciliary Care,THIRD PARTY PAYMENTS,PRIVATE CONTRACTOR,REVENUE
Walsall Council,http://opendatacommunities.org/id/metropolitan-district-council/walsall ,WC128-512,31.07.2021,ADULT SOCIAL CARE,ADVANCE HEALTH CARE (UK) LTD,20/07/2021,856.41,6541-Domiciliary Care,THIRD PARTY PAYMENTS,PRIVATE CONTRACTOR,REVENUE
Walsall Council,http://opendatacommunities.org/id/metropolitan-district-council/walsall ,WC128-513,31.07.2021,ADULT SOCIAL CARE,ADVANCE HEALTH CARE (UK) LTD,20/07/2021,490.49,6541-Domiciliary Care,THIRD PARTY PAYMENTS,PRIVATE CONTRACTOR,REVENUE
Walsall Council,http://opendatacommunities.org/id/metropolitan-district-council/walsall ,WC128-514,31.07.2021,ADULT SOCIAL CARE,ADVANCE HEALTH CARE (UK) LTD,20/07/2021,490.49,6541-Domiciliary Care,THIRD PARTY PAYMENTS,PRIVATE CONTRACTOR,REVENUE
Walsall Council,http://opendatacommunities.org/id/metropolitan-district-council/walsall ,WC128-515,31.07.2021,ADULT SOCIAL CARE,ADVANCE HEALTH CARE (UK) LTD,20/07/2021,373.68,6541-Domiciliary Care,THIRD PARTY PAYMENTS,PRIVATE CONTRACTOR,REVENUE
Walsall Council,http://opendatacommunities.org/id/metropolitan-district-council/walsall ,WC128-516,31.07.2021,ADULT SOCIAL CARE,ADVANCE HEALTH CARE (UK) LTD,20/07/2021,362.18,6541-Domiciliary Care,THIRD PARTY PAYMENTS,PRIVATE CONTRACTOR,REVENUE
Walsall Council,http://opendatacommunities.org/id/metropolitan-district-council/walsall ,WC128-517,31.07.2021,ADULT SOCIAL CARE,ADVANCE HEALTH CARE (UK) LTD,20/07/2021,537.20,6541-Domiciliary Care,THIRD PARTY PAYMENTS,PRIVATE CONTRACTOR,REVENUE
Walsall Council,http://opendatacommunities.org/id/metropolitan-district-council/walsall ,WC128-518,31.07.2021,ADULT SOCIAL CARE,ADVANCE HEALTH CARE (UK) LTD,20/07/2021,716.28,6541-Domiciliary Care,THIRD PARTY PAYMENTS,PRIVATE CONTRACTOR,REVENUE
Walsall Council,http://opendatacommunities.org/id/metropolitan-district-council/walsall ,WC128-519,31.07.2021,ADULT SOCIAL CARE,ADVANCE HEALTH CARE (UK) LTD,20/07/2021,435.96,6541-Domiciliary Care,THIRD PARTY PAYMENTS,PRIVATE CONTRACTOR,REVENUE
Walsall Council,http://opendatacommunities.org/id/metropolitan-district-council/walsall ,WC128-520,31.07.2021,ADULT SOCIAL CARE,ADVANCE HEALTH CARE (UK) LTD,20/07/2021,435.96,6541-Domiciliary Care,THIRD PARTY PAYMENTS,PRIVATE CONTRACTOR,REVENUE
Walsall Council,http://opendatacommunities.org/id/metropolitan-district-council/walsall ,WC128-521,31.07.2021,ADULT SOCIAL CARE,ADVANCE HEALTH CARE (UK) LTD,20/07/2021,635.81,6541-Domiciliary Care,THIRD PARTY PAYMENTS,PRIVATE CONTRACTOR,REVENUE
Walsall Council,http://opendatacommunities.org/id/metropolitan-district-council/walsall ,WC128-522,31.07.2021,ADULT SOCIAL CARE,ADVANCE HEALTH CARE (UK) LTD,20/07/2021,654.00,6541-Domiciliary Care,THIRD PARTY PAYMENTS,PRIVATE CONTRACTOR,REVENUE
Walsall Council,http://opendatacommunities.org/id/metropolitan-district-council/walsall ,WC128-523,31.07.2021,ADULT SOCIAL CARE,ADVANCE HEALTH CARE (UK) LTD,20/07/2021,280.44,6541-Domiciliary Care,THIRD PARTY PAYMENTS,PRIVATE CONTRACTOR,REVENUE
Walsall Council,http://opendatacommunities.org/id/metropolitan-district-council/walsall ,WC128-524,31.07.2021,ADULT SOCIAL CARE,ADVANCE HEALTH CARE (UK) LTD,20/07/2021,420.60,6541-Domiciliary Care,THIRD PARTY PAYMENTS,PRIVATE CONTRACTOR,REVENUE
Walsall Council,http://opendatacommunities.org/id/metropolitan-district-council/walsall ,WC128-525,31.07.2021,ADULT SOCIAL CARE,ADVANCE HEALTH CARE (UK) LTD,20/07/2021,490.49,6541-Domiciliary Care,THIRD PARTY PAYMENTS,PRIVATE CONTRACTOR,REVENUE
Walsall Council,http://opendatacommunities.org/id/metropolitan-district-council/walsall ,WC128-526,31.07.2021,ADULT SOCIAL CARE,ADVANCE HEALTH CARE (UK) LTD,20/07/2021,490.49,6541-Domiciliary Care,THIRD PARTY PAYMENTS,PRIVATE CONTRACTOR,REVENUE
Walsall Council,http://opendatacommunities.org/id/metropolitan-district-council/walsall ,WC128-527,31.07.2021,ADULT SOCIAL CARE,ADVANCE HEALTH CARE (UK) LTD,20/07/2021,864.26,6541-Domiciliary Care,THIRD PARTY PAYMENTS,PRIVATE CONTRACTOR,REVENUE
Walsall Council,http://opendatacommunities.org/id/metropolitan-district-council/walsall ,WC128-528,31.07.2021,ADULT SOCIAL CARE,ADVANCE HEALTH CARE (UK) LTD,20/07/2021,490.49,6541-Domiciliary Care,THIRD PARTY PAYMENTS,PRIVATE CONTRACTOR,REVENUE
Walsall Council,http://opendatacommunities.org/id/metropolitan-district-council/walsall ,WC128-529,31.07.2021,ADULT SOCIAL CARE,ADVANCE HEALTH CARE (UK) LTD,20/07/2021,871.92,6541-Domiciliary Care,THIRD PARTY PAYMENTS,PRIVATE CONTRACTOR,REVENUE
Walsall Council,http://opendatacommunities.org/id/metropolitan-district-council/walsall ,WC128-530,31.07.2021,ADULT SOCIAL CARE,ADVANCE HEALTH CARE (UK) LTD,20/07/2021,326.97,6541-Domiciliary Care,THIRD PARTY PAYMENTS,PRIVATE CONTRACTOR,REVENUE
Walsall Council,http://opendatacommunities.org/id/metropolitan-district-council/walsall ,WC128-531,31.07.2021,ADULT SOCIAL CARE,ADVANCE HEALTH CARE (UK) LTD,20/07/2021,381.50,6541-Domiciliary Care,THIRD PARTY PAYMENTS,PRIVATE CONTRACTOR,REVENUE
Walsall Council,http://opendatacommunities.org/id/metropolitan-district-council/walsall ,WC128-532,31.07.2021,ADULT SOCIAL CARE,ADVANCE HEALTH CARE (UK) LTD,20/07/2021,490.49,6541-Domiciliary Care,THIRD PARTY PAYMENTS,PRIVATE CONTRACTOR,REVENUE
Walsall Council,http://opendatacommunities.org/id/metropolitan-district-council/walsall ,WC128-533,31.07.2021,ADULT SOCIAL CARE,ADVANCE HEALTH CARE (UK) LTD,20/07/2021,363.30,6541-Domiciliary Care,THIRD PARTY PAYMENTS,PRIVATE CONTRACTOR,REVENUE
Walsall Council,http://opendatacommunities.org/id/metropolitan-district-council/walsall ,WC128-534,31.07.2021,ADULT SOCIAL CARE,ADVANCE HEALTH CARE (UK) LTD,20/07/2021,506.06,6541-Domiciliary Care,THIRD PARTY PAYMENTS,PRIVATE CONTRACTOR,REVENUE
Walsall Council,http://opendatacommunities.org/id/metropolitan-district-council/walsall ,WC128-535,31.07.2021,ADULT SOCIAL CARE,ADVANCE HEALTH CARE (UK) LTD,20/07/2021,435.96,6541-Domiciliary Care,THIRD PARTY PAYMENTS,PRIVATE CONTRACTOR,REVENUE
Walsall Council,http://opendatacommunities.org/id/metropolitan-district-council/walsall ,WC128-536,31.07.2021,ADULT SOCIAL CARE,ADVANCE HEALTH CARE (UK) LTD,20/07/2021,295.83,6541-Domiciliary Care,THIRD PARTY PAYMENTS,PRIVATE CONTRACTOR,REVENUE
Walsall Council,http://opendatacommunities.org/id/metropolitan-district-council/walsall ,WC128-537,31.07.2021,ADULT SOCIAL CARE,ADVANCE HEALTH CARE (UK) LTD,20/07/2021,708.47,6541-Domiciliary Care,THIRD PARTY PAYMENTS,PRIVATE CONTRACTOR,REVENUE
Walsall Council,http://opendatacommunities.org/id/metropolitan-district-council/walsall ,WC128-538,31.07.2021,ADULT SOCIAL CARE,ADVANCE HEALTH CARE (UK) LTD,20/07/2021,763.00,6541-Domiciliary Care,THIRD PARTY PAYMENTS,PRIVATE CONTRACTOR,REVENUE
Walsall Council,http://opendatacommunities.org/id/metropolitan-district-council/walsall ,WC128-539,31.07.2021,ADULT SOCIAL CARE,ADVANCE HEALTH CARE (UK) LTD,20/07/2021,435.96,6541-Domiciliary Care,THIRD PARTY PAYMENTS,PRIVATE CONTRACTOR,REVENUE
Walsall Council,http://opendatacommunities.org/id/metropolitan-district-council/walsall ,WC128-540,31.07.2021,ADULT SOCIAL CARE,ADVANCE HEALTH CARE (UK) LTD,20/07/2021,435.96,6541-Domiciliary Care,THIRD PARTY PAYMENTS,PRIVATE CONTRACTOR,REVENUE
Walsall Council,http://opendatacommunities.org/id/metropolitan-district-council/walsall ,WC128-541,31.07.2021,ADULT SOCIAL CARE,ADVANCE HEALTH CARE (UK) LTD,20/07/2021,490.49,6541-Domiciliary Care,THIRD PARTY PAYMENTS,PRIVATE CONTRACTOR,REVENUE
Walsall Council,http://opendatacommunities.org/id/metropolitan-district-council/walsall ,WC128-542,31.07.2021,ADULT SOCIAL CARE,ADVANCE HEALTH CARE (UK) LTD,20/07/2021,833.03,6541-Domiciliary Care,THIRD PARTY PAYMENTS,PRIVATE CONTRACTOR,REVENUE
Walsall Council,http://opendatacommunities.org/id/metropolitan-district-council/walsall ,WC128-543,31.07.2021,ADULT SOCIAL CARE,ADVANCE HEALTH CARE (UK) LTD,20/07/2021,490.49,6541-Domiciliary Care,THIRD PARTY PAYMENTS,PRIVATE CONTRACTOR,REVENUE
Walsall Council,http://opendatacommunities.org/id/metropolitan-district-council/walsall ,WC128-544,31.07.2021,ADULT SOCIAL CARE,ADVANCE HEALTH CARE (UK) LTD,20/07/2021,490.49,6541-Domiciliary Care,THIRD PARTY PAYMENTS,PRIVATE CONTRACTOR,REVENUE
Walsall Council,http://opendatacommunities.org/id/metropolitan-district-council/walsall ,WC128-545,31.07.2021,ADULT SOCIAL CARE,ADVANCE HEALTH CARE (UK) LTD,20/07/2021,490.49,6541-Domiciliary Care,THIRD PARTY PAYMENTS,PRIVATE CONTRACTOR,REVENUE
Walsall Council,http://opendatacommunities.org/id/metropolitan-district-council/walsall ,WC128-546,31.07.2021,ADULT SOCIAL CARE,ADVANCE HEALTH CARE (UK) LTD,20/07/2021,435.96,6541-Domiciliary Care,THIRD PARTY PAYMENTS,PRIVATE CONTRACTOR,REVENUE
Walsall Council,http://opendatacommunities.org/id/metropolitan-district-council/walsall ,WC128-547,31.07.2021,ADULT SOCIAL CARE,ADVANCE HEALTH CARE (UK) LTD,20/07/2021,544.95,6541-Domiciliary Care,THIRD PARTY PAYMENTS,PRIVATE CONTRACTOR,REVENUE
Walsall Council,http://opendatacommunities.org/id/metropolitan-district-council/walsall ,WC128-548,31.07.2021,ADULT SOCIAL CARE,ADVANCE HEALTH CARE (UK) LTD,20/07/2021,435.96,6541-Domiciliary Care,THIRD PARTY PAYMENTS,PRIVATE CONTRACTOR,REVENUE
Walsall Council,http://opendatacommunities.org/id/metropolitan-district-council/walsall ,WC128-549,31.07.2021,ADULT SOCIAL CARE,ADVANCE HEALTH CARE (UK) LTD,20/07/2021,490.49,6541-Domiciliary Care,THIRD PARTY PAYMENTS,PRIVATE CONTRACTOR,REVENUE
Walsall Council,http://opendatacommunities.org/id/metropolitan-district-council/walsall ,WC128-550,31.07.2021,ADULT SOCIAL CARE,ADVANCE HEALTH CARE (UK) LTD,20/07/2021,490.49,6541-Domiciliary Care,THIRD PARTY PAYMENTS,PRIVATE CONTRACTOR,REVENUE
Walsall Council,http://opendatacommunities.org/id/metropolitan-district-council/walsall ,WC128-551,31.07.2021,ADULT SOCIAL CARE,ADVANCE HEALTH CARE (UK) LTD,20/07/2021,435.96,6541-Domiciliary Care,THIRD PARTY PAYMENTS,PRIVATE CONTRACTOR,REVENUE
Walsall Council,http://opendatacommunities.org/id/metropolitan-district-council/walsall ,WC128-552,31.07.2021,ADULT SOCIAL CARE,ADVANCE HEALTH CARE (UK) LTD,20/07/2021,490.49,6541-Domiciliary Care,THIRD PARTY PAYMENTS,PRIVATE CONTRACTOR,REVENUE
Walsall Council,http://opendatacommunities.org/id/metropolitan-district-council/walsall ,WC128-553,31.07.2021,ADULT SOCIAL CARE,ADVANCE HEALTH CARE (UK) LTD,20/07/2021,454.16,6541-Domiciliary Care,THIRD PARTY PAYMENTS,PRIVATE CONTRACTOR,REVENUE
Walsall Council,http://opendatacommunities.org/id/metropolitan-district-council/walsall ,WC128-554,31.07.2021,ADULT SOCIAL CARE,ADVANCE HEALTH CARE (UK) LTD,20/07/2021,490.49,6541-Domiciliary Care,THIRD PARTY PAYMENTS,PRIVATE CONTRACTOR,REVENUE
Walsall Council,http://opendatacommunities.org/id/metropolitan-district-council/walsall ,WC128-555,31.07.2021,ADULT SOCIAL CARE,ADVANCE HEALTH CARE (UK) LTD,20/07/2021,560.52,6541-Domiciliary Care,THIRD PARTY PAYMENTS,PRIVATE CONTRACTOR,REVENUE
Walsall Council,http://opendatacommunities.org/id/metropolitan-district-council/walsall ,WC128-556,31.07.2021,ADULT SOCIAL CARE,ADVANCE HEALTH CARE (UK) LTD,20/07/2021,363.30,6541-Domiciliary Care,THIRD PARTY PAYMENTS,PRIVATE CONTRACTOR,REVENUE
Walsall Council,http://opendatacommunities.org/id/metropolitan-district-council/walsall ,WC128-557,31.07.2021,ADULT SOCIAL CARE,ADVANCE HEALTH CARE (UK) LTD,20/07/2021,537.20,6541-Domiciliary Care,THIRD PARTY PAYMENTS,PRIVATE CONTRACTOR,REVENUE
Walsall Council,http://opendatacommunities.org/id/metropolitan-district-council/walsall ,WC128-558,31.07.2021,ADULT SOCIAL CARE,ADVANCE HEALTH CARE (UK) LTD,20/07/2021,635.81,6541-Domiciliary Care,THIRD PARTY PAYMENTS,PRIVATE CONTRACTOR,REVENUE
Walsall Council,http://opendatacommunities.org/id/metropolitan-district-council/walsall ,WC128-559,31.07.2021,ADULT SOCIAL CARE,ADVANCE HEALTH CARE (UK) LTD,20/07/2021,490.49,6541-Domiciliary Care,THIRD PARTY PAYMENTS,PRIVATE CONTRACTOR,REVENUE
Walsall Council,http://opendatacommunities.org/id/metropolitan-district-council/walsall ,WC128-560,31.07.2021,ADULT SOCIAL CARE,ADVANCE HEALTH CARE (UK) LTD,20/07/2021,654.01,6541-Domiciliary Care,THIRD PARTY PAYMENTS,PRIVATE CONTRACTOR,REVENUE
Walsall Council,http://opendatacommunities.org/id/metropolitan-district-council/walsall ,WC128-561,31.07.2021,ADULT SOCIAL CARE,ADVANCE HEALTH CARE (UK) LTD,20/07/2021,490.49,6541-Domiciliary Care,THIRD PARTY PAYMENTS,PRIVATE CONTRACTOR,REVENUE
Walsall Council,http://opendatacommunities.org/id/metropolitan-district-council/walsall ,WC128-562,31.07.2021,ADULT SOCIAL CARE,ADVANCE HEALTH CARE (UK) LTD,20/07/2021,490.49,6541-Domiciliary Care,THIRD PARTY PAYMENTS,PRIVATE CONTRACTOR,REVENUE
Walsall Council,http://opendatacommunities.org/id/metropolitan-district-council/walsall ,WC128-563,31.07.2021,ADULT SOCIAL CARE,ADVANCE HEALTH CARE (UK) LTD,20/07/2021,490.49,6541-Domiciliary Care,THIRD PARTY PAYMENTS,PRIVATE CONTRACTOR,REVENUE
Walsall Council,http://opendatacommunities.org/id/metropolitan-district-council/walsall ,WC128-564,31.07.2021,ADULT SOCIAL CARE,ADVANCE HEALTH CARE (UK) LTD,20/07/2021,490.49,6541-Domiciliary Care,THIRD PARTY PAYMENTS,PRIVATE CONTRACTOR,REVENUE
Walsall Council,http://opendatacommunities.org/id/metropolitan-district-council/walsall ,WC128-565,31.07.2021,ADULT SOCIAL CARE,ADVANCE HEALTH CARE (UK) LTD,20/07/2021,490.49,6541-Domiciliary Care,THIRD PARTY PAYMENTS,PRIVATE CONTRACTOR,REVENUE
Walsall Council,http://opendatacommunities.org/id/metropolitan-district-council/walsall ,WC128-566,31.07.2021,ADULT SOCIAL CARE,ADVANCE HEALTH CARE (UK) LTD,20/07/2021,840.84,6541-Domiciliary Care,THIRD PARTY PAYMENTS,PRIVATE CONTRACTOR,REVENUE
Walsall Council,http://opendatacommunities.org/id/metropolitan-district-council/walsall ,WC128-567,31.07.2021,ADULT SOCIAL CARE,ADVANCE HEALTH CARE (UK) LTD,20/07/2021,435.96,6541-Domiciliary Care,THIRD PARTY PAYMENTS,PRIVATE CONTRACTOR,REVENUE
Walsall Council,http://opendatacommunities.org/id/metropolitan-district-council/walsall ,WC128-568,31.07.2021,ADULT SOCIAL CARE,ADVANCE HEALTH CARE (UK) LTD,20/07/2021,544.95,6541-Domiciliary Care,THIRD PARTY PAYMENTS,PRIVATE CONTRACTOR,REVENUE
Walsall Council,http://opendatacommunities.org/id/metropolitan-district-council/walsall ,WC128-569,31.07.2021,ADULT SOCIAL CARE,ADVANCE HEALTH CARE (UK) LTD,20/07/2021,435.96,6541-Domiciliary Care,THIRD PARTY PAYMENTS,PRIVATE CONTRACTOR,REVENUE
Walsall Council,http://opendatacommunities.org/id/metropolitan-district-council/walsall ,WC128-570,31.07.2021,ADULT SOCIAL CARE,ADVANCE HEALTH CARE (UK) LTD,20/07/2021,980.91,6541-Domiciliary Care,THIRD PARTY PAYMENTS,PRIVATE CONTRACTOR,REVENUE
Walsall Council,http://opendatacommunities.org/id/metropolitan-district-council/walsall ,WC128-571,31.07.2021,ADULT SOCIAL CARE,ADVANCE HEALTH CARE (UK) LTD,20/07/2021,323.24,6541-Domiciliary Care,THIRD PARTY PAYMENTS,PRIVATE CONTRACTOR,REVENUE
Walsall Council,http://opendatacommunities.org/id/metropolitan-district-council/walsall ,WC128-572,31.07.2021,ADULT SOCIAL CARE,ADVANCE HEALTH CARE (UK) LTD,20/07/2021,490.49,6541-Domiciliary Care,THIRD PARTY PAYMENTS,PRIVATE CONTRACTOR,REVENUE
Walsall Council,http://opendatacommunities.org/id/metropolitan-district-council/walsall ,WC128-573,31.07.2021,ADULT SOCIAL CARE,ADVANCE HEALTH CARE (UK) LTD,20/07/2021,435.96,6541-Domiciliary Care,THIRD PARTY PAYMENTS,PRIVATE CONTRACTOR,REVENUE
Walsall Council,http://opendatacommunities.org/id/metropolitan-district-council/walsall ,WC128-574,31.07.2021,ADULT SOCIAL CARE,ADVANCE HEALTH CARE (UK) LTD,28/07/2021,490.56,6541-Domiciliary Care,THIRD PARTY PAYMENTS,PRIVATE CONTRACTOR,REVENUE
Walsall Council,http://opendatacommunities.org/id/metropolitan-district-council/walsall ,WC128-575,31.07.2021,ADULT SOCIAL CARE,ADVANCE HEALTH CARE (UK) LTD,28/07/2021,"1,471.47",6541-Domiciliary Care,THIRD PARTY PAYMENTS,PRIVATE CONTRACTOR,REVENUE
Walsall Council,http://opendatacommunities.org/id/metropolitan-district-council/walsall ,WC128-576,31.07.2021,ADULT SOCIAL CARE,ADVANCE HEALTH CARE (UK) LTD,28/07/2021,731.84,6541-Domiciliary Care,THIRD PARTY PAYMENTS,PRIVATE CONTRACTOR,REVENUE
Walsall Council,http://opendatacommunities.org/id/metropolitan-district-council/walsall ,WC128-577,31.07.2021,ADULT SOCIAL CARE,ADVANCE HEALTH CARE (UK) LTD,28/07/2021,716.58,6541-Domiciliary Care,THIRD PARTY PAYMENTS,PRIVATE CONTRACTOR,REVENUE
Walsall Council,http://opendatacommunities.org/id/metropolitan-district-council/walsall ,WC128-578,31.07.2021,ADULT SOCIAL CARE,ADVANCE HEALTH CARE (UK) LTD,28/07/2021,354.38,6541-Domiciliary Care,THIRD PARTY PAYMENTS,PRIVATE CONTRACTOR,REVENUE
Walsall Council,http://opendatacommunities.org/id/metropolitan-district-council/walsall ,WC128-579,31.07.2021,ADULT SOCIAL CARE,ADVANCE HEALTH CARE (UK) LTD,28/07/2021,801.91,6541-Domiciliary Care,THIRD PARTY PAYMENTS,PRIVATE CONTRACTOR,REVENUE
Walsall Council,http://opendatacommunities.org/id/metropolitan-district-council/walsall ,WC128-580,31.07.2021,ADULT SOCIAL CARE,ADVANCE HEALTH CARE (UK) LTD,28/07/2021,638.43,6541-Domiciliary Care,THIRD PARTY PAYMENTS,PRIVATE CONTRACTOR,REVENUE
Walsall Council,http://opendatacommunities.org/id/metropolitan-district-council/walsall ,WC128-581,31.07.2021,ADULT SOCIAL CARE,ADVANCE HEALTH CARE (UK) LTD,28/07/2021,260.93,6541-Domiciliary Care,THIRD PARTY PAYMENTS,PRIVATE CONTRACTOR,REVENUE
Walsall Council,http://opendatacommunities.org/id/metropolitan-district-council/walsall ,WC128-582,31.07.2021,ADULT SOCIAL CARE,ADVANCE HEALTH CARE (UK) LTD,28/07/2021,"1,276.83",6541-Domiciliary Care,THIRD PARTY PAYMENTS,PRIVATE CONTRACTOR,REVENUE
Walsall Council,http://opendatacommunities.org/id/metropolitan-district-council/walsall ,WC128-583,31.07.2021,ADULT SOCIAL CARE,ADVANCE HEALTH CARE (UK) LTD,28/07/2021,661.77,6541-Domiciliary Care,THIRD PARTY PAYMENTS,PRIVATE CONTRACTOR,REVENUE
Walsall Council,http://opendatacommunities.org/id/metropolitan-district-council/walsall ,WC128-584,31.07.2021,ADULT SOCIAL CARE,ADVANCE HEALTH CARE (UK) LTD,28/07/2021,871.99,6541-Domiciliary Care,THIRD PARTY PAYMENTS,PRIVATE CONTRACTOR,REVENUE
Walsall Council,http://opendatacommunities.org/id/metropolitan-district-council/walsall ,WC128-585,31.07.2021,ADULT SOCIAL CARE,ADVANCE HEALTH CARE (UK) LTD,28/07/2021,"1,152.26",6541-Domiciliary Care,THIRD PARTY PAYMENTS,PRIVATE CONTRACTOR,REVENUE
Walsall Council,http://opendatacommunities.org/id/metropolitan-district-council/walsall ,WC128-586,31.07.2021,ADULT SOCIAL CARE,ADVANCE HEALTH CARE (UK) LTD,28/07/2021,731.84,6541-Domiciliary Care,THIRD PARTY PAYMENTS,PRIVATE CONTRACTOR,REVENUE
Walsall Council,http://opendatacommunities.org/id/metropolitan-district-council/walsall ,WC128-587,31.07.2021,ADULT SOCIAL CARE,ADVANCE HEALTH CARE (UK) LTD,28/07/2021,"1,152.26",6541-Domiciliary Care,THIRD PARTY PAYMENTS,PRIVATE CONTRACTOR,REVENUE
Walsall Council,http://opendatacommunities.org/id/metropolitan-district-council/walsall ,WC128-588,31.07.2021,ADULT SOCIAL CARE,ADVANCE HEALTH CARE (UK) LTD,28/07/2021,"2,164.38",6541-Domiciliary Care,THIRD PARTY PAYMENTS,PRIVATE CONTRACTOR,REVENUE
Walsall Council,http://opendatacommunities.org/id/metropolitan-district-council/walsall ,WC128-589,31.07.2021,ADULT SOCIAL CARE,ADVANCE HEALTH CARE (UK) LTD,28/07/2021,401.13,6541-Domiciliary Care,THIRD PARTY PAYMENTS,PRIVATE CONTRACTOR,REVENUE
Walsall Council,http://opendatacommunities.org/id/metropolitan-district-council/walsall ,WC128-590,31.07.2021,ADULT SOCIAL CARE,ADVANCE HEALTH CARE (UK) LTD,20/07/2021,"1,155.18",6541-Domiciliary Care,THIRD PARTY PAYMENTS,PRIVATE CONTRACTOR,REVENUE
Walsall Council,http://opendatacommunities.org/id/metropolitan-district-council/walsall ,WC128-591,31.07.2021,ADULT SOCIAL CARE,ADVANCE HEALTH CARE (UK) LTD,20/07/2021,760.58,6541-Domiciliary Care,THIRD PARTY PAYMENTS,PRIVATE CONTRACTOR,REVENUE
Walsall Council,http://opendatacommunities.org/id/metropolitan-district-council/walsall ,WC128-592,31.07.2021,ADULT SOCIAL CARE,ADVANCE HEALTH CARE (UK) LTD,01/07/2021,"2,564.72",6541-Domiciliary Care,THIRD PARTY PAYMENTS,PRIVATE CONTRACTOR,REVENUE
Walsall Council,http://opendatacommunities.org/id/metropolitan-district-council/walsall ,WC128-593,31.07.2021,ADULT SOCIAL CARE,ADVANCE HEALTH CARE (UK) LTD,01/07/2021,763.00,6541-Domiciliary Care,THIRD PARTY PAYMENTS,PRIVATE CONTRACTOR,REVENUE
Walsall Council,http://opendatacommunities.org/id/metropolitan-district-council/walsall ,WC128-594,31.07.2021,ADULT SOCIAL CARE,ADVANCE HEALTH CARE (UK) LTD,01/07/2021,"1,126.04",6541-Domiciliary Care,THIRD PARTY PAYMENTS,PRIVATE CONTRACTOR,REVENUE
Walsall Council,http://opendatacommunities.org/id/metropolitan-district-council/walsall ,WC128-595,31.07.2021,ADULT SOCIAL CARE,ADVANCE HEALTH CARE (UK) LTD,01/07/2021,825.28,6541-Domiciliary Care,THIRD PARTY PAYMENTS,PRIVATE CONTRACTOR,REVENUE
Walsall Council,http://opendatacommunities.org/id/metropolitan-district-council/walsall ,WC128-596,31.07.2021,ADULT SOCIAL CARE,ADVANCE HEALTH CARE (UK) LTD,01/07/2021,"1,744.12",6541-Domiciliary Care,THIRD PARTY PAYMENTS,PRIVATE CONTRACTOR,REVENUE
Walsall Council,http://opendatacommunities.org/id/metropolitan-district-council/walsall ,WC128-597,31.07.2021,ADULT SOCIAL CARE,ADVANCE HEALTH CARE (UK) LTD,20/07/2021,"2,761.92",6541-Domiciliary Care,THIRD PARTY PAYMENTS,PRIVATE CONTRACTOR,REVENUE
Walsall Council,http://opendatacommunities.org/id/metropolitan-district-council/walsall ,WC128-598,31.07.2021,ADULT SOCIAL CARE,ADVANCE HEALTH CARE (UK) LTD,28/07/2021,"2,107.84",6541-Domiciliary Care,THIRD PARTY PAYMENTS,PRIVATE CONTRACTOR,REVENUE
Walsall Council,http://opendatacommunities.org/id/metropolitan-district-council/walsall ,WC128-599,31.07.2021,ADULT SOCIAL CARE,ADVANCE HEALTH CARE (UK) LTD,01/07/2021,726.88,6541-Domiciliary Care,THIRD PARTY PAYMENTS,PRIVATE CONTRACTOR,REVENUE
Walsall Council,http://opendatacommunities.org/id/metropolitan-district-council/walsall ,WC128-600,31.07.2021,ADULT SOCIAL CARE,ADVANCE HEALTH CARE (UK) LTD,01/07/2021,"1,028.12",6541-Domiciliary Care,THIRD PARTY PAYMENTS,PRIVATE CONTRACTOR,REVENUE
Walsall Council,http://opendatacommunities.org/id/metropolitan-district-council/walsall ,WC128-601,31.07.2021,ADULT SOCIAL CARE,ADVANCE HEALTH CARE (UK) LTD,01/07/2021,825.28,6541-Domiciliary Care,THIRD PARTY PAYMENTS,PRIVATE CONTRACTOR,REVENUE
Walsall Council,http://opendatacommunities.org/id/metropolitan-district-council/walsall ,WC128-602,31.07.2021,ADULT SOCIAL CARE,ADVANCE HEALTH CARE (UK) LTD,01/07/2021,786.75,6541-Domiciliary Care,THIRD PARTY PAYMENTS,PRIVATE CONTRACTOR,REVENUE
Walsall Council,http://opendatacommunities.org/id/metropolitan-district-council/walsall ,WC128-603,31.07.2021,ADULT SOCIAL CARE,ADVANCE HEALTH CARE (UK) LTD,01/07/2021,965.84,6541-Domiciliary Care,THIRD PARTY PAYMENTS,PRIVATE CONTRACTOR,REVENUE
Walsall Council,http://opendatacommunities.org/id/metropolitan-district-council/walsall ,WC128-604,31.07.2021,ADULT SOCIAL CARE,ADVANCE HEALTH CARE (UK) LTD,28/07/2021,472.36,6541-Domiciliary Care,THIRD PARTY PAYMENTS,PRIVATE CONTRACTOR,REVENUE
Walsall Council,http://opendatacommunities.org/id/metropolitan-district-council/walsall ,WC128-605,31.07.2021,ADULT SOCIAL CARE,ADVANCE HEALTH CARE (UK) LTD,28/07/2021,763.00,6541-Domiciliary Care,THIRD PARTY PAYMENTS,PRIVATE CONTRACTOR,REVENUE
Walsall Council,http://opendatacommunities.org/id/metropolitan-district-council/walsall ,WC128-606,31.07.2021,ADULT SOCIAL CARE,ADVANCE HEALTH CARE (UK) LTD,28/07/2021,"1,126.04",6541-Domiciliary Care,THIRD PARTY PAYMENTS,PRIVATE CONTRACTOR,REVENUE
Walsall Council,http://opendatacommunities.org/id/metropolitan-district-council/walsall ,WC128-607,31.07.2021,ADULT SOCIAL CARE,ADVANCE HEALTH CARE (UK) LTD,28/07/2021,825.28,6541-Domiciliary Care,THIRD PARTY PAYMENTS,PRIVATE CONTRACTOR,REVENUE
Walsall Council,http://opendatacommunities.org/id/metropolitan-district-council/walsall ,WC128-608,31.07.2021,ADULT SOCIAL CARE,ADVANCE HEALTH CARE (UK) LTD,28/07/2021,"1,744.12",6541-Domiciliary Care,THIRD PARTY PAYMENTS,PRIVATE CONTRACTOR,REVENUE
Walsall Council,http://opendatacommunities.org/id/metropolitan-district-council/walsall ,WC128-609,31.07.2021,ADULT SOCIAL CARE,ADVANCE HEALTH CARE (UK) LTD,28/07/2021,"2,761.92",6541-Domiciliary Care,THIRD PARTY PAYMENTS,PRIVATE CONTRACTOR,REVENUE
Walsall Council,http://opendatacommunities.org/id/metropolitan-district-council/walsall ,WC128-610,31.07.2021,ADULT SOCIAL CARE,ADVANCE HEALTH CARE (UK) LTD,28/07/2021,"2,107.84",6541-Domiciliary Care,THIRD PARTY PAYMENTS,PRIVATE CONTRACTOR,REVENUE
Walsall Council,http://opendatacommunities.org/id/metropolitan-district-council/walsall ,WC128-611,31.07.2021,ADULT SOCIAL CARE,ADVANCE HEALTH CARE (UK) LTD,28/07/2021,726.88,6541-Domiciliary Care,THIRD PARTY PAYMENTS,PRIVATE CONTRACTOR,REVENUE
Walsall Council,http://opendatacommunities.org/id/metropolitan-district-council/walsall ,WC128-612,31.07.2021,ADULT SOCIAL CARE,ADVANCE HEALTH CARE (UK) LTD,28/07/2021,"1,028.12",6541-Domiciliary Care,THIRD PARTY PAYMENTS,PRIVATE CONTRACTOR,REVENUE
Walsall Council,http://opendatacommunities.org/id/metropolitan-district-council/walsall ,WC128-613,31.07.2021,ADULT SOCIAL CARE,ADVANCE HEALTH CARE (UK) LTD,28/07/2021,851.44,6541-Domiciliary Care,THIRD PARTY PAYMENTS,PRIVATE CONTRACTOR,REVENUE
Walsall Council,http://opendatacommunities.org/id/metropolitan-district-council/walsall ,WC128-614,31.07.2021,ADULT SOCIAL CARE,ADVANCE HEALTH CARE (UK) LTD,28/07/2021,825.28,6541-Domiciliary Care,THIRD PARTY PAYMENTS,PRIVATE CONTRACTOR,REVENUE
Walsall Council,http://opendatacommunities.org/id/metropolitan-district-council/walsall ,WC128-615,31.07.2021,ADULT SOCIAL CARE,ADVANCE HEALTH CARE (UK) LTD,28/07/2021,716.64,6541-Domiciliary Care,THIRD PARTY PAYMENTS,PRIVATE CONTRACTOR,REVENUE
Walsall Council,http://opendatacommunities.org/id/metropolitan-district-council/walsall ,WC128-616,31.07.2021,ADULT SOCIAL CARE,ADVANCE HEALTH CARE (UK) LTD,28/07/2021,965.84,6541-Domiciliary Care,THIRD PARTY PAYMENTS,PRIVATE CONTRACTOR,REVENUE
Walsall Council,http://opendatacommunities.org/id/metropolitan-district-council/walsall ,WC128-617,31.07.2021,CHILDRENS,ADVENTURELAND DAY NURSERY,15/07/2021,320.00,1184-Transfer Payments-Other Schoolchildren/Student Related Items,TRANSFER PAYMENTS,SCHOOLCHILDREN/STUDENTS,REVENUE
Walsall Council,http://opendatacommunities.org/id/metropolitan-district-council/walsall ,WC128-618,31.07.2021,ADULT SOCIAL CARE,ADVINIA CARE HOMES LTD - HAMMERWICH HALL CARE HOME,05/07/2021,"2,331.08",6541-Residential EMI,THIRD PARTY PAYMENTS,PRIVATE CONTRACTOR,REVENUE
Walsall Council,http://opendatacommunities.org/id/metropolitan-district-council/walsall ,WC128-619,31.07.2021,ADULT SOCIAL CARE,ADVINIA CARE HOMES LTD - HAMMERWICH HALL CARE HOME,05/07/2021,"2,064.44",6541-Residential,THIRD PARTY PAYMENTS,PRIVATE CONTRACTOR,REVENUE
Walsall Council,http://opendatacommunities.org/id/metropolitan-district-council/walsall ,WC128-620,31.07.2021,ADULT SOCIAL CARE,ADVOCACY MATTERS LIMITED,27/07/2021,"14,830.86",6553-Social Services-Fees to Voluntary Bodies,THIRD PARTY PAYMENTS,VOLUNTARY BODIES,REVENUE
Walsall Council,http://opendatacommunities.org/id/metropolitan-district-council/walsall ,WC128-621,31.07.2021,ECONOMY & ENVIRONMENT,AFGHAN COMMUNITY & WELFARE CENTRE,21/07/2021,"3,061.49",6430-Consultant Fees,SUPPLIES & SERVICES,SERVICES,REVENUE
Walsall Council,http://opendatacommunities.org/id/metropolitan-district-council/walsall ,WC128-622,31.07.2021,CHILDRENS,REDACTED,28/07/2021,546.76,6223-Foster Carers Maintenance Allowance,TRANSFER PAYMENTS,CHILDREN SOCIAL SERVICES CLIENT,REVENUE
Walsall Council,http://opendatacommunities.org/id/metropolitan-district-council/walsall ,WC128-623,31.07.2021,CHILDRENS,REDACTED,28/07/2021,546.76,6223-Foster Carers Maintenance Allowance,TRANSFER PAYMENTS,CHILDREN SOCIAL SERVICES CLIENT,REVENUE
Walsall Council,http://opendatacommunities.org/id/metropolitan-district-council/walsall ,WC128-624,31.07.2021,RESOURCES AND TRANSFORMATION,AGILISYS LTD,07/07/2021,"-855,000.00",6623-Computer Equipment,SUPPLIES & SERVICES,COMMUNICATIONS & COMPUTING,REVENUE
Walsall Council,http://opendatacommunities.org/id/metropolitan-district-council/walsall ,WC128-625,31.07.2021,RESOURCES AND TRANSFORMATION,AGILISYS LTD,07/07/2021,"95,000.00",6623-Computer Equipment,SUPPLIES & SERVICES,COMMUNICATIONS & COMPUTING,REVENUE
Walsall Council,http://opendatacommunities.org/id/metropolitan-district-council/walsall ,WC128-626,31.07.2021,RESOURCES AND TRANSFORMATION,AGILISYS LTD,07/07/2021,"855,000.00",6623-Computer Equipment,SUPPLIES & SERVICES,COMMUNICATIONS & COMPUTING,REVENUE
Walsall Council,http://opendatacommunities.org/id/metropolitan-district-council/walsall ,WC128-627,31.07.2021,ECONOMY & ENVIRONMENT,AGROVISTA UK LTD,07/07/2021,250.95,6410-Materials,SUPPLIES & SERVICES,EQUIPMENT FURNITURE & MATERIALS,REVENUE
Walsall Council,http://opendatacommunities.org/id/metropolitan-district-council/walsall ,WC128-628,31.07.2021,ADULT SOCIAL CARE,REDACTED,07/07/2021,"2,480.64",6541-Direct Payment,THIRD PARTY PAYMENTS,PRIVATE CONTRACTOR,REVENUE
Walsall Council,http://opendatacommunities.org/id/metropolitan-district-council/walsall ,WC128-629,31.07.2021,CHILDRENS,AIREY CONSULTANCY SERVICES LTD,27/07/2021,650.00,6632-Computer Equipment,SUPPLIES & SERVICES,COMMUNICATIONS & COMPUTING,REVENUE
Walsall Council,http://opendatacommunities.org/id/metropolitan-district-council/walsall ,WC128-630,31.07.2021,ADULT SOCIAL CARE,AISHA MOSQUE ISLAMIC CENTRE,29/07/2021,"5,900.00",6420-Professional Services-Priv Contractor & Other Agencies,THIRD PARTY PAYMENTS,PRIVATE CONTRACTOR,REVENUE
Walsall Council,http://opendatacommunities.org/id/metropolitan-district-council/walsall ,WC128-631,31.07.2021,RESOURCES AND TRANSFORMATION,ALASDAIR CANT & ASSOCIATES LIMITED,12/07/2021,"2,605.50",6625-Consultant Fees,SUPPLIES & SERVICES,SERVICES,REVENUE
Walsall Council,http://opendatacommunities.org/id/metropolitan-district-council/walsall ,WC128-632,31.07.2021,RESOURCES AND TRANSFORMATION,ALASDAIR CANT & ASSOCIATES LIMITED,22/07/2021,"2,605.50",6625-Consultant Fees,SUPPLIES & SERVICES,SERVICES,REVENUE
Walsall Council,http://opendatacommunities.org/id/metropolitan-district-council/walsall ,WC128-633,31.07.2021,ECONOMY & ENVIRONMENT,ALBERT JAGGER LTD,15/07/2021,313.08,6410-Materials to Stores,SUPPLIES & SERVICES,EQUIPMENT FURNITURE & MATERIALS,REVENUE
Walsall Council,http://opendatacommunities.org/id/metropolitan-district-council/walsall ,WC128-634,31.07.2021,CHILDRENS,ALDRIDGE & BARONS LIMITED,19/07/2021,"2,462.40",6241-Hire of Vehicle with Driver,TRANSPORT,DIRECT TRANSPORT COSTS,REVENUE
Walsall Council,http://opendatacommunities.org/id/metropolitan-district-council/walsall ,WC128-635,31.07.2021,CHILDRENS,ALDRIDGE & BARONS LIMITED,19/07/2021,"2,660.00",6241-Hire of Vehicle with Driver,TRANSPORT,DIRECT TRANSPORT COSTS,REVENUE
Walsall Council,http://opendatacommunities.org/id/metropolitan-district-council/walsall ,WC128-636,31.07.2021,CHILDRENS,ALDRIDGE & BARONS LIMITED,19/07/2021,"1,862.00",6241-Hire of Vehicle with Driver,TRANSPORT,DIRECT TRANSPORT COSTS,REVENUE
Walsall Council,http://opendatacommunities.org/id/metropolitan-district-council/walsall ,WC128-637,31.07.2021,CHILDRENS,ALDRIDGE & BARONS LIMITED,19/07/2021,"1,640.00",6241-Hire of Vehicle with Driver,TRANSPORT,DIRECT TRANSPORT COSTS,REVENUE
Walsall Council,http://opendatacommunities.org/id/metropolitan-district-council/walsall ,WC128-638,31.07.2021,CHILDRENS,ALDRIDGE & BARONS LIMITED,19/07/2021,"1,640.00",6241-Hire of Vehicle with Driver,TRANSPORT,DIRECT TRANSPORT COSTS,REVENUE
Walsall Council,http://opendatacommunities.org/id/metropolitan-district-council/walsall ,WC128-639,31.07.2021,CHILDRENS,ALDRIDGE & BARONS LIMITED,19/07/2021,"1,160.00",6241-Hire of Vehicle with Driver,TRANSPORT,DIRECT TRANSPORT COSTS,REVENUE
Walsall Council,http://opendatacommunities.org/id/metropolitan-district-council/walsall ,WC128-640,31.07.2021,CHILDRENS,ALDRIDGE & BARONS LIMITED,19/07/2021,"1,140.00",6241-Hire of Vehicle with Driver,TRANSPORT,DIRECT TRANSPORT COSTS,REVENUE
Walsall Council,http://opendatacommunities.org/id/metropolitan-district-council/walsall ,WC128-641,31.07.2021,CHILDRENS,ALDRIDGE & BARONS LIMITED,19/07/2021,"1,640.00",6241-Hire of Vehicle with Driver,TRANSPORT,DIRECT TRANSPORT COSTS,REVENUE
Walsall Council,http://opendatacommunities.org/id/metropolitan-district-council/walsall ,WC128-642,31.07.2021,CHILDRENS,ALDRIDGE & BARONS LIMITED,19/07/2021,"1,885.00",6241-Hire of Vehicle with Driver,TRANSPORT,DIRECT TRANSPORT COSTS,REVENUE
Walsall Council,http://opendatacommunities.org/id/metropolitan-district-council/walsall ,WC128-643,31.07.2021,CHILDRENS,ALDRIDGE & BARONS LIMITED,19/07/2021,"1,575.60",6241-Hire of Vehicle with Driver,TRANSPORT,DIRECT TRANSPORT COSTS,REVENUE
Walsall Council,http://opendatacommunities.org/id/metropolitan-district-council/walsall ,WC128-644,31.07.2021,CHILDRENS,ALDRIDGE & BARONS LIMITED,19/07/2021,"1,956.00",6241-Hire of Vehicle with Driver,TRANSPORT,DIRECT TRANSPORT COSTS,REVENUE
Walsall Council,http://opendatacommunities.org/id/metropolitan-district-council/walsall ,WC128-645,31.07.2021,CHILDRENS,ALDRIDGE & BARONS LIMITED,19/07/2021,"1,600.00",6241-Hire of Vehicle with Driver,TRANSPORT,DIRECT TRANSPORT COSTS,REVENUE
Walsall Council,http://opendatacommunities.org/id/metropolitan-district-council/walsall ,WC128-646,31.07.2021,CHILDRENS,ALDRIDGE & BARONS LIMITED,19/07/2021,"1,000.00",6241-Hire of Vehicle with Driver,TRANSPORT,DIRECT TRANSPORT COSTS,REVENUE
Walsall Council,http://opendatacommunities.org/id/metropolitan-district-council/walsall ,WC128-647,31.07.2021,CHILDRENS,ALDRIDGE & BARONS LIMITED,19/07/2021,864.00,6241-Hire of Vehicle with Driver,TRANSPORT,DIRECT TRANSPORT COSTS,REVENUE
Walsall Council,http://opendatacommunities.org/id/metropolitan-district-council/walsall ,WC128-648,31.07.2021,CHILDRENS,ALDRIDGE & BARONS LIMITED,19/07/2021,"1,786.00",6241-Hire of Vehicle with Driver,TRANSPORT,DIRECT TRANSPORT COSTS,REVENUE
Walsall Council,http://opendatacommunities.org/id/metropolitan-district-council/walsall ,WC128-649,31.07.2021,CHILDRENS,ALDRIDGE & BARONS LIMITED,19/07/2021,"2,416.00",6241-Hire of Vehicle with Driver,TRANSPORT,DIRECT TRANSPORT COSTS,REVENUE
Walsall Council,http://opendatacommunities.org/id/metropolitan-district-council/walsall ,WC128-650,31.07.2021,CHILDRENS,ALDRIDGE & BARONS LIMITED,19/07/2021,720.00,6241-Hire of Vehicle with Driver,TRANSPORT,DIRECT TRANSPORT COSTS,REVENUE
Walsall Council,http://opendatacommunities.org/id/metropolitan-district-council/walsall ,WC128-651,31.07.2021,CHILDRENS,ALDRIDGE & BARONS LIMITED,19/07/2021,920.00,6241-Hire of Vehicle with Driver,TRANSPORT,DIRECT TRANSPORT COSTS,REVENUE
Walsall Council,http://opendatacommunities.org/id/metropolitan-district-council/walsall ,WC128-652,31.07.2021,CHILDRENS,ALDRIDGE & BARONS LIMITED,19/07/2021,696.00,6241-Hire of Vehicle with Driver,TRANSPORT,DIRECT TRANSPORT COSTS,REVENUE
Walsall Council,http://opendatacommunities.org/id/metropolitan-district-council/walsall ,WC128-653,31.07.2021,CHILDRENS,ALDRIDGE & BARONS LIMITED,19/07/2021,"1,596.00",6241-Hire of Vehicle with Driver,TRANSPORT,DIRECT TRANSPORT COSTS,REVENUE
Walsall Council,http://opendatacommunities.org/id/metropolitan-district-council/walsall ,WC128-654,31.07.2021,CHILDRENS,ALDRIDGE & BARONS LIMITED,19/07/2021,"1,944.00",6241-Hire of Vehicle with Driver,TRANSPORT,DIRECT TRANSPORT COSTS,REVENUE
Walsall Council,http://opendatacommunities.org/id/metropolitan-district-council/walsall ,WC128-655,31.07.2021,CHILDRENS,ALDRIDGE & BARONS LIMITED,19/07/2021,"1,520.00",6241-Hire of Vehicle with Driver,TRANSPORT,DIRECT TRANSPORT COSTS,REVENUE
Walsall Council,http://opendatacommunities.org/id/metropolitan-district-council/walsall ,WC128-656,31.07.2021,CHILDRENS,ALDRIDGE & BARONS LIMITED,19/07/2021,"1,728.24",6241-Hire of Vehicle with Driver,TRANSPORT,DIRECT TRANSPORT COSTS,REVENUE
Walsall Council,http://opendatacommunities.org/id/metropolitan-district-council/walsall ,WC128-657,31.07.2021,CHILDRENS,ALDRIDGE & BARONS LIMITED,19/07/2021,"2,850.00",6241-Hire of Vehicle with Driver,TRANSPORT,DIRECT TRANSPORT COSTS,REVENUE
Walsall Council,http://opendatacommunities.org/id/metropolitan-district-council/walsall ,WC128-658,31.07.2021,CHILDRENS,ALDRIDGE & BARONS LIMITED,19/07/2021,"1,720.00",6241-Hire of Vehicle with Driver,TRANSPORT,DIRECT TRANSPORT COSTS,REVENUE
Walsall Council,http://opendatacommunities.org/id/metropolitan-district-council/walsall ,WC128-659,31.07.2021,CHILDRENS,ALDRIDGE & BARONS LIMITED,19/07/2021,"1,988.16",6241-Hire of Vehicle with Driver,TRANSPORT,DIRECT TRANSPORT COSTS,REVENUE
Walsall Council,http://opendatacommunities.org/id/metropolitan-district-council/walsall ,WC128-660,31.07.2021,CHILDRENS,ALDRIDGE & BARONS LIMITED,19/07/2021,"1,116.00",6241-Hire of Vehicle with Driver,TRANSPORT,DIRECT TRANSPORT COSTS,REVENUE
Walsall Council,http://opendatacommunities.org/id/metropolitan-district-council/walsall ,WC128-661,31.07.2021,CHILDRENS,ALDRIDGE & BARONS LIMITED,19/07/2021,"1,512.00",6241-Hire of Vehicle with Driver,TRANSPORT,DIRECT TRANSPORT COSTS,REVENUE
Walsall Council,http://opendatacommunities.org/id/metropolitan-district-council/walsall ,WC128-662,31.07.2021,CHILDRENS,ALDRIDGE & BARONS LIMITED,19/07/2021,"2,138.40",6241-Hire of Vehicle with Driver,TRANSPORT,DIRECT TRANSPORT COSTS,REVENUE
Walsall Council,http://opendatacommunities.org/id/metropolitan-district-council/walsall ,WC128-663,31.07.2021,CHILDRENS,ALDRIDGE & BARONS LIMITED,19/07/2021,"1,900.00",6241-Hire of Vehicle with Driver,TRANSPORT,DIRECT TRANSPORT COSTS,REVENUE
Walsall Council,http://opendatacommunities.org/id/metropolitan-district-council/walsall ,WC128-664,31.07.2021,CHILDRENS,ALDRIDGE & BARONS LIMITED,19/07/2021,"1,985.00",6241-Hire of Vehicle with Driver,TRANSPORT,DIRECT TRANSPORT COSTS,REVENUE
Walsall Council,http://opendatacommunities.org/id/metropolitan-district-council/walsall ,WC128-665,31.07.2021,CHILDRENS,ALDRIDGE & BARONS LIMITED,19/07/2021,"1,800.00",6241-Hire of Vehicle with Driver,TRANSPORT,DIRECT TRANSPORT COSTS,REVENUE
Walsall Council,http://opendatacommunities.org/id/metropolitan-district-council/walsall ,WC128-666,31.07.2021,CHILDRENS,ALDRIDGE & BARONS LIMITED,19/07/2021,"2,080.00",6241-Hire of Vehicle with Driver,TRANSPORT,DIRECT TRANSPORT COSTS,REVENUE
Walsall Council,http://opendatacommunities.org/id/metropolitan-district-council/walsall ,WC128-667,31.07.2021,CHILDRENS,ALDRIDGE & BARONS LIMITED,19/07/2021,"1,060.20",6241-Hire of Vehicle with Driver,TRANSPORT,DIRECT TRANSPORT COSTS,REVENUE
Walsall Council,http://opendatacommunities.org/id/metropolitan-district-council/walsall ,WC128-668,31.07.2021,ADULT SOCIAL CARE,REDACTED,07/07/2021,"1,480.32",6541-Direct Payment,THIRD PARTY PAYMENTS,PRIVATE CONTRACTOR,REVENUE
Walsall Council,http://opendatacommunities.org/id/metropolitan-district-council/walsall ,WC128-669,31.07.2021,ADULT SOCIAL CARE,ALEXANDRA HOUSE CARE SERVICES LTD T/A STONEBRIDGE NURSING HOME,05/07/2021,"7,434.72",6541-Residential,THIRD PARTY PAYMENTS,PRIVATE CONTRACTOR,REVENUE
Walsall Council,http://opendatacommunities.org/id/metropolitan-district-council/walsall ,WC128-670,31.07.2021,ADULT SOCIAL CARE,REDACTED,07/07/2021,957.44,6541-Direct Payment,THIRD PARTY PAYMENTS,PRIVATE CONTRACTOR,REVENUE
Walsall Council,http://opendatacommunities.org/id/metropolitan-district-council/walsall ,WC128-671,31.07.2021,CHILDRENS,REDACTED,28/07/2021,320.36,6223-Special Guardianship Orders,TRANSFER PAYMENTS,CHILDREN SOCIAL SERVICES CLIENT,REVENUE
Walsall Council,http://opendatacommunities.org/id/metropolitan-district-council/walsall ,WC128-672,31.07.2021,CHILDRENS,ALLIANCE CARE LTD,16/07/2021,"4,814.22",6222-Professional Services-Priv Contractor & Other Agencies,THIRD PARTY PAYMENTS,PRIVATE CONTRACTOR,REVENUE
Walsall Council,http://opendatacommunities.org/id/metropolitan-district-council/walsall ,WC128-673,31.07.2021,CHILDRENS,ALLIANCE CARE LTD,16/07/2021,591.15,6222-Professional Services-Priv Contractor & Other Agencies,THIRD PARTY PAYMENTS,PRIVATE CONTRACTOR,REVENUE
Walsall Council,http://opendatacommunities.org/id/metropolitan-district-council/walsall ,WC128-674,31.07.2021,RESOURCES AND TRANSFORMATION,ALLIED PUBLICITY SERVICES (MANCHESTER) LIMITED T/A APS GROUP,07/07/2021,997.31,6312-External Printing Services,SUPPLIES & SERVICES,PRINTING STATIONERY & GENERAL OFFICE,REVENUE
Walsall Council,http://opendatacommunities.org/id/metropolitan-district-council/walsall ,WC128-675,31.07.2021,ADULT SOCIAL CARE,ALMA COURT,05/07/2021,"3,826.96",6541-Nursing EMI,THIRD PARTY PAYMENTS,PRIVATE CONTRACTOR,REVENUE
Walsall Council,http://opendatacommunities.org/id/metropolitan-district-council/walsall ,WC128-676,31.07.2021,ADULT SOCIAL CARE,ALMA COURT,05/07/2021,"-8,523.08",6541-Nursing EMI,THIRD PARTY PAYMENTS,PRIVATE CONTRACTOR,REVENUE
Walsall Council,http://opendatacommunities.org/id/metropolitan-district-council/walsall ,WC128-677,31.07.2021,ADULT SOCIAL CARE,ALMA COURT,05/07/2021,"3,626.96",6541-Nursing EMI,THIRD PARTY PAYMENTS,PRIVATE CONTRACTOR,REVENUE
Walsall Council,http://opendatacommunities.org/id/metropolitan-district-council/walsall ,WC128-678,31.07.2021,ADULT SOCIAL CARE,ALMA COURT,05/07/2021,"6,619.12",6541-Residential,THIRD PARTY PAYMENTS,PRIVATE CONTRACTOR,REVENUE
Walsall Council,http://opendatacommunities.org/id/metropolitan-district-council/walsall ,WC128-679,31.07.2021,ADULT SOCIAL CARE,ALMA COURT,05/07/2021,"4,764.88",6541-Nursing EMI,THIRD PARTY PAYMENTS,PRIVATE CONTRACTOR,REVENUE
Walsall Council,http://opendatacommunities.org/id/metropolitan-district-council/walsall ,WC128-680,31.07.2021,CHILDRENS,ALMOZENE NURSERY & CHILDRENS CENTRE,20/07/2021,"1,778.40",1184-Other-Grants to Other Orgs,SUPPLIES & SERVICES,GRANTS (EXP) & SUBSCRIPTIONS,REVENUE
Walsall Council,http://opendatacommunities.org/id/metropolitan-district-council/walsall ,WC128-681,31.07.2021,ECONOMY & ENVIRONMENT,ALMOZENE NURSERY & CHILDRENS CENTRE,09/07/2021,654.91,6313-Grants to Other Orgs,SUPPLIES & SERVICES,GRANTS (EXP) & SUBSCRIPTIONS,REVENUE
Walsall Council,http://opendatacommunities.org/id/metropolitan-district-council/walsall ,WC128-682,31.07.2021,ECONOMY & ENVIRONMENT,ALMOZENE NURSERY & CHILDRENS CENTRE,09/07/2021,996.85,6313-Grants to Other Orgs,SUPPLIES & SERVICES,GRANTS (EXP) & SUBSCRIPTIONS,REVENUE
Walsall Council,http://opendatacommunities.org/id/metropolitan-district-council/walsall ,WC128-683,31.07.2021,ECONOMY & ENVIRONMENT,ALMOZENE NURSERY & CHILDRENS CENTRE,02/07/2021,500.00,6313-Grants to Other Orgs,SUPPLIES & SERVICES,GRANTS (EXP) & SUBSCRIPTIONS,REVENUE
Walsall Council,http://opendatacommunities.org/id/metropolitan-district-council/walsall ,WC128-684,31.07.2021,ADULT SOCIAL CARE,ALPHA HEALTH CARE LTD,05/07/2021,"2,722.96",6541-Nursing EMI,THIRD PARTY PAYMENTS,PRIVATE CONTRACTOR,REVENUE
Walsall Council,http://opendatacommunities.org/id/metropolitan-district-council/walsall ,WC128-685,31.07.2021,ADULT SOCIAL CARE,ALPHA HEALTH CARE LTD,05/07/2021,"2,223.63",6541-Nursing EMI,THIRD PARTY PAYMENTS,PRIVATE CONTRACTOR,REVENUE
Walsall Council,http://opendatacommunities.org/id/metropolitan-district-council/walsall ,WC128-686,31.07.2021,ADULT SOCIAL CARE,ALPHA HEALTH CARE LTD,05/07/2021,"2,854.56",6541-Residential EMI,THIRD PARTY PAYMENTS,PRIVATE CONTRACTOR,REVENUE
Walsall Council,http://opendatacommunities.org/id/metropolitan-district-council/walsall ,WC128-687,31.07.2021,ADULT SOCIAL CARE,ALPHA HEALTH CARE LTD,05/07/2021,"2,722.96",6541-Nursing EMI,THIRD PARTY PAYMENTS,PRIVATE CONTRACTOR,REVENUE
Walsall Council,http://opendatacommunities.org/id/metropolitan-district-council/walsall ,WC128-688,31.07.2021,ADULT SOCIAL CARE,ALPHA HEALTH CARE LTD,05/07/2021,"7,026.96",6541-Nursing EMI,THIRD PARTY PAYMENTS,PRIVATE CONTRACTOR,REVENUE
Walsall Council,http://opendatacommunities.org/id/metropolitan-district-council/walsall ,WC128-689,31.07.2021,ADULT SOCIAL CARE,ALPHA HEALTH CARE LTD,05/07/2021,"2,331.08",6541-Residential EMI,THIRD PARTY PAYMENTS,PRIVATE CONTRACTOR,REVENUE
Walsall Council,http://opendatacommunities.org/id/metropolitan-district-council/walsall ,WC128-690,31.07.2021,ADULT SOCIAL CARE,ALPHA HEALTH CARE LTD,05/07/2021,"2,722.96",6541-Nursing EMI,THIRD PARTY PAYMENTS,PRIVATE CONTRACTOR,REVENUE
Walsall Council,http://opendatacommunities.org/id/metropolitan-district-council/walsall ,WC128-691,31.07.2021,ADULT SOCIAL CARE,ALPHA HEALTH CARE LTD,05/07/2021,"2,369.51",6541-Nursing EMI,THIRD PARTY PAYMENTS,PRIVATE CONTRACTOR,REVENUE
Walsall Council,http://opendatacommunities.org/id/metropolitan-district-council/walsall ,WC128-692,31.07.2021,ADULT SOCIAL CARE,ALPHA HEALTH CARE LTD,05/07/2021,"2,961.72",6541-Nursing,THIRD PARTY PAYMENTS,PRIVATE CONTRACTOR,REVENUE
Walsall Council,http://opendatacommunities.org/id/metropolitan-district-council/walsall ,WC128-693,31.07.2021,ADULT SOCIAL CARE,ALPHA HEALTH CARE LTD,05/07/2021,"3,200.44",6541-Residential,THIRD PARTY PAYMENTS,PRIVATE CONTRACTOR,REVENUE
Walsall Council,http://opendatacommunities.org/id/metropolitan-district-council/walsall ,WC128-694,31.07.2021,ADULT SOCIAL CARE,ALPHA HEALTH CARE LTD,05/07/2021,"2,331.08",6541-Residential EMI,THIRD PARTY PAYMENTS,PRIVATE CONTRACTOR,REVENUE
Walsall Council,http://opendatacommunities.org/id/metropolitan-district-council/walsall ,WC128-695,31.07.2021,ADULT SOCIAL CARE,ALPHA HEALTH CARE LTD,05/07/2021,"2,868.28",6541-Nursing,THIRD PARTY PAYMENTS,PRIVATE CONTRACTOR,REVENUE
Walsall Council,http://opendatacommunities.org/id/metropolitan-district-council/walsall ,WC128-696,31.07.2021,ADULT SOCIAL CARE,ALPHA HEALTH CARE LTD,05/07/2021,"3,626.96",6541-Nursing EMI,THIRD PARTY PAYMENTS,PRIVATE CONTRACTOR,REVENUE
Walsall Council,http://opendatacommunities.org/id/metropolitan-district-council/walsall ,WC128-697,31.07.2021,ADULT SOCIAL CARE,ALPHA HEALTH CARE LTD,05/07/2021,"5,656.00",6541-Residential,THIRD PARTY PAYMENTS,PRIVATE CONTRACTOR,REVENUE
Walsall Council,http://opendatacommunities.org/id/metropolitan-district-council/walsall ,WC128-698,31.07.2021,ADULT SOCIAL CARE,ALPHA HEALTH CARE LTD,05/07/2021,"2,331.08",6541-Residential EMI,THIRD PARTY PAYMENTS,PRIVATE CONTRACTOR,REVENUE
Walsall Council,http://opendatacommunities.org/id/metropolitan-district-council/walsall ,WC128-699,31.07.2021,ADULT SOCIAL CARE,ALPHA HEALTH CARE LTD,05/07/2021,"3,203.08",6541-Residential EMI,THIRD PARTY PAYMENTS,PRIVATE CONTRACTOR,REVENUE
Walsall Council,http://opendatacommunities.org/id/metropolitan-district-council/walsall ,WC128-700,31.07.2021,ADULT SOCIAL CARE,ALPHA HEALTH CARE LTD,05/07/2021,"3,083.08",6541-Residential EMI,THIRD PARTY PAYMENTS,PRIVATE CONTRACTOR,REVENUE
Walsall Council,http://opendatacommunities.org/id/metropolitan-district-council/walsall ,WC128-701,31.07.2021,ADULT SOCIAL CARE,ALPHA HEALTH CARE LTD,05/07/2021,"2,331.08",6541-Residential EMI,THIRD PARTY PAYMENTS,PRIVATE CONTRACTOR,REVENUE
Walsall Council,http://opendatacommunities.org/id/metropolitan-district-council/walsall ,WC128-702,31.07.2021,ADULT SOCIAL CARE,ALPHA HEALTH CARE LTD,05/07/2021,"3,091.28",6541-Nursing EMI,THIRD PARTY PAYMENTS,PRIVATE CONTRACTOR,REVENUE
Walsall Council,http://opendatacommunities.org/id/metropolitan-district-council/walsall ,WC128-703,31.07.2021,ADULT SOCIAL CARE,ALPHA HEALTH CARE LTD,05/07/2021,"2,331.08",6541-Residential EMI,THIRD PARTY PAYMENTS,PRIVATE CONTRACTOR,REVENUE
Walsall Council,http://opendatacommunities.org/id/metropolitan-district-council/walsall ,WC128-704,31.07.2021,ADULT SOCIAL CARE,ALPHA HEALTH CARE LTD,05/07/2021,"3,083.08",6541-Residential EMI,THIRD PARTY PAYMENTS,PRIVATE CONTRACTOR,REVENUE
Walsall Council,http://opendatacommunities.org/id/metropolitan-district-council/walsall ,WC128-705,31.07.2021,ADULT SOCIAL CARE,ALPHA HEALTH CARE LTD,05/07/2021,"3,363.08",6541-Residential EMI,THIRD PARTY PAYMENTS,PRIVATE CONTRACTOR,REVENUE
Walsall Council,http://opendatacommunities.org/id/metropolitan-district-council/walsall ,WC128-706,31.07.2021,ADULT SOCIAL CARE,ALPHA HEALTH CARE LTD,05/07/2021,"3,091.28",6541-Nursing EMI,THIRD PARTY PAYMENTS,PRIVATE CONTRACTOR,REVENUE
Walsall Council,http://opendatacommunities.org/id/metropolitan-district-council/walsall ,WC128-707,31.07.2021,ADULT SOCIAL CARE,ALPHA HEALTH CARE LTD,05/07/2021,"3,091.28",6541-Nursing EMI,THIRD PARTY PAYMENTS,PRIVATE CONTRACTOR,REVENUE
Walsall Council,http://opendatacommunities.org/id/metropolitan-district-council/walsall ,WC128-708,31.07.2021,ADULT SOCIAL CARE,ALPHA HEALTH CARE LTD,05/07/2021,"3,058.80",6541-Residential EMI,THIRD PARTY PAYMENTS,PRIVATE CONTRACTOR,REVENUE
Walsall Council,http://opendatacommunities.org/id/metropolitan-district-council/walsall ,WC128-709,31.07.2021,ADULT SOCIAL CARE,ALPHA HEALTH CARE LTD,05/07/2021,"3,091.28",6541-Nursing EMI,THIRD PARTY PAYMENTS,PRIVATE CONTRACTOR,REVENUE
Walsall Council,http://opendatacommunities.org/id/metropolitan-district-council/walsall ,WC128-710,31.07.2021,ADULT SOCIAL CARE,ALPHA HEALTH CARE LTD,05/07/2021,"7,200.00",6541-Residential,THIRD PARTY PAYMENTS,PRIVATE CONTRACTOR,REVENUE
Walsall Council,http://opendatacommunities.org/id/metropolitan-district-council/walsall ,WC128-711,31.07.2021,ADULT SOCIAL CARE,ALPHA HEALTH CARE LTD,05/07/2021,"7,776.00",6541-Nursing,THIRD PARTY PAYMENTS,PRIVATE CONTRACTOR,REVENUE
Walsall Council,http://opendatacommunities.org/id/metropolitan-district-council/walsall ,WC128-712,31.07.2021,ADULT SOCIAL CARE,ALPHA HEALTH CARE LTD,09/07/2021,"1,764.29",6554-Professional Services-Priv Contractor & Other Agencies,THIRD PARTY PAYMENTS,PRIVATE CONTRACTOR,REVENUE
Walsall Council,http://opendatacommunities.org/id/metropolitan-district-council/walsall ,WC128-713,31.07.2021,ADULT SOCIAL CARE,ALPHA HEALTH CARE LTD,09/07/2021,"1,764.29",6554-Professional Services-Priv Contractor & Other Agencies,THIRD PARTY PAYMENTS,PRIVATE CONTRACTOR,REVENUE
Walsall Council,http://opendatacommunities.org/id/metropolitan-district-council/walsall ,WC128-714,31.07.2021,ADULT SOCIAL CARE,ALPHA HEALTH CARE LTD,09/07/2021,"3,951.29",6554-Professional Services-Priv Contractor & Other Agencies,THIRD PARTY PAYMENTS,PRIVATE CONTRACTOR,REVENUE
Walsall Council,http://opendatacommunities.org/id/metropolitan-district-council/walsall ,WC128-715,31.07.2021,CHILDRENS,ALPHA TRAINING ACADEMY UK LTD,05/07/2021,"3,750.00",1187-Materials,SUPPLIES & SERVICES,EQUIPMENT FURNITURE & MATERIALS,REVENUE
Walsall Council,http://opendatacommunities.org/id/metropolitan-district-council/walsall ,WC128-716,31.07.2021,CHILDRENS,ALPHA TRAINING ACADEMY UK LTD,13/07/2021,"1,250.00",1187-Materials,SUPPLIES & SERVICES,EQUIPMENT FURNITURE & MATERIALS,REVENUE
Walsall Council,http://opendatacommunities.org/id/metropolitan-district-council/walsall ,WC128-717,31.07.2021,CHILDRENS,ALPHABIOLABS,07/07/2021,"1,109.00",6220-School Only Payments - Catering,THIRD PARTY PAYMENTS,INDEPENDENT UNIT WITHIN COUNCIL,REVENUE
Walsall Council,http://opendatacommunities.org/id/metropolitan-district-council/walsall ,WC128-718,31.07.2021,CHILDRENS,REDACTED,28/07/2021,322.76,6223-Residents Orders,TRANSFER PAYMENTS,CHILDREN SOCIAL SERVICES CLIENT,REVENUE
Walsall Council,http://opendatacommunities.org/id/metropolitan-district-council/walsall ,WC128-719,31.07.2021,ADULT SOCIAL CARE,REDACTED,07/07/2021,"1,626.96",6541-Direct Payment,THIRD PARTY PAYMENTS,PRIVATE CONTRACTOR,REVENUE
Walsall Council,http://opendatacommunities.org/id/metropolitan-district-council/walsall ,WC128-720,31.07.2021,ECONOMY & ENVIRONMENT,AMEY LG LIMITED,07/07/2021,"26,279.96",6411-Materials,SUPPLIES & SERVICES,EQUIPMENT FURNITURE & MATERIALS,REVENUE
Walsall Council,http://opendatacommunities.org/id/metropolitan-district-council/walsall ,WC128-721,31.07.2021,ECONOMY & ENVIRONMENT,AMEY LG LIMITED,13/07/2021,"1,769.61",6430-Repair & Maintenance of Furniture & Equipment,SUPPLIES & SERVICES,EQUIPMENT FURNITURE & MATERIALS,REVENUE
Walsall Council,http://opendatacommunities.org/id/metropolitan-district-council/walsall ,WC128-722,31.07.2021,ECONOMY & ENVIRONMENT,AMEY LG LIMITED,29/07/2021,334.72,6411-Repair & Maintenance of Furniture & Equipment,SUPPLIES & SERVICES,EQUIPMENT FURNITURE & MATERIALS,REVENUE
Walsall Council,http://opendatacommunities.org/id/metropolitan-district-council/walsall ,WC128-723,31.07.2021,ECONOMY & ENVIRONMENT CAPITAL,AMEY OW LTD,13/07/2021,"35,516.01",7200-Project Fees,CAPITAL,"NEW CONSTRUCTION,CONVERSION & RENOVATION",CAPITAL
Walsall Council,http://opendatacommunities.org/id/metropolitan-district-council/walsall ,WC128-724,31.07.2021,ECONOMY & ENVIRONMENT CAPITAL,AMEY OW LTD,28/07/2021,"23,571.25",7200-Project Fees,CAPITAL,"NEW CONSTRUCTION,CONVERSION & RENOVATION",CAPITAL
Walsall Council,http://opendatacommunities.org/id/metropolitan-district-council/walsall ,WC128-725,31.07.2021,CHILDRENS,AMG NURSING CARE SERVICES,14/07/2021,"1,480.96",6220-Accommodation and Related Costs-Assistance to S/S Clients,TRANSFER PAYMENTS,ADULT SOCIAL SERVICES CLIENT,REVENUE
Walsall Council,http://opendatacommunities.org/id/metropolitan-district-council/walsall ,WC128-726,31.07.2021,CHILDRENS,AMG NURSING CARE SERVICES,20/07/2021,"2,274.48",6220-Accommodation and Related Costs-Assistance to S/S Clients,TRANSFER PAYMENTS,ADULT SOCIAL SERVICES CLIENT,REVENUE
Walsall Council,http://opendatacommunities.org/id/metropolitan-district-council/walsall ,WC128-727,31.07.2021,CHILDRENS,AMG NURSING CARE SERVICES,26/07/2021,"2,274.48",6220-Accommodation and Related Costs-Assistance to S/S Clients,TRANSFER PAYMENTS,ADULT SOCIAL SERVICES CLIENT,REVENUE
Walsall Council,http://opendatacommunities.org/id/metropolitan-district-council/walsall ,WC128-728,31.07.2021,ECONOMY & ENVIRONMENT,AMX SOLUTIONS LIMITED,21/07/2021,"2,249.55",6411-Professional Services-Priv Contractor & Other Agencies,THIRD PARTY PAYMENTS,PRIVATE CONTRACTOR,REVENUE
Walsall Council,http://opendatacommunities.org/id/metropolitan-district-council/walsall ,WC128-729,31.07.2021,ECONOMY & ENVIRONMENT,AMX SOLUTIONS LIMITED,14/07/2021,"4,039.19",6411-Professional Services-Priv Contractor & Other Agencies,THIRD PARTY PAYMENTS,PRIVATE CONTRACTOR,REVENUE
Walsall Council,http://opendatacommunities.org/id/metropolitan-district-council/walsall ,WC128-730,31.07.2021,CHILDRENS,REDACTED,28/07/2021,607.52,6223-Foster Carers Maintenance Allowance,TRANSFER PAYMENTS,CHILDREN SOCIAL SERVICES CLIENT,REVENUE
Walsall Council,http://opendatacommunities.org/id/metropolitan-district-council/walsall ,WC128-731,31.07.2021,CHILDRENS,REDACTED,28/07/2021,340.00,6223-Internal Foster Carers-Carer Fees,TRANSFER PAYMENTS,CHILDREN SOCIAL SERVICES CLIENT,REVENUE
Walsall Council,http://opendatacommunities.org/id/metropolitan-district-council/walsall ,WC128-732,31.07.2021,ADULT SOCIAL CARE,ANCHOR CAREHOMES LTD - HARDEN HALL,05/07/2021,"2,064.44",6541-Residential,THIRD PARTY PAYMENTS,PRIVATE CONTRACTOR,REVENUE
Walsall Council,http://opendatacommunities.org/id/metropolitan-district-council/walsall ,WC128-733,31.07.2021,ADULT SOCIAL CARE,ANCHOR CAREHOMES LTD - HARDEN HALL,05/07/2021,"2,331.08",6541-Residential EMI,THIRD PARTY PAYMENTS,PRIVATE CONTRACTOR,REVENUE
Walsall Council,http://opendatacommunities.org/id/metropolitan-district-council/walsall ,WC128-734,31.07.2021,ADULT SOCIAL CARE,ANCHOR CAREHOMES LTD - HARDEN HALL,05/07/2021,"2,331.08",6541-Residential EMI,THIRD PARTY PAYMENTS,PRIVATE CONTRACTOR,REVENUE
Walsall Council,http://opendatacommunities.org/id/metropolitan-district-council/walsall ,WC128-735,31.07.2021,ADULT SOCIAL CARE,ANCHOR CAREHOMES LTD - HARDEN HALL,05/07/2021,"2,331.08",6541-Residential EMI,THIRD PARTY PAYMENTS,PRIVATE CONTRACTOR,REVENUE
Walsall Council,http://opendatacommunities.org/id/metropolitan-district-council/walsall ,WC128-736,31.07.2021,ADULT SOCIAL CARE,ANCHOR CAREHOMES LTD - HARDEN HALL,05/07/2021,"2,286.56",6541-Residential,THIRD PARTY PAYMENTS,PRIVATE CONTRACTOR,REVENUE
Walsall Council,http://opendatacommunities.org/id/metropolitan-district-council/walsall ,WC128-737,31.07.2021,ADULT SOCIAL CARE,ANCHOR CAREHOMES LTD - HARDEN HALL,05/07/2021,"2,355.32",6541-Residential EMI,THIRD PARTY PAYMENTS,PRIVATE CONTRACTOR,REVENUE
Walsall Council,http://opendatacommunities.org/id/metropolitan-district-council/walsall ,WC128-738,31.07.2021,ADULT SOCIAL CARE,ANCHOR CAREHOMES LTD - HARDEN HALL,05/07/2021,"2,335.32",6541-Residential EMI,THIRD PARTY PAYMENTS,PRIVATE CONTRACTOR,REVENUE
Walsall Council,http://opendatacommunities.org/id/metropolitan-district-council/walsall ,WC128-739,31.07.2021,ADULT SOCIAL CARE,ANCHOR CAREHOMES LTD - HARDEN HALL,05/07/2021,"2,331.08",6541-Residential EMI,THIRD PARTY PAYMENTS,PRIVATE CONTRACTOR,REVENUE
Walsall Council,http://opendatacommunities.org/id/metropolitan-district-council/walsall ,WC128-740,31.07.2021,ADULT SOCIAL CARE,ANCHOR CAREHOMES LTD - HARDEN HALL,05/07/2021,"2,355.32",6541-Residential EMI,THIRD PARTY PAYMENTS,PRIVATE CONTRACTOR,REVENUE
Walsall Council,http://opendatacommunities.org/id/metropolitan-district-council/walsall ,WC128-741,31.07.2021,ADULT SOCIAL CARE,ANCHOR CAREHOMES LTD - HARDEN HALL,05/07/2021,"2,331.08",6541-Residential EMI,THIRD PARTY PAYMENTS,PRIVATE CONTRACTOR,REVENUE
Walsall Council,http://opendatacommunities.org/id/metropolitan-district-council/walsall ,WC128-742,31.07.2021,ADULT SOCIAL CARE,ANCHOR CAREHOMES LTD - HARDEN HALL,05/07/2021,"2,064.44",6541-Residential,THIRD PARTY PAYMENTS,PRIVATE CONTRACTOR,REVENUE
Walsall Council,http://opendatacommunities.org/id/metropolitan-district-council/walsall ,WC128-743,31.07.2021,ADULT SOCIAL CARE,ANCHOR CAREHOMES LTD - HARDEN HALL,05/07/2021,"2,691.08",6541-Residential EMI,THIRD PARTY PAYMENTS,PRIVATE CONTRACTOR,REVENUE
Walsall Council,http://opendatacommunities.org/id/metropolitan-district-council/walsall ,WC128-744,31.07.2021,ADULT SOCIAL CARE,ANCHOR CAREHOMES LTD - HARDEN HALL,05/07/2021,"2,331.08",6541-Residential EMI,THIRD PARTY PAYMENTS,PRIVATE CONTRACTOR,REVENUE
Walsall Council,http://opendatacommunities.org/id/metropolitan-district-council/walsall ,WC128-745,31.07.2021,ADULT SOCIAL CARE,ANCHOR CAREHOMES LTD - HARDEN HALL,05/07/2021,"2,331.08",6541-Residential EMI,THIRD PARTY PAYMENTS,PRIVATE CONTRACTOR,REVENUE
Walsall Council,http://opendatacommunities.org/id/metropolitan-district-council/walsall ,WC128-746,31.07.2021,ADULT SOCIAL CARE,ANCHOR CAREHOMES LTD - HARDEN HALL,05/07/2021,"2,331.08",6541-Residential EMI,THIRD PARTY PAYMENTS,PRIVATE CONTRACTOR,REVENUE
Walsall Council,http://opendatacommunities.org/id/metropolitan-district-council/walsall ,WC128-747,31.07.2021,ADULT SOCIAL CARE,ANCHOR CAREHOMES LTD - HARDEN HALL,05/07/2021,"2,331.08",6541-Residential EMI,THIRD PARTY PAYMENTS,PRIVATE CONTRACTOR,REVENUE
Walsall Council,http://opendatacommunities.org/id/metropolitan-district-council/walsall ,WC128-748,31.07.2021,ADULT SOCIAL CARE,ANCHOR CAREHOMES LTD - HARDEN HALL,05/07/2021,"2,331.08",6541-Residential EMI,THIRD PARTY PAYMENTS,PRIVATE CONTRACTOR,REVENUE
Walsall Council,http://opendatacommunities.org/id/metropolitan-district-council/walsall ,WC128-749,31.07.2021,ADULT SOCIAL CARE,ANCHOR CAREHOMES LTD - HARDEN HALL,05/07/2021,"2,382.04",6541-Residential EMI,THIRD PARTY PAYMENTS,PRIVATE CONTRACTOR,REVENUE
Walsall Council,http://opendatacommunities.org/id/metropolitan-district-council/walsall ,WC128-750,31.07.2021,ADULT SOCIAL CARE,ANCHOR CAREHOMES LTD - HARDEN HALL,05/07/2021,"2,294.56",6541-Residential EMI,THIRD PARTY PAYMENTS,PRIVATE CONTRACTOR,REVENUE
Walsall Council,http://opendatacommunities.org/id/metropolitan-district-council/walsall ,WC128-751,31.07.2021,ADULT SOCIAL CARE,ANCHOR CAREHOMES LTD - HARDEN HALL,05/07/2021,"2,064.44",6541-Residential,THIRD PARTY PAYMENTS,PRIVATE CONTRACTOR,REVENUE
Walsall Council,http://opendatacommunities.org/id/metropolitan-district-council/walsall ,WC128-752,31.07.2021,ADULT SOCIAL CARE,ANCHOR CAREHOMES LTD - HARDEN HALL,05/07/2021,"2,335.32",6541-Residential EMI,THIRD PARTY PAYMENTS,PRIVATE CONTRACTOR,REVENUE
Walsall Council,http://opendatacommunities.org/id/metropolitan-district-council/walsall ,WC128-753,31.07.2021,ADULT SOCIAL CARE,ANCHOR CAREHOMES LTD - HARDEN HALL,05/07/2021,"2,331.08",6541-Residential EMI,THIRD PARTY PAYMENTS,PRIVATE CONTRACTOR,REVENUE
Walsall Council,http://opendatacommunities.org/id/metropolitan-district-council/walsall ,WC128-754,31.07.2021,ADULT SOCIAL CARE,ANCHOR CAREHOMES LTD - HARDEN HALL,05/07/2021,"2,691.08",6541-Residential EMI,THIRD PARTY PAYMENTS,PRIVATE CONTRACTOR,REVENUE
Walsall Council,http://opendatacommunities.org/id/metropolitan-district-council/walsall ,WC128-755,31.07.2021,ADULT SOCIAL CARE,ANCHOR CAREHOMES LTD - HARDEN HALL,05/07/2021,"2,355.32",6541-Residential EMI,THIRD PARTY PAYMENTS,PRIVATE CONTRACTOR,REVENUE
Walsall Council,http://opendatacommunities.org/id/metropolitan-district-council/walsall ,WC128-756,31.07.2021,ADULT SOCIAL CARE,ANCHOR CAREHOMES LTD - HARDEN HALL,05/07/2021,"2,331.08",6541-Residential EMI,THIRD PARTY PAYMENTS,PRIVATE CONTRACTOR,REVENUE
Walsall Council,http://opendatacommunities.org/id/metropolitan-district-council/walsall ,WC128-757,31.07.2021,ADULT SOCIAL CARE,ANCHOR CAREHOMES LTD - HARDEN HALL,05/07/2021,"2,064.44",6541-Residential,THIRD PARTY PAYMENTS,PRIVATE CONTRACTOR,REVENUE
Walsall Council,http://opendatacommunities.org/id/metropolitan-district-council/walsall ,WC128-758,31.07.2021,ADULT SOCIAL CARE,ANCHOR CAREHOMES LTD - HARDEN HALL,05/07/2021,"2,331.08",6541-Residential EMI,THIRD PARTY PAYMENTS,PRIVATE CONTRACTOR,REVENUE
Walsall Council,http://opendatacommunities.org/id/metropolitan-district-council/walsall ,WC128-759,31.07.2021,ADULT SOCIAL CARE,ANCHOR CAREHOMES LTD - HARDEN HALL,05/07/2021,"2,331.08",6541-Residential EMI,THIRD PARTY PAYMENTS,PRIVATE CONTRACTOR,REVENUE
Walsall Council,http://opendatacommunities.org/id/metropolitan-district-council/walsall ,WC128-760,31.07.2021,ADULT SOCIAL CARE,ANCHOR CAREHOMES LTD - HARDEN HALL,05/07/2021,"2,064.44",6541-Residential,THIRD PARTY PAYMENTS,PRIVATE CONTRACTOR,REVENUE
Walsall Council,http://opendatacommunities.org/id/metropolitan-district-council/walsall ,WC128-761,31.07.2021,ADULT SOCIAL CARE,ANCHOR CAREHOMES LTD - HARDEN HALL,05/07/2021,"3,267.74",6541-Residential EMI,THIRD PARTY PAYMENTS,PRIVATE CONTRACTOR,REVENUE
Walsall Council,http://opendatacommunities.org/id/metropolitan-district-council/walsall ,WC128-762,31.07.2021,CHILDRENS,REDACTED,28/07/2021,314.48,6223-Special Guardianship Orders,TRANSFER PAYMENTS,CHILDREN SOCIAL SERVICES CLIENT,REVENUE
Walsall Council,http://opendatacommunities.org/id/metropolitan-district-council/walsall ,WC128-763,31.07.2021,ADULT SOCIAL CARE,REDACTED,07/07/2021,518.00,6541-Direct Payment,THIRD PARTY PAYMENTS,PRIVATE CONTRACTOR,REVENUE
Walsall Council,http://opendatacommunities.org/id/metropolitan-district-council/walsall ,WC128-764,31.07.2021,ADULT SOCIAL CARE,REDACTED,07/07/2021,"2,710.16",6541-Direct Payment,THIRD PARTY PAYMENTS,PRIVATE CONTRACTOR,REVENUE
Walsall Council,http://opendatacommunities.org/id/metropolitan-district-council/walsall ,WC128-765,31.07.2021,CHILDRENS CAPITAL,ANDREWS ELECTRICAL LTD,14/07/2021,995.00,7150-Site Works Contractors,CAPITAL,"NEW CONSTRUCTION,CONVERSION & RENOVATION",CAPITAL
Walsall Council,http://opendatacommunities.org/id/metropolitan-district-council/walsall ,WC128-766,31.07.2021,CHILDRENS,ANGEL SOLUTIONS LTD,12/07/2021,"2,570.00",6240-Subscriptions,SUPPLIES & SERVICES,GRANTS (EXP) & SUBSCRIPTIONS,REVENUE
Walsall Council,http://opendatacommunities.org/id/metropolitan-district-council/walsall ,WC128-767,31.07.2021,CHILDRENS,ANGEL SOLUTIONS LTD,12/07/2021,"8,930.00",6240-Subscriptions,SUPPLIES & SERVICES,GRANTS (EXP) & SUBSCRIPTIONS,REVENUE
Walsall Council,http://opendatacommunities.org/id/metropolitan-district-council/walsall ,WC128-768,31.07.2021,CHILDRENS,REDACTED,28/07/2021,376.88,6223-Special Guardianship Orders,TRANSFER PAYMENTS,CHILDREN SOCIAL SERVICES CLIENT,REVENUE
Walsall Council,http://opendatacommunities.org/id/metropolitan-district-council/walsall ,WC128-769,31.07.2021,CHILDRENS,REDACTED,28/07/2021,510.28,6223-Special Guardianship Orders,TRANSFER PAYMENTS,CHILDREN SOCIAL SERVICES CLIENT,REVENUE
Walsall Council,http://opendatacommunities.org/id/metropolitan-district-council/walsall ,WC128-770,31.07.2021,CHILDRENS,REDACTED,28/07/2021,318.36,6223-Special Guardianship Orders,TRANSFER PAYMENTS,CHILDREN SOCIAL SERVICES CLIENT,REVENUE
Walsall Council,http://opendatacommunities.org/id/metropolitan-district-council/walsall ,WC128-771,31.07.2021,ADULT SOCIAL CARE,REDACTED,08/07/2021,301.28,6541-Shared Lives,THIRD PARTY PAYMENTS,PRIVATE CONTRACTOR,REVENUE
Walsall Council,http://opendatacommunities.org/id/metropolitan-district-council/walsall ,WC128-772,31.07.2021,ECONOMY & ENVIRONMENT,REDACTED,09/07/2021,400.00,6414-Professional Fees & Services,SUPPLIES & SERVICES,SERVICES,REVENUE
Walsall Council,http://opendatacommunities.org/id/metropolitan-district-council/walsall ,WC128-773,31.07.2021,ADULT SOCIAL CARE,ANSON COURT RESIDENTIAL HOME,28/07/2021,"1,154.00",6541-Residential,THIRD PARTY PAYMENTS,PRIVATE CONTRACTOR,REVENUE
Walsall Council,http://opendatacommunities.org/id/metropolitan-district-council/walsall ,WC128-774,31.07.2021,ADULT SOCIAL CARE,ANSON COURT RESIDENTIAL HOME,28/07/2021,"1,401.29",6541-Residential,THIRD PARTY PAYMENTS,PRIVATE CONTRACTOR,REVENUE
Walsall Council,http://opendatacommunities.org/id/metropolitan-district-council/walsall ,WC128-775,31.07.2021,ADULT SOCIAL CARE,ANSON COURT RESIDENTIAL HOME,05/07/2021,"2,331.08",6541-Residential EMI,THIRD PARTY PAYMENTS,PRIVATE CONTRACTOR,REVENUE
Walsall Council,http://opendatacommunities.org/id/metropolitan-district-council/walsall ,WC128-776,31.07.2021,ADULT SOCIAL CARE,ANSON COURT RESIDENTIAL HOME,05/07/2021,"2,331.08",6541-Residential EMI,THIRD PARTY PAYMENTS,PRIVATE CONTRACTOR,REVENUE
Walsall Council,http://opendatacommunities.org/id/metropolitan-district-council/walsall ,WC128-777,31.07.2021,ADULT SOCIAL CARE,ANSON COURT RESIDENTIAL HOME,05/07/2021,"2,192.68",6541-Residential,THIRD PARTY PAYMENTS,PRIVATE CONTRACTOR,REVENUE
Walsall Council,http://opendatacommunities.org/id/metropolitan-district-council/walsall ,WC128-778,31.07.2021,ADULT SOCIAL CARE,ANSON COURT RESIDENTIAL HOME,05/07/2021,"2,064.44",6541-Residential,THIRD PARTY PAYMENTS,PRIVATE CONTRACTOR,REVENUE
Walsall Council,http://opendatacommunities.org/id/metropolitan-district-council/walsall ,WC128-779,31.07.2021,ADULT SOCIAL CARE,ANSON COURT RESIDENTIAL HOME,05/07/2021,"2,331.08",6541-Residential EMI,THIRD PARTY PAYMENTS,PRIVATE CONTRACTOR,REVENUE
Walsall Council,http://opendatacommunities.org/id/metropolitan-district-council/walsall ,WC128-780,31.07.2021,ADULT SOCIAL CARE,ANSON COURT RESIDENTIAL HOME,05/07/2021,"2,184.44",6541-Residential,THIRD PARTY PAYMENTS,PRIVATE CONTRACTOR,REVENUE
Walsall Council,http://opendatacommunities.org/id/metropolitan-district-council/walsall ,WC128-781,31.07.2021,ADULT SOCIAL CARE,ANSON COURT RESIDENTIAL HOME,05/07/2021,"2,331.08",6541-Residential EMI,THIRD PARTY PAYMENTS,PRIVATE CONTRACTOR,REVENUE
Walsall Council,http://opendatacommunities.org/id/metropolitan-district-council/walsall ,WC128-782,31.07.2021,ADULT SOCIAL CARE,ANSON COURT RESIDENTIAL HOME,05/07/2021,"2,331.08",6541-Residential EMI,THIRD PARTY PAYMENTS,PRIVATE CONTRACTOR,REVENUE
Walsall Council,http://opendatacommunities.org/id/metropolitan-district-council/walsall ,WC128-783,31.07.2021,ADULT SOCIAL CARE,ANSON COURT RESIDENTIAL HOME,05/07/2021,915.78,6541-Residential EMI,THIRD PARTY PAYMENTS,PRIVATE CONTRACTOR,REVENUE
Walsall Council,http://opendatacommunities.org/id/metropolitan-district-council/walsall ,WC128-784,31.07.2021,ADULT SOCIAL CARE,ANSON COURT RESIDENTIAL HOME,05/07/2021,"2,331.08",6541-Residential EMI,THIRD PARTY PAYMENTS,PRIVATE CONTRACTOR,REVENUE
Walsall Council,http://opendatacommunities.org/id/metropolitan-district-council/walsall ,WC128-785,31.07.2021,ADULT SOCIAL CARE,ANSON COURT RESIDENTIAL HOME,05/07/2021,"2,331.08",6541-Residential EMI,THIRD PARTY PAYMENTS,PRIVATE CONTRACTOR,REVENUE
Walsall Council,http://opendatacommunities.org/id/metropolitan-district-council/walsall ,WC128-786,31.07.2021,ADULT SOCIAL CARE,ANSON COURT RESIDENTIAL HOME,05/07/2021,"2,331.08",6541-Residential EMI,THIRD PARTY PAYMENTS,PRIVATE CONTRACTOR,REVENUE
Walsall Council,http://opendatacommunities.org/id/metropolitan-district-council/walsall ,WC128-787,31.07.2021,ADULT SOCIAL CARE,ANSON COURT RESIDENTIAL HOME,05/07/2021,"2,331.08",6541-Residential EMI,THIRD PARTY PAYMENTS,PRIVATE CONTRACTOR,REVENUE
Walsall Council,http://opendatacommunities.org/id/metropolitan-district-council/walsall ,WC128-788,31.07.2021,ADULT SOCIAL CARE,ANSON COURT RESIDENTIAL HOME,05/07/2021,"2,331.08",6541-Residential EMI,THIRD PARTY PAYMENTS,PRIVATE CONTRACTOR,REVENUE
Walsall Council,http://opendatacommunities.org/id/metropolitan-district-council/walsall ,WC128-789,31.07.2021,ADULT SOCIAL CARE,ANSON COURT RESIDENTIAL HOME,05/07/2021,"2,331.08",6541-Residential EMI,THIRD PARTY PAYMENTS,PRIVATE CONTRACTOR,REVENUE
Walsall Council,http://opendatacommunities.org/id/metropolitan-district-council/walsall ,WC128-790,31.07.2021,ADULT SOCIAL CARE,ANSON COURT RESIDENTIAL HOME,30/07/2021,"1,194.50",6550-Professional Fees & Services,SUPPLIES & SERVICES,SERVICES,REVENUE
Walsall Council,http://opendatacommunities.org/id/metropolitan-district-council/walsall ,WC128-791,31.07.2021,ADULT SOCIAL CARE,ANSON COURT RESIDENTIAL HOME,28/07/2021,915.78,6541-Residential,THIRD PARTY PAYMENTS,PRIVATE CONTRACTOR,REVENUE
Walsall Council,http://opendatacommunities.org/id/metropolitan-district-council/walsall ,WC128-792,31.07.2021,CHILDRENS,REDACTED,28/07/2021,341.24,6223-Special Guardianship Orders,TRANSFER PAYMENTS,CHILDREN SOCIAL SERVICES CLIENT,REVENUE
Walsall Council,http://opendatacommunities.org/id/metropolitan-district-council/walsall ,WC128-793,31.07.2021,ECONOMY & ENVIRONMENT,APCOA PARKING SERVICES (UK) LTD,14/07/2021,"-52,727.87",6411-Professional Services-Priv Contractor & Other Agencies,THIRD PARTY PAYMENTS,PRIVATE CONTRACTOR,REVENUE
Walsall Council,http://opendatacommunities.org/id/metropolitan-district-council/walsall ,WC128-794,31.07.2021,ECONOMY & ENVIRONMENT,APCOA PARKING SERVICES (UK) LTD,14/07/2021,"52,727.87",6411-Professional Services-Priv Contractor & Other Agencies,THIRD PARTY PAYMENTS,PRIVATE CONTRACTOR,REVENUE
Walsall Council,http://opendatacommunities.org/id/metropolitan-district-council/walsall ,WC128-795,31.07.2021,CHILDRENS,APP CARZ,19/07/2021,748.00,6241-Hire of Vehicle with Driver,TRANSPORT,DIRECT TRANSPORT COSTS,REVENUE
Walsall Council,http://opendatacommunities.org/id/metropolitan-district-council/walsall ,WC128-796,31.07.2021,CHILDRENS,APP CARZ,19/07/2021,"1,280.00",6241-Hire of Vehicle with Driver,TRANSPORT,DIRECT TRANSPORT COSTS,REVENUE
Walsall Council,http://opendatacommunities.org/id/metropolitan-district-council/walsall ,WC128-797,31.07.2021,CHILDRENS,APP CARZ,19/07/2021,"1,152.00",6241-Hire of Vehicle with Driver,TRANSPORT,DIRECT TRANSPORT COSTS,REVENUE
Walsall Council,http://opendatacommunities.org/id/metropolitan-district-council/walsall ,WC128-798,31.07.2021,CHILDRENS,APP CARZ,19/07/2021,"1,120.00",6241-Hire of Vehicle with Driver,TRANSPORT,DIRECT TRANSPORT COSTS,REVENUE
Walsall Council,http://opendatacommunities.org/id/metropolitan-district-council/walsall ,WC128-799,31.07.2021,CHILDRENS,APP CARZ,19/07/2021,"2,176.00",6241-Hire of Vehicle with Driver,TRANSPORT,DIRECT TRANSPORT COSTS,REVENUE
Walsall Council,http://opendatacommunities.org/id/metropolitan-district-council/walsall ,WC128-800,31.07.2021,CHILDRENS,APP CARZ,19/07/2021,"1,216.00",6241-Hire of Vehicle with Driver,TRANSPORT,DIRECT TRANSPORT COSTS,REVENUE
Walsall Council,http://opendatacommunities.org/id/metropolitan-district-council/walsall ,WC128-801,31.07.2021,CHILDRENS,APP CARZ,19/07/2021,880.00,6241-Hire of Vehicle with Driver,TRANSPORT,DIRECT TRANSPORT COSTS,REVENUE
Walsall Council,http://opendatacommunities.org/id/metropolitan-district-council/walsall ,WC128-802,31.07.2021,CHILDRENS,APP CARZ,19/07/2021,"1,000.00",6241-Hire of Vehicle with Driver,TRANSPORT,DIRECT TRANSPORT COSTS,REVENUE
Walsall Council,http://opendatacommunities.org/id/metropolitan-district-council/walsall ,WC128-803,31.07.2021,CHILDRENS,APP CARZ,19/07/2021,440.00,6241-Hire of Vehicle with Driver,TRANSPORT,DIRECT TRANSPORT COSTS,REVENUE
